Workbook

Sheet GenEtatCpte
A1: code boutique | B1: Boutique | C1: Emettre EDC? | D1: Code Locataire | E1: Nom Locataire | F1: Prénom Locataire | G1: Tel Locataire | H1: Loyer mensuel | I1: À générer ?
A2: O-A-01 | B2: A-1 | C2: WA | D2: NTC001 | E2: NTCHINGUE TUEPMA | F2: Elvis | G2: 699910977 | H2: =[1]SuiviPMTLoyer!I65 -> 50000 | I2: oui
A3: O-A-02 | B3: A-2 | C3: WA | D3: TCH003 | E3: TCHOFFO | F3: MATHURIN TAYO | G3: 695956612 | H3: =[1]SuiviPMTLoyer!I66 -> 50000 | I3: oui
A4: O-A-03 | B4: A-3 | C4: WA | D4: TED001 | E4: TEDONGMO épse TCHOFFO | F4: Charlotte Aimée | G4: 695956612 | H4: =[1]SuiviPMTLoyer!I67 -> 50000 | I4: oui
A5: O-A-04 | B5: A-4 | C5: NON | D5: NZA001 | E5: NZANGUÉ | F5: Emmanuel | G5: 699912194 | H5: =[1]SuiviPMTLoyer!I68 -> 50000 | I5: oui
A6: O-A-05 | B6: A-5 | C6: NON | D6: YOL001 | E6: YOLONG | F6: Emmanuel | G6: 672641984 | H6: =[1]SuiviPMTLoyer!I69 -> 50000 | I6: oui
A7: O-A-06 | B7: A-6 | C7: NON | D7: KET001 | E7: KETCHIOZO | F7: Armand | G7: 670604561 | H7: =[1]SuiviPMTLoyer!I70 -> 50000 | I7: oui
A8: O-A-07 | B8: A-7 | C8: WA | D8: LIP001 | E8: LIPALI SERVICES SARL | G8: 699999504/677149519 | H8: =[1]SuiviPMTLoyer!I71 -> 50000 | I8: oui
A9: O-A-08 | B9: A-8 | C9: WA | D9: DID001 | E9: DIDA SAHADIO | G9: 671981111 | H9: =[1]SuiviPMTLoyer!I72 -> 50000 | I9: oui
A10: O-A-09 | B10: A-9 | C10: WA | D10: TAD001 | E10: TADOUNLONG FOPA | F10: Apollinaire | G10: 677476959 | H10: =[1]SuiviPMTLoyer!I73 -> 50000 | I10: oui
A11: O-A-10 | B11: A-10 | C11: WA | D11: NGU004 | E11: NGUEKENG | F11: Victorine Sylvie | G11: 677476959 | H11: =[1]SuiviPMTLoyer!I74 -> 50000 | I11: oui
A12: O-A-11 | B12: A-11 | C12: WA | D12: FOT001 | E12: FOTSING | F12: Hilarion | G12: 699558420/650904512 | H12: =[1]SuiviPMTLoyer!I75 -> 50000 | I12: oui
A13: O-A-12 | B13: A-12 | C13: NON | D13: NGN002 | E13: NGNATCHIE NJOMOU | F13: RYANE LINDSAY | G13: 661228666 | H13: =[1]SuiviPMTLoyer!I76 -> 75000 | I13: oui
A14: O-A-13 | B14: A-13 | C14: NON | D14: ELV001 | E14: ETS. ELVIS & FILS | H14: =[1]SuiviPMTLoyer!I77 -> 60000 | I14: oui
A15: O-A-14 | B15: A-14 | C15: WA | D15: NOU002 | E15: NOUBI | F15: DORIS | G15: 695858072 | H15: =[1]SuiviPMTLoyer!I78 -> 50000 | I15: oui
A16: O-A-15 | B16: A-15 | C16: NON | D16: IJE001 | E16: OKAFOR IJEOMA | F16: PRECIOUS | G16: 672936037 | H16: =[1]SuiviPMTLoyer!I79 -> 50000 | I16: oui
A17: O-A-16 | B17: A-16 | C17: WA | D17: MOU001 | E17: MOUAFO Épse TSOZA | G17: 675236923 | H17: =[1]SuiviPMTLoyer!I80 -> 50000 | I17: oui
A18: O-A-17 | B18: A-17 | C18: WA | D18: TSO001 | E18: TSOZA | F18: JOSUE CLIMBIE | G18: 675236923 | H18: =[1]SuiviPMTLoyer!I81 -> 50000 | I18: oui
A19: O-A-18 | B19: A-18 | C19: NON | D19: MAI001 | E19: Super-Maire | H19: =[1]SuiviPMTLoyer!I82 -> 50000 | I19: oui
A20: O-A-19 | B20: A-19 | C20: WA | D20: MBA001 | E20: KOUEKAM TCHOUBOU | F20: Georges Merleau | G20: 677691092 | H20: =[1]SuiviPMTLoyer!I83 -> 50000 | I20: oui
A21: O-A-20 | B21: A-20 | C21: WA | D21: KAN001 | E21: KANOUWO | F21: Geraldine Patricia | G21: 673802457 | H21: =[1]SuiviPMTLoyer!I84 -> 50000 | I21: oui
A22: O-A-21 | B22: A-21 | C22: WA | D22: SIA001 | E22: SIASSO KENNE | F22: Roméo | G22: 675324213 | H22: =[1]SuiviPMTLoyer!I85 -> 50000 | I22: oui
A23: O-A-22 | B23: A-22 | C23: WA | D23: MAT002 | E23: MATANG NANTSA | F23: Cediane | G23: 651111171 | H23: =[1]SuiviPMTLoyer!I86 -> 50000 | I23: oui
A24: O-A-23 | B24: A-23 | C24: NON | D24: ELV001 | E24: ETS. ELVIS & FILS | H24: =[1]SuiviPMTLoyer!I87 -> 50000 | I24: oui
A25: O-A-24 | B25: A-24 | C25: WA | D25: YOU001 | E25: YOUMOU | F25: Georges B | G25: 677777331 | H25: =[1]SuiviPMTLoyer!I88 -> 50000 | I25: oui
A26: O-A-25 | B26: A-25 | C26: NON | D26: TIE001 | E26: TIENTCHEU | F26: Blaise | G26: 677780057 | H26: =[1]SuiviPMTLoyer!I89 -> 50000 | I26: oui
A27: O-A-26 | B27: A-26 | C27: NON | D27: ELV001 | E27: ETS. ELVIS & FILS | H27: =[1]SuiviPMTLoyer!I90 -> 50000 | I27: oui
A28: O-A-27 | B28: A-27 | C28: WA | D28: MAD001 | E28: MADJOUFANG | F28: Anne | G28: 677661729 | H28: =[1]SuiviPMTLoyer!I91 -> 50000 | I28: oui
A29: O-A-28 | B29: A-28 | C29: NON | D29: TAP001 | E29: TAPINFOUO | F29: Rostand | G29: 670898674/699275367/662932181 | H29: =[1]SuiviPMTLoyer!I92 -> 50000 | I29: oui
A30: O-A-29 | B30: A-29 | C30: WA | D30: KOU001 | E30: KOUBOTOUO | F30: Jean-Claude | G30: 677298943 | H30: =[1]SuiviPMTLoyer!I93 -> 50000 | I30: oui
A31: O-A-30 | B31: A-30 | C31: WA | D31: MAF001 | E31: MAFOTIO FOKA | F31: Dorine | G31: 677298943 | H31: =[1]SuiviPMTLoyer!I94 -> 50000 | I31: oui
A32: O-A-31 | B32: A-31 | C32: WA | D32: TAN001 | E32: TANGOUO TAYO | F32: Désiré | G32: 699567796 | H32: =[1]SuiviPMTLoyer!I95 -> 50000 | I32: oui
A33: O-A-32 | B33: A-32 | C33: WA | D33: TAL001 | E33: TALOTSING | G33: 677685510 | H33: =[1]SuiviPMTLoyer!I96 -> 50000 | I33: oui
A34: O-A-33 | B34: A-33 | C34: WA | D34: MAT001 | E34: MATHO | F34: Christelle | G34: 677298943 | H34: =[1]SuiviPMTLoyer!I97 -> 50000 | I34: oui
A35: O-A-34 | B35: A-34 | C35: WA | D35: SEL001 | E35: SELATSA | F35: Esther | G35: 675717177 | H35: =[1]SuiviPMTLoyer!I98 -> 50000 | I35: oui
A36: O-A-35 | B36: A-35 | C36: WA | D36: HEN001 | E36: HENRI & FRÈRES | G36: 699848080 | H36: =[1]SuiviPMTLoyer!I99 -> 50000 | I36: oui
A37: O-A-36 | B37: A-36 | C37: WA | D37: HEN001 | E37: HENRI & FRÈRES | G37: 699848080 | H37: =[1]SuiviPMTLoyer!I100 -> 50000 | I37: oui
A38: O-A-37 | B38: A-37 | C38: NON | D38: MEG001 | E38: NESCAPE SARL | F38: BP 7748 | G38: 677486363 | H38: =[1]SuiviPMTLoyer!I101 -> 50000 | I38: oui
A39: O-A-38 | B39: A-38 | C39: NON | D39: DJI002 | E39: SCI LA CONCORDE RFF | F39: DJIMELI VICTOR | G39: 677 70 73 82 - BP 7868 Yaoundé | H39: =[1]SuiviPMTLoyer!I102 -> 50000 | I39: oui
A40: O-A-39 | B40: A-39 | C40: NON | D40: DJI002 | E40: SCI LA CONCORDE RFF | F40: DJIMELI VICTOR | G40: 677 70 73 82 - BP 7868 Yaoundé | H40: =[1]SuiviPMTLoyer!I103 -> 50000 | I40: oui
A41: O-A-40 | B41: A-40 | C41: NON | D41: ELV001 | E41: ETS. ELVIS & FILS | H41: =[1]SuiviPMTLoyer!I104 -> 60000 | I41: oui
A42: O-A-41 | B42: A-41 | C42: NON | D42: NGU003 | E42: NGUENGOUA NJOUNOU | F42: Cynthia Withney | G42: 656826737 | H42: =[1]SuiviPMTLoyer!I105 -> 75000 | I42: oui
A43: O-A-42 | B43: A-42 | C43: OUI | D43: TCH001 | E43: TCHELASSI FOTSING | G43: 699320476 | H43: =[1]SuiviPMTLoyer!I106 -> 50000 | I43: oui
A44: O-A-43 | B44: A-43 | C44: WA | D44: DJI001 | E44: DJIOGAP TCHINDA | F44: Dylan | G44: 673802457 | H44: =[1]SuiviPMTLoyer!I107 -> 50000 | I44: oui
A45: O-A-44 | B45: A-44 | C45: WA | D45: NGN001 | E45: NGNIEGNIE TAKAM | F45: Christophe | G45: 677845814 | H45: =[1]SuiviPMTLoyer!I108 -> 50000 | I45: oui
A46: O-A-45 | B46: A-45 | C46: WA | D46: MAZ001 | E46: MAZONGANG | F46: Chanceline Flore | G46: 677845814 | H46: =[1]SuiviPMTLoyer!I109 -> 50000 | I46: oui
A47: O-A-46 | B47: A-46 | C47: WA | D47: SUP001 | E47: SUPERBOYS | H47: =[1]SuiviPMTLoyer!I110 -> 50000 | I47: oui
A48: O-A-47 | B48: A-47 | C48: WA | D48: SUP001 | E48: SUPERBOYS | H48: =[1]SuiviPMTLoyer!I111 -> 50000 | I48: oui
A49: O-A-48 | B49: A-48 | C49: OUI | D49: MEL001 | E49: MELI TCHINDA | F49: Franck Durel | G49: 675717177 | H49: =[1]SuiviPMTLoyer!I112 -> 50000 | I49: oui
A50: O-A-49 | B50: A-49 | C50: OUI | D50: FOU002 | E50: FOUOTSA KENNE | F50: Louis | G50: 675324213 | H50: =[1]SuiviPMTLoyer!I113 -> 50000 | I50: oui
A51: O-A-50 | B51: A-50 | C51: WA | D51: NGU002 | E51: NGUENKAM | F51: Pierre | G51: 699922296 | H51: =[1]SuiviPMTLoyer!I114 -> 50000 | I51: oui
A52: O-A-51 | B52: A-51 | C52: NON | D52: DJI002 | E52: SCI LA CONCORDE RFF | F52: DJIMELI VICTOR | G52: 677 70 73 82 - BP 7868 Yaoundé | H52: =[1]SuiviPMTLoyer!I115 -> 50000 | I52: oui
A53: O-A-52 | B53: A-52 | C53: NON | D53: ELV001 | E53: ETS. ELVIS & FILS | H53: =[1]SuiviPMTLoyer!I116 -> 50000 | I53: oui
A54: O-B-01 | B54: B-1 | C54: WA | D54: NWA001 | E54: NWAOKORO | F54: Viviane Chioma | G54: 677810392 | H54: =[1]SuiviPMTLoyer!I118 -> 100000 | I54: oui
A55: O-B-02 | B55: B-2 | C55: NON | D55: ELV001 | E55: ETS. ELVIS & FILS | H55: =[1]SuiviPMTLoyer!I119 -> 50000 | I55: oui
A56: O-B-03 | B56: B-3 | C56: WA | D56: TAN002 | E56: MME TANG | G56: 699525131 | H56: =[1]SuiviPMTLoyer!I120 -> 50000 | I56: oui
A57: O-B-04 | B57: B-4 | C57: WA | D57: GAL002 | E57: gallerie nescape | H57: =[1]SuiviPMTLoyer!I121 -> 75000 | I57: oui
A58: O-B-05 | B58: B-5 | C58: WA | D58: LEO001 | E58: FOGHO OUAMBO | F58: Léon Urbain | G58: 677300851 | H58: =[1]SuiviPMTLoyer!I122 -> 112500 | I58: oui
A59: O-B-06 | B59: B-6 | C59: WA | D59: WAC001 | E59: WACO SARL | G59: 671 98 11 11 | H59: =[1]SuiviPMTLoyer!I123 -> 100000 | I59: oui
A60: O-B-07 | B60: B-7 | C60: OUI | D60: MAD002 | E60: MADJOU FANG | F60: ANNE | H60: =[1]SuiviPMTLoyer!I124 -> 50000 | I60: oui
A61: O-B-08 | B61: B-8 | C61: NON | D61: ELV001 | E61: ETS. ELVIS & FILS | H61: =[1]SuiviPMTLoyer!I125 -> 50000 | I61: oui
A62: O-B-09 | B62: B-9 | C62: NON | D62: ELV001 | E62: ETS. ELVIS & FILS | H62: =[1]SuiviPMTLoyer!I126 -> 50000 | I62: oui
A63: O-B-10 | B63: B-10 | C63: NON | D63: ELV001 | E63: ETS. ELVIS & FILS | H63: =[1]SuiviPMTLoyer!I127 -> 50000 | I63: oui
A64: O-B-11 | B64: B-11 | C64: NON | D64: ELV001 | E64: ETS. ELVIS & FILS | H64: =[1]SuiviPMTLoyer!I128 -> 50000 | I64: oui
A65: O-B-12 | B65: B-12 | C65: NON | D65: ELV001 | E65: ETS. ELVIS & FILS | H65: =[1]SuiviPMTLoyer!I129 -> 50000 | I65: oui
A66: O-B-13 | B66: B-13 | C66: OUI | D66: TCH002 | E66: TCHOKOTCHEU TIAGUE épse MBAGOFA | F66: Emilienne | G66: 696367161 | H66: =[1]SuiviPMTLoyer!I130 -> 50000 | I66: oui
A67: O-B-14 | B67: B-14 | C67: OUI | D67: MIL001 | E67: DJUIKEM KUETE épse TCHIO | F67: Liliane | G67: 670429044 | H67: =[1]SuiviPMTLoyer!I131 -> 100000 | I67: oui
A68: O-B-15 | B68: B-15 | C68: OUI | D68: Restaurant | E68: NYA NJIKE | F68: Griselda | G68: 691848242 | H68: =[1]SuiviPMTLoyer!I132 -> 137500 | I68: oui
A69: O-B-16 | B69: B-16 | C69: NON | D69: ELV001 | E69: ETS. ELVIS & FILS | H69: =[1]SuiviPMTLoyer!I133 -> 75000 | I69: oui
A70: O-B-17 | B70: B-17 | C70: NON | D70: DJI003 | E70: SOGERIC SARL | F70: Mme DJUKEM épse DJIMELI | G70: 6 71 18 78 45 | H70: =[1]SuiviPMTLoyer!I134 -> 50000 | I70: oui
A71: O-B-18 | B71: B-18 | C71: NON | D71: COL001 | E71: LAKETEU NGOUNOU épse NCHANDA | F71: Colette | G71: 674613951/696542080 | H71: =[1]SuiviPMTLoyer!I135 -> 25000 | I71: oui
A72: O-B-19 | B72: B-19 | C72: OUI | D72: TCH004 | E72: TCHINDA | F72: ÉTIENNE | G72: 679810652 | H72: =[1]SuiviPMTLoyer!I136 -> 25000 | I72: oui
A73: O-B-20 | B73: B-20 | C73: OUI | D73: OKE001 | E73: OKEZIE IFEANYI CHUKWU | G73: 677810392 | H73: =[1]SuiviPMTLoyer!I137 -> 50000 | I73: oui
A74: O-B-21 | B74: B-21 | C74: WA | D74: NGO002 | E74: NGOUANA | H74: =[1]SuiviPMTLoyer!I138 -> 50000 | I74: oui
A75: O-B-22 | B75: B-22 | C75: NON | D75: NGO002 | E75: NGOUANA | H75: =[1]SuiviPMTLoyer!I139 -> 50000 | I75: oui
A76: O-B-23 | B76: B-23 | C76: WA | D76: LAD001 | E76: LADO | F76: Dieunedort | G76: 694418683 / 677183607 | H76: =[1]SuiviPMTLoyer!I140 -> 50000 | I76: oui
A77: O-B-24 | B77: B-24 | C77: NON | D77: MAT003 | E77: MATANE | F77: LYNE SANDRINE | G77: 675714043 | H77: =[1]SuiviPMTLoyer!I141 -> 25000 | I77: oui
A78: O-B-25 | B78: B-25 | C78: WA | D78: NGO003 | E78: NGOUNOU ABESSANG | F78: CHANCELIER | G78: 675044808 | H78: =[1]SuiviPMTLoyer!I142 -> 25000 | I78: oui
A79: O-B-26 | B79: B-26 | C79: NON | D79: ELV001 | E79: ETS. ELVIS & FILS | H79: =[1]SuiviPMTLoyer!I143 -> 50000 | I79: oui
A80: O-B-27 | B80: B-27 | C80: WA | D80: KOU004 | E80: KOUOMEGNE KOUOKAM | F80: Laurette Nelly | G80: 694312305 | H80: =[1]SuiviPMTLoyer!I144 -> 50000 | I80: oui
A81: O-B-28 | B81: B-28 | C81: OUI | D81: NOU003 | E81: NOUDJEU | F81: Christine | G81: 677612922 | H81: =[1]SuiviPMTLoyer!I145 -> 50000 | I81: oui
A82: O-B-29 | B82: B-29 | C82: WA | D82: LON001 | E82: LONTSI | F82: Zachée | G82: 675325605 | H82: =[1]SuiviPMTLoyer!I146 -> 25000 | I82: oui
A83: O-B-30 | B83: B-30 | C83: NON | D83: MAM002 | E83: MAMBOUA ÉPSE WAMBO | G83: 699651970/672952544 | H83: =[1]SuiviPMTLoyer!I147 -> 25000 | I83: oui
A84: O-B-31 | B84: B-31 | C84: NON | D84: ELV001 | E84: ETS. ELVIS & FILS | H84: =[1]SuiviPMTLoyer!I148 -> 62500 | I84: oui
A85: O-B-32 | B85: B-32 | C85: WA | D85: DEU001 | E85: DEUTCHOUA MEYI | F85: Patrick | G85: 675235517 | H85: =[1]SuiviPMTLoyer!I149 -> 25000 | I85: oui
A86: O-B-33 | B86: B-33 | C86: OUI | D86: DOU001 | E86: DOUANLA DJOUMESSI | F86: Eric | G86: 677241685 | H86: =[1]SuiviPMTLoyer!I150 -> 25000 | I86: oui
A87: O-B-34 | B87: B-34 | C87: OUI | D87: MBO001 | E87: MBOUGUE DOUMKENG | F87: Serges | G87: 693046573 | H87: =[1]SuiviPMTLoyer!I151 -> 50000 | I87: oui
A88: O-B-35 | B88: B-35 | C88: NON | D88: NAN001 | E88: NANA | F88: Calvin | G88: 698672814/677417876 | H88: =[1]SuiviPMTLoyer!I152 -> 25000 | I88: oui
A89: O-B-36 | B89: B-36 | C89: NON | D89: ELV001 | E89: ETS. ELVIS & FILS | H89: =[1]SuiviPMTLoyer!I153 -> 25000 | I89: oui
A90: O-B-37 | B90: B-37 | C90: WA | D90: TCH002 | E90: TCHOKOTCHEU TIAGUE épse MBAGOFA | F90: Emilienne | G90: 696367161 | H90: =[1]SuiviPMTLoyer!I154 -> 25000 | I90: oui
A91: O-B-38 | B91: B-38 | C91: NON | D91: DJI002 | E91: SCI LA CONCORDE RFF | F91: DJIMELI VICTOR | G91: 677 70 73 82 - BP 7868 Yaoundé | H91: =[1]SuiviPMTLoyer!I155 -> 25000 | I91: oui
A92: O-B-39 | B92: B-39 | C92: NON | D92: DJI002 | E92: SCI LA CONCORDE RFF | F92: DJIMELI VICTOR | G92: 677 70 73 82 - BP 7868 Yaoundé | H92: =[1]SuiviPMTLoyer!I156 -> 25000 | I92: oui
A93: O-B-40 | B93: B-40 | C93: WA | D93: TCH007 | E93: TCHOUAMENI | F93: Christiane | G93: 699887671 | H93: =[1]SuiviPMTLoyer!I157 -> 50000 | I93: oui
A94: O-B-41 | B94: B-41 | C94: NON | D94: KES001 | E94: KESSENG | F94: Mireille C. Patricia | G94: 677486363 | H94: =[1]SuiviPMTLoyer!I158 -> 25000 | I94: oui
A95: O-B-42 | B95: B-42 | C95: WA | D95: TEC001 | E95: TECHUIEN BOCHAC | F95: Antoinette | G95: 677156392 | H95: =[1]SuiviPMTLoyer!I159 -> 25000 | I95: oui
A96: O-B-43 | B96: B-43 | C96: WA | D96: OKE001 | E96: OKEZIE IFEANYI CHUKWU | G96: 677810392 | H96: =[1]SuiviPMTLoyer!I160 -> 50000 | I96: oui
A97: O-C-01 | B97: C-1 | C97: NON | D97: ELV001 | E97: ETS. ELVIS & FILS | H97: =[1]SuiviPMTLoyer!I162 -> 40000 | I97: oui
A98: O-C-02 | B98: C-2 | C98: WA | D98: TCH006 | E98: TCHOUTANG EVARISSE | G98: 682151308/677657014 | H98: =[1]SuiviPMTLoyer!I163 -> 40000 | I98: oui
A99: O-C-03 | B99: C-3 | C99: WA | D99: MBA003 | E99: MBANG | G99: 677434329 | H99: =[1]SuiviPMTLoyer!I164 -> 40000 | I99: oui
A100: O-C-04 | B100: C-4 | C100: WA | D100: ANG001 | E100: BOWOMBE TABI | F100: Angèle Berthe | H100: =[1]SuiviPMTLoyer!I165 -> 20000 | I100: oui
A101: O-C-05 | B101: C-5 | C101: NON | D101: ANG001 | E101: BOWOMBE TABI | F101: Angèle Berthe | H101: =[1]SuiviPMTLoyer!I166 -> 20000 | I101: oui
A102: O-C-06 | B102: C-6 | C102: NON | D102: CAP001 | E102: KINFACK WONDIEM Christine Hortense | G102: 697182001/677771263 | H102: =[1]SuiviPMTLoyer!I167 -> 20000 | I102: oui
A103: O-C-07 | B103: C-7 | C103: NON | D103: ELV001 | E103: ETS. ELVIS & FILS | H103: =[1]SuiviPMTLoyer!I168 -> 50000 | I103: oui
A104: O-C-08 | B104: C-8 | C104: WA | D104: SUP001 | E104: SUPERBOYS | H104: =[1]SuiviPMTLoyer!I169 -> 80000 | I104: oui
A105: O-C-09 | B105: C-9 | C105: WA | D105: SUP001 | E105: SUPERBOYS | H105: =[1]SuiviPMTLoyer!I170 -> 40000 | I105: oui
A106: O-C-10 | B106: C-10 | C106: WA | D106: SUP001 | E106: SUPERBOYS | H106: =[1]SuiviPMTLoyer!I171 -> 60000 | I106: oui
A107: O-C-11 | B107: C-11 | C107: WA | D107: NKO002 | E107: NKOUAKEP TCHAPDA | F107: CHRISTELLE GAELLE | G107: 677814022 | H107: =[1]SuiviPMTLoyer!I172 -> 30000 | I107: oui
A108: O-C-12 | B108: C-12 | C108: WA | D108: GAL001 | E108: Gallus Majeste | H108: =[1]SuiviPMTLoyer!I173 -> 20000 | I108: oui
A109: O-C-13 | B109: C-13 | C109: WA | D109: GAL001 | E109: Gallus Majeste | H109: =[1]SuiviPMTLoyer!I174 -> 20000 | I109: oui
A110: O-C-14 | B110: C-14 | C110: WA | D110: SOH002 | E110: SOH CHINDE | F110: ALEXANDRE | G110: 677845814 | H110: =[1]SuiviPMTLoyer!I175 -> 40000 | I110: oui
A111: O-C-15 | B111: C-15 | C111: WA | D111: NGO002 | E111: NGOUANA | H111: =[1]SuiviPMTLoyer!I176 -> 20000 | I111: oui
A112: O-C-16 | B112: C-16 | C112: WA | D112: MAK002 | E112: MAKENNE NGOUNOU | F112: Leslie Vanessa | G112: 659161331 | H112: =[1]SuiviPMTLoyer!I177 -> 20000 | I112: oui
A113: O-C-17 | B113: C-17 | C113: NON | D113: SAI001 | E113: SAIDOU | F113: BERNARD | G113: 677680659/680247016 | H113: =[1]SuiviPMTLoyer!I178 -> 40000 | I113: oui
A114: O-C-18 | B114: C-18 | C114: NON | D114: ELV001 | E114: ETS. ELVIS & FILS | H114: =[1]SuiviPMTLoyer!I179 -> 20000 | I114: oui
A115: O-C-19 | B115: C-19 | C115: NON | D115: KOU005 | E115: KOUACHIE TANKEU épse NDOMBE | F115: Editte Leonorine | G115: 677635269 | H115: =[1]SuiviPMTLoyer!I180 -> 20000 | I115: oui
A116: O-C-20 | B116: C-20 | C116: NON | D116: DJI002 | E116: SCI LA CONCORDE RFF | F116: DJIMELI VICTOR | G116: 677 70 73 82 - BP 7868 Yaoundé | H116: =[1]SuiviPMTLoyer!I181 -> 20000 | I116: oui
A117: O-C-21 | B117: C-21 | C117: NON | D117: DJI002 | E117: SCI LA CONCORDE RFF | F117: DJIMELI VICTOR | G117: 677 70 73 82 - BP 7868 Yaoundé | H117: =[1]SuiviPMTLoyer!I182 -> 20000 | I117: oui
A118: O-C-22 | B118: C-22 | C118: NON | D118: DJI002 | E118: SCI LA CONCORDE RFF | F118: DJIMELI VICTOR | G118: 677 70 73 82 - BP 7868 Yaoundé | H118: =[1]SuiviPMTLoyer!I183 -> 20000 | I118: oui
A119: O-C-23 | B119: C-23 | C119: NON | D119: SOH003 | E119: TALLA SOH | F119: THEODORE MARCEL | G119: 677691104 | H119: =[1]SuiviPMTLoyer!I184 -> 20000 | I119: oui
A120: O-C-24 | B120: C-24 | C120: WA | D120: TCH005 | E120: TCHOUMEN | F120: MELANIE | G120: 699933340 | H120: =[1]SuiviPMTLoyer!I185 -> 20000 | I120: oui
A121: O-C-25 | B121: C-25 | C121: WA | D121: TCH006 | E121: TCHOUTANG EVARISSE | G121: 682151308/677657014 | H121: =[1]SuiviPMTLoyer!I186 -> 20000 | I121: oui
A122: O-C-26 | B122: C-26 | C122: NON | D122: ADA001 | E122: ADAMO | F122: MALAÏ | G122: 677598382 | H122: =[1]SuiviPMTLoyer!I187 -> 20000 | I122: oui
A123: O-C-27 | B123: C-27 | C123: NON | D123: SOH004 | E123: SOH ÉPSE MAGNI | F123: ELISE | G123: 677691104 | H123: =[1]SuiviPMTLoyer!I188 -> 20000 | I123: oui
A124: O-C-28 | B124: C-28 | C124: NON | D124: MAL001 | E124: MALLA | F124: RÉGINE | G124: 673085868 | H124: =[1]SuiviPMTLoyer!I189 -> 20000 | I124: oui
A125: O-C-29 | B125: C-29 | C125: NON | D125: CHU001 | E125: CHUISSEU TANKEU CEDRIX VALTAIRE | H125: =[1]SuiviPMTLoyer!I190 -> 20000 | I125: oui
A126: O-D-01 | B126: D-1 | C126: WA | D126: EDO001 | E126: SCI IMMODEV | F126: MVOGO Armand Fidèle | G126: 677837462 / 663172781 | H126: =[1]SuiviPMTLoyer!I192 -> 50000 | I126: oui
A127: O-D-02 | B127: D-2 | C127: WA | D127: EDO001 | E127: SCI IMMODEV | F127: MVOGO Armand Fidèle | G127: 677837462 / 663172781 | H127: =[1]SuiviPMTLoyer!I193 -> 50000 | I127: oui
A128: O-D-03 | B128: D-3 | C128: WA | D128: EDO001 | E128: SCI IMMODEV | F128: MVOGO Armand Fidèle | G128: 677837462 / 663172781 | H128: =[1]SuiviPMTLoyer!I194 -> 50000 | I128: oui
A129: O-D-04 | B129: D-4 | C129: WA | D129: INF001 | E129: INFIRMERIE | H129: =[1]SuiviPMTLoyer!I195 -> 50000 | I129: oui
A130: O-D-05 | B130: D-5 | C130: WA | D130: WAN002 | E130: WANDJI | F130: PHILIPPE | G130: 699852591 / 699290187 | H130: =[1]SuiviPMTLoyer!I196 -> 50000 | I130: oui
A131: O-D-06 | B131: D-6 | C131: WA | D131: MAI001 | E131: Super-Maire | H131: =[1]SuiviPMTLoyer!I197 -> 50000 | I131: oui
A132: O-D-07 | B132: D-7 | C132: NON | D132: ETO001 | E132: ETOUNDI ESSOMBA | F132: Clément Cyrille | G132: 697109993, 698085126 | H132: =[1]SuiviPMTLoyer!I198 -> 50000 | I132: oui
A133: O-D-08 | B133: D-8 | C133: WA | D133: MAI001 | E133: Super-Maire | H133: =[1]SuiviPMTLoyer!I199 -> 50000 | I133: oui
A134: O-D-09 | B134: D-9 | C134: NON | D134: NYA001 | E134: NYADA ATANGANA | F134: Michel Robert | G134: 658278499 | H134: =[1]SuiviPMTLoyer!I200 -> 15000 | I134: oui
A135: O-D-10 | B135: D-10 | C135: NON | D135: MAL004 | E135: FOMENA LONMENE | F135: Nathan | G135: 697472185 | H135: =[1]SuiviPMTLoyer!I201 -> 15000 | I135: oui
A136: O-D-11 | B136: D-11 | C136: NON | D136: MAI001 | E136: Super-Maire | H136: =[1]SuiviPMTLoyer!I202 -> 15000 | I136: oui
A137: O-D-12 | B137: D-12 | C137: NON | D137: MEK001 | E137: MELI KEABOU | F137: Gabriel | G137: 699560527 | H137: =[1]SuiviPMTLoyer!I203 -> 15000 | I137: oui
A138: O-E-01 | B138: E-1 | C138: NON | D138: ANG001 | E138: BOWOMBE TABI | F138: Angèle Berthe | H138: =[1]SuiviPMTLoyer!I205 -> 25000 | I138: oui
A139: O-E-02 | B139: E-2 | C139: NON | D139: ANG001 | E139: BOWOMBE TABI | F139: Angèle Berthe | H139: =[1]SuiviPMTLoyer!I206 -> 25000 | I139: oui
A140: O-E-03 | B140: E-3 | C140: NON | D140: ELV001 | E140: ETS. ELVIS & FILS | H140: =[1]SuiviPMTLoyer!I207 -> 40000 | I140: oui
A141: O-E-04 | B141: E-4 | C141: NON | D141: ELV001 | E141: ETS. ELVIS & FILS | H141: =[1]SuiviPMTLoyer!I208 -> 50000 | I141: oui
A142: O-E-05 | B142: E-5 | C142: WA | D142: GAL001 | E142: Gallus Majeste | H142: =[1]SuiviPMTLoyer!I209 -> 50000 | I142: oui
A143: O-E-06 | B143: E-6 | C143: NON | D143: ELV001 | E143: ETS. ELVIS & FILS | H143: =[1]SuiviPMTLoyer!I210 -> 50000 | I143: oui
A144: O-E-07 | B144: E-7 | C144: WA | D144: PET001 | E144: PETANG MAGNE | G144: 699754504 | H144: =[1]SuiviPMTLoyer!I211 -> 50000 | I144: oui
A145: O-E-08 | B145: E-8 | C145: WA | D145: KEV001 | E145: WENGA YOVOP épse FOJOU | F145: Sybille Clarisse | G145: 675228441 | H145: =[1]SuiviPMTLoyer!I212 -> 50000 | I145: oui
A146: O-E-09 | B146: E-9 | C146: NON | D146: SUR001 | E146: SURGIE | G146: 696792190 | H146: =[1]SuiviPMTLoyer!I213 -> 50000 | I146: oui
A147: O-E-10 | B147: E-10 | C147: WA | D147: ANG001 | E147: BOWOMBE TABI | F147: Angèle Berthe | H147: =[1]SuiviPMTLoyer!I214 -> 25000 | I147: oui
A148: O-E-11 | B148: E-11 | C148: WA | D148: SOF001 | E148: SOFFACK épse NGATOM | F148: Edivige Angèle | G148: 699321050 | H148: =[1]SuiviPMTLoyer!I215 -> 25000 | I148: oui
A149: O-E-12 | B149: E-12 | C149: NON | D149: ELV001 | E149: ETS. ELVIS & FILS | H149: =[1]SuiviPMTLoyer!I216 -> 60000 | I149: oui
A150: O-E-13 | B150: E-13 | C150: NON | D150: ELV001 | E150: ETS. ELVIS & FILS | H150: =[1]SuiviPMTLoyer!I217 -> 50000 | I150: oui
A151: O-E-14 | B151: E-14 | C151: WA | D151: TOU001 | E151: TOUKEM KAMOLACK | F151: Leila | G151: 677102600 | H151: =[1]SuiviPMTLoyer!I218 -> 25000 | I151: oui
A152: O-E-15 | B152: E-15 | C152: NON | D152: SIM001 | E152: TCHABOU TCHABOU | F152: FLANQUIR SIMPLICE | G152: 677741667 | H152: =[1]SuiviPMTLoyer!I219 -> 23000 | I152: oui
A153: O-E-16 | B153: E-16 | C153: NON | D153: FOK001 | E153: FOKAM | F153: Genevieve | G153: 699 25 63 60 | H153: =[1]SuiviPMTLoyer!I220 -> 50000 | I153: oui
A154: O-E-17 | B154: E-17 | C154: NON | D154: NGO004 | E154: NGONGANG TANKEU | F154: DORINE | G154: 673151943 | H154: =[1]SuiviPMTLoyer!I221 -> 25000 | I154: oui
A155: O-E-18 | B155: E-18 | C155: WA | D155: KOU003 | E155: KOUNTEU | F155: BENJAMIN | G155: 699907064 | H155: =[1]SuiviPMTLoyer!I222 -> 25000 | I155: oui
A156: O-E-19 | B156: E-19 | C156: NON | D156: DJI002 | E156: SCI LA CONCORDE RFF | F156: DJIMELI VICTOR | G156: 677 70 73 82 - BP 7868 Yaoundé | H156: =[1]SuiviPMTLoyer!I223 -> 50000 | I156: oui
A157: O-E-20 | B157: E-20 | C157: WA | D157: MAN001 | E157: MANKEU NAOUSSI | F157: Alvine | G157: 695303271 | H157: =[1]SuiviPMTLoyer!I224 -> 50000 | I157: oui
A158: O-E-21 | B158: E-21 | C158: WA | D158: TAK001 | E158: TAKOUTSING | F158: DOMINIQUE | G158: 677845814 | H158: =[1]SuiviPMTLoyer!I225 -> 50000 | I158: oui
A159: O-E-22 | B159: E-22 | C159: WA | D159: NTC001 | E159: NTCHINGUE TUEPMA | F159: Elvis | G159: 699910977 | H159: =[1]SuiviPMTLoyer!I226 -> 50000 | I159: oui
A160: O-E-23 | B160: E-23 | C160: WA | D160: BRI001 | E160: KADZI TCHINDA | F160: Brice | G160: 674 91 13 91 | H160: =[1]SuiviPMTLoyer!I227 -> 50000 | I160: oui
A161: O-E-24 | B161: E-24 | C161: NON | D161: ELL001 | E161: ELLA | F161: Josue | G161: 699 44 31 21 | H161: =[1]SuiviPMTLoyer!I228 -> 25000 | I161: oui
A162: O-E-25 | B162: E-25 | C162: NON | D162: ELV001 | E162: ETS. ELVIS & FILS | H162: =[1]SuiviPMTLoyer!I229 -> 25000 | I162: oui
A163: O-F-01 | B163: F-1 | C163: WA | D163: KAT001 | E163: KALTOUMI | F163: HAROUNA | G163: 699811839/676672060/243387504 | H163: =[1]SuiviPMTLoyer!I231 -> 50000 | I163: oui
A164: O-F-02 | B164: F-2 | C164: NON | D164: DJI002 | E164: SCI LA CONCORDE RFF | F164: DJIMELI VICTOR | G164: 677 70 73 82 - BP 7868 Yaoundé | H164: =[1]SuiviPMTLoyer!I232 -> 55000 | I164: oui
A165: O-F-03 | B165: F-3 | C165: NON | D165: DJI002 | E165: SCI LA CONCORDE RFF | F165: DJIMELI VICTOR | G165: 677 70 73 82 - BP 7868 Yaoundé | H165: =[1]SuiviPMTLoyer!I233 -> 55000 | I165: oui
A166: O-F-04 | B166: F-4 | C166: NON | D166: ELV001 | E166: ETS. ELVIS & FILS | H166: =[1]SuiviPMTLoyer!I234 -> 55000 | I166: oui
A167: O-F-05 | B167: F-5 | C167: NON | D167: ELV001 | E167: ETS. ELVIS & FILS | H167: =[1]SuiviPMTLoyer!I235 -> 75000 | I167: oui
A168: O-F-06 | B168: F-6 | C168: NON | D168: DJI002 | E168: SCI LA CONCORDE RFF | F168: DJIMELI VICTOR | G168: 677 70 73 82 - BP 7868 Yaoundé | H168: =[1]SuiviPMTLoyer!I236 -> 55000 | I168: oui
A169: O-F-07 | B169: F-7 | C169: NON | D169: EMM001 | E169: IHEKWERE CHIMEZIE | F169: Michael | G169: 673082448 / 693149431 | H169: =[1]SuiviPMTLoyer!I237 -> 55000 | I169: oui
A170: O-F-08 | B170: F-8 | C170: WA | D170: KAM001 | E170: KAMOLACK | F170: Guy | G170: 674392301 | H170: =[1]SuiviPMTLoyer!I238 -> 55000 | I170: oui
A171: O-F-09 | B171: F-9 | C171: NON | D171: ELV001 | E171: ETS. ELVIS & FILS | H171: =[1]SuiviPMTLoyer!I239 -> 55000 | I171: oui
A172: O-F-10 | B172: F-10 | C172: NON | D172: FLO001 | E172: La Floralienne | F172: Bekono Nanga Marguerite | H172: =[1]SuiviPMTLoyer!I240 -> 50000 | I172: oui
A173: O-F-11 | B173: F-11 | C173: NON | D173: ELV001 | E173: ETS. ELVIS & FILS | H173: =[1]SuiviPMTLoyer!I241 -> 55000 | I173: oui
A174: O-F-12 | B174: F-12 | C174: NON | D174: ELV001 | E174: ETS. ELVIS & FILS | H174: =[1]SuiviPMTLoyer!I242 -> 55000 | I174: oui
A175: O-F-13 | B175: F-13 | C175: WA | D175: PRI001 | E175: PRINCE SPORT SARL | F175: DJOUMESSI Pierre | G175: 699944581 | H175: =[1]SuiviPMTLoyer!I243 -> 55000 | I175: oui
A176: O-F-14 | B176: F-14 | C176: NON | D176: ELV001 | E176: ETS. ELVIS & FILS | H176: =[1]SuiviPMTLoyer!I244 -> 55000 | I176: oui
A177: O-F-15 | B177: F-15 | C177: NON | D177: MAI001 | E177: Super-Maire | H177: =[1]SuiviPMTLoyer!I245 -> 50000 | I177: oui
A178: 128/1 | B178: =A178 -> 128/1 | C178: WA | D178: POU001 | E178: POUEME | F178: Hélène | G178: 677076808 | H178: 65000 | I178: oui
A179: 130/2 | B179: 130/2 | C179: WA | D179: DJO002 | E179: DJOUOKEP | F179: Pascal | G179: 677737378 | H179: 65000 | I179: oui
A180: 132/3 | B180: 132/3 | C180: WA | D180: FOP001 | E180: FOPPI | G180: 699755645/242018182 | H180: 65000 | I180: oui
A181: 134/4 | B181: 134/4 | C181: WA | D181: DJO003 | E181: DJOU | F181: Samuel | G181: 673468429 | H181: 65000 | I181: oui
A182: 136/5 | B182: 136/5 | C182: WA | D182: TOG003 | E182: TOGNIA | G182: 677708452 | H182: 65000 | I182: oui
A183: 138/6 | B183: 138/6 | C183: WA | D183: WZO001 | E183: WZOUBOU | F183: Jean Claude | G183: 677786438 | H183: 65000 | I183: oui
A184: 140/7 | B184: 140/7 | C184: WA | D184: YEP001 | E184: YEPMOU | F184: Charles | G184: 699547360 | H184: 65000 | I184: oui
A185: 142/8 | B185: 142/8 | C185: WA | D185: YIM001 | E185: YIMDJEU | F185: Lambert | G185: 677201466 | H185: 65000 | I185: oui
A186: 144/9 | B186: 144/9 | C186: WA | D186: YIM001 | E186: YIMDJEU | F186: Lambert | G186: 677201466 | H186: 65000 | I186: oui
A187: 146/10 | B187: 146/10 | C187: WA | D187: SAN003 | E187: SANDJANG TANKEU | F187: Mérimée | G187: 677814022/699061889 | H187: =500000/12 -> 41666.66667 | I187: oui
A188: 148/11 | B188: 148/11 | C188: WA | D188: IHE001 | E188: IHEKWERE | F188: Chimezie | G188: 673082448 | H188: 65000 | I188: oui
A189: 150/12 | B189: 150/12 | C189: WA | D189: NEM001 | E189: NEMBA épse NANKAM | F189: Lucie Blandine | G189: 677737503 | H189: 65000 | I189: oui
A190: G-A-01 | B190: G-A-01 | C190: WA | D190: KEN001 | E190: KENMEGNE KOUOKAM | G190: 699805670 | H190: 50000 | I190: oui
A191: G-A-02 | B191: G-A-02 | C191: WA | D191: NOU001 | E191: NOUBISSI | F191: Thérèse | G191: 677737109 | H191: 50000 | I191: oui
A192: G-A-03 | B192: G-A-03 | C192: WA | D192: SOH001 | E192: SOH | F192: Victor | G192: 677691104 | H192: 50000 | I192: oui
A193: G-A-04 | B193: G-A-04 | C193: WA | D193: NZO001 | E193: NZOKOU | F193: Bernard | G193: 675231888 | H193: 50000 | I193: oui
A194: G-A-05 | B194: G-A-05 | C194: WA | D194: NZO001 | E194: NZOKOU | F194: Bernard | G194: 675231888 | H194: 50000 | I194: oui
A195: G-A-06 | B195: G-A-06 | C195: WA | D195: NGU001 | E195: NGUENANG | F195: Honoré | G195: 677630894 | H195: 50000 | I195: oui
A196: G-A-07 | B196: G-A-07 | C196: WA | D196: MEK001 | E196: MELI KEABOU | F196: Gabriel | G196: 699560527 | H196: 50000 | I196: oui
A197: G-A-08 | B197: G-A-08 | C197: WA | D197: KOM001 | E197: KOMBOU | F197: Martin | G197: 677686429 | H197: 50000 | I197: oui
A198: G-A-09 | B198: G-A-09 | C198: WA | D198: KUI001 | E198: KUISSU ép Tognia | G198: 697328597 | H198: 50000 | I198: oui
A199: G-A-10 | B199: G-A-10 | C199: WA | D199: LON002 | E199: LONTSI JITSA épse MELI KEABOU | F199: Édith | G199: 699560527 | H199: 50000 | I199: oui
A200: G-A-11 | B200: G-A-11 | C200: WA | D200: KAM001 | E200: KAMOLACK | F200: Guy | G200: 674392301 | H200: 50000 | I200: oui
... 33 more rows

Sheet TempEtatCpte
A1: SCI ZANGUENA
A2: BP 14360 – YAOUNDÉ
A3: NIU M061412090212U
A4: Tél : +237 658 413 931
A5: Ongola.cm
A6: Marché Ongola Market
A7: ÉTAT DE COMPTE
D8: 02 septembre 2025
A10: ADRESSÉ À : | C10: CODE CLIENT | D10: FOK002
A11: FOKAM | C11: BOUTIQUE | D11: G-B-25
A12: Martin | C12: LOYER MENSUEL | D12: 50 000 FCFA
A13: YAOUNDÉ
A14: 699558420
A20: 2022
A21: Mois | B21: Date Paiement | C21: Montant Payé | D21: Remarque
A22: janvier | B22: 2022-02-14 | C22: 50 000 FCFA | D22: Payé
A23: février | B23: 2022-03-10 | C23: 50 000 FCFA | D23: Payé
A24: mars | B24: 2022-04-14 | C24: 50 000 FCFA | D24: Payé
A25: avril | B25: 2022-05-12 | C25: 50 000 FCFA | D25: Payé
A26: mai | B26: 2022-06-14 | C26: 50 000 FCFA | D26: Payé
A27: juin | B27: 2022-07-20 | C27: 50 000 FCFA | D27: Payé
A28: juillet | B28: 2022-08-17 | C28: 50 000 FCFA | D28: Payé
A29: août | B29: 2022-10-11 | C29: 50 000 FCFA | D29: Payé
A30: septembre | B30: 2022-10-11 | C30: 50 000 FCFA | D30: Payé
A31: octobre | B31: 2022-11-11 | C31: 50 000 FCFA | D31: Payé
A32: novembre | B32: 2022-12-16 | C32: 50 000 FCFA | D32: Payé
A33: décembre | B33: 2023-01-11 | C33: 50 000 FCFA | D33: Payé
A35: 2023
A36: Mois | B36: Date Paiement | C36: Montant Payé | D36: Remarque
A37: janvier | B37: 2023-02-15 | C37: 50 000 FCFA | D37: Payé
A38: février | B38: 2023-03-15 | C38: 50 000 FCFA | D38: Payé
A39: mars | B39: 2023-04-26 | C39: 50 000 FCFA | D39: Payé
A40: avril | B40: 2023-06-14 | C40: 50 000 FCFA | D40: Payé
A41: mai | B41: 2023-11-07 | C41: 50 000 FCFA | D41: Payé
A42: juin | B42: 2023-11-07 | C42: 50 000 FCFA | D42: Payé
A43: juillet | B43: 2023-09-01 | C43: 50 000 FCFA | D43: Payé
A44: août | B44: 2023-09-11 | C44: 50 000 FCFA | D44: Payé
A45: septembre | B45: 2023-10-11 | C45: 50 000 FCFA | D45: Payé
A46: octobre | B46: 2023-11-13 | C46: 50 000 FCFA | D46: Payé
A47: novembre | B47: 2023-12-12 | C47: 50 000 FCFA | D47: Payé
A48: décembre | B48: 2024-01-11 | C48: 50 000 FCFA | D48: Payé
A50: 2024
A51: Mois | B51: Date Paiement | C51: Montant Payé | D51: Remarque
A52: janvier | B52: 2024-02-16 | C52: 50 000 FCFA | D52: Payé
A53: février | B53: 2024-03-14 | C53: 50 000 FCFA | D53: Payé
A54: mars | B54: 2024-04-18 | C54: 50 000 FCFA | D54: Payé
A55: avril | B55: 2024-05-10 | C55: 50 000 FCFA | D55: Payé
A56: mai | B56: 2024-06-11 | C56: 50 000 FCFA | D56: Payé
A57: juin | B57: 2024-07-23 | C57: 50 000 FCFA | D57: Payé
A58: juillet | B58: 2024-08-26 | C58: 50 000 FCFA | D58: Payé
A59: août | B59: 2024-09-19 | C59: 50 000 FCFA | D59: Payé
A60: septembre | B60: 2024-10-15 | C60: 50 000 FCFA | D60: Payé
A61: octobre | B61: 2024-10-13 | C61: 50 000 FCFA | D61: Payé
A62: novembre | B62: 2024-12-16 | C62: 50 000 FCFA | D62: Payé
A63: décembre | B63: 2025-01-28 | C63: 50 000 FCFA | D63: Payé
A65: 2025
A66: Mois | B66: Date Paiement | C66: Montant Payé | D66: Remarque
A67: janvier | B67: 2025-02-24 | C67: 50 000 FCFA | D67: Payé
A68: février | B68: 2025-03-18 | C68: 50 000 FCFA | D68: Payé
A69: mars | B69: 2025-04-17 | C69: 50 000 FCFA | D69: Payé
A70: avril | B70: 2025-05-14 | C70: 50 000 FCFA | D70: Payé
A71: mai | B71: 2025-06-11 | C71: 50 000 FCFA | D71: Payé
A72: juin | B72: 2025-07-16 | C72: 50 000 FCFA | D72: Payé
A73: juillet | B73: Aucun Paiement Reçu | C73: 0 FCFA | D73: RETARD
A74: août | B74: Aucun Paiement Reçu | C74: 0 FCFA | D74: RETARD
A75: septembre | B75: Aucun Paiement Reçu | C75: 0 FCFA | D75: À payer
A76: octobre | B76: Dû le 5 octobre | C76: 0 FCFA | D76: Dû le 5 octobre
A77: novembre | B77: Dû le 5 novembre | C77: 0 FCFA | D77: Dû le 5 novembre
A78: décembre | B78: Dû le 5 décembre | C78: 0 FCFA | D78: Dû le 5 décembre

Sheet LoyersConsolide
A1: =SuiviPMTLoyers2022!A1 -> Boutique | B1: =SuiviPMTLoyers2022!B1 -> Mois dû | C1: =SuiviPMTLoyers2022!C1 -> Montant | D1: =SuiviPMTLoyers2022!D1 -> Payé? | E1: =SuiviPMTLoyers2022!E1 -> Date PMT | F1: =SuiviPMTLoyers2022!F1 -> NumQuitt | G1: =SuiviPMTLoyers2022!G1 -> GL Caisse | H1: =SuiviPMTLoyers2022!H1 -> Payé à | I1: =SuiviPMTLoyers2022!I1 -> Emettre EDC? | J1: =SuiviPMTLoyers2022!J1 -> Code Locataire | K1: =SuiviPMTLoyers2022!K1 -> Nom Locataire | L1: =SuiviPMTLoyers2022!L1 -> Prénom Locataire | M1: =SuiviPMTLoyers2022!M1 -> Tel Locataire | N1: =SuiviPMTLoyers2022!N1 -> RemarqueMois
A2: =SuiviPMTLoyers2022!A2 -> 128/1 | B2: =SuiviPMTLoyers2022!B2 -> 2022-01-01 | C2: =SuiviPMTLoyers2022!C2 -> 65000 | D2: =IF(E2>54000,"non payé","oui") -> oui | E2: =[2]LoyersConsolide!E2 -> 2022-02-14 | F2: =[2]LoyersConsolide!F2 -> 0 | G2: =[2]LoyersConsolide!G2 -> 0 | H2: =[2]LoyersConsolide!H2 -> 0 | I2: =SuiviPMTLoyers2022!I2 -> 00:00:00 | J2: =SuiviPMTLoyers2022!J2 -> 00:00:00 | K2: =SuiviPMTLoyers2022!K2 -> 00:00:00 | L2: =SuiviPMTLoyers2022!L2 -> 00:00:00 | M2: =SuiviPMTLoyers2022!M2 -> 00:00:00 | N2: =SuiviPMTLoyers2022!N2 -> 00:00:00
A3: =SuiviPMTLoyers2022!A3 -> 128/1 | B3: =SuiviPMTLoyers2022!B3 -> 2022-02-01 | C3: =SuiviPMTLoyers2022!C3 -> 65000 | D3: oui | E3: =[2]LoyersConsolide!E3 -> 2022-02-14 | F3: =[2]LoyersConsolide!F3 -> 0 | G3: =[2]LoyersConsolide!G3 -> 0 | H3: =[2]LoyersConsolide!H3 -> 0 | I3: =SuiviPMTLoyers2022!I3 -> 0 | J3: =SuiviPMTLoyers2022!J3 -> 0 | K3: =SuiviPMTLoyers2022!K3 -> 0 | L3: =SuiviPMTLoyers2022!L3 -> 0 | M3: =SuiviPMTLoyers2022!M3 -> 0 | N3: =SuiviPMTLoyers2022!N3 -> 0
A4: =SuiviPMTLoyers2022!A4 -> 128/1 | B4: =SuiviPMTLoyers2022!B4 -> 2022-03-01 | C4: =SuiviPMTLoyers2022!C4 -> 65000 | D4: oui | E4: =[2]LoyersConsolide!E4 -> 2022-02-14 | F4: =[2]LoyersConsolide!F4 -> 0 | G4: =[2]LoyersConsolide!G4 -> 0 | H4: =[2]LoyersConsolide!H4 -> 0 | I4: =SuiviPMTLoyers2022!I4 -> 0 | J4: =SuiviPMTLoyers2022!J4 -> 0 | K4: =SuiviPMTLoyers2022!K4 -> 0 | L4: =SuiviPMTLoyers2022!L4 -> 0 | M4: =SuiviPMTLoyers2022!M4 -> 0 | N4: =SuiviPMTLoyers2022!N4 -> 0
A5: =SuiviPMTLoyers2022!A5 -> 128/1 | B5: =SuiviPMTLoyers2022!B5 -> 2022-04-01 | C5: =SuiviPMTLoyers2022!C5 -> 65000 | D5: oui | E5: =[2]LoyersConsolide!E5 -> 2022-02-14 | F5: =[2]LoyersConsolide!F5 -> 0 | G5: =[2]LoyersConsolide!G5 -> 0 | H5: =[2]LoyersConsolide!H5 -> 0 | I5: =SuiviPMTLoyers2022!I5 -> 0 | J5: =SuiviPMTLoyers2022!J5 -> 0 | K5: =SuiviPMTLoyers2022!K5 -> 0 | L5: =SuiviPMTLoyers2022!L5 -> 0 | M5: =SuiviPMTLoyers2022!M5 -> 0 | N5: =SuiviPMTLoyers2022!N5 -> 0
A6: =SuiviPMTLoyers2022!A6 -> 128/1 | B6: =SuiviPMTLoyers2022!B6 -> 2022-05-01 | C6: =SuiviPMTLoyers2022!C6 -> 65000 | D6: oui | E6: =[2]LoyersConsolide!E6 -> 2022-02-14 | F6: =[2]LoyersConsolide!F6 -> 0 | G6: =[2]LoyersConsolide!G6 -> 0 | H6: =[2]LoyersConsolide!H6 -> 0 | I6: =SuiviPMTLoyers2022!I6 -> 0 | J6: =SuiviPMTLoyers2022!J6 -> 0 | K6: =SuiviPMTLoyers2022!K6 -> 0 | L6: =SuiviPMTLoyers2022!L6 -> 0 | M6: =SuiviPMTLoyers2022!M6 -> 0 | N6: =SuiviPMTLoyers2022!N6 -> 0
A7: =SuiviPMTLoyers2022!A7 -> 128/1 | B7: =SuiviPMTLoyers2022!B7 -> 2022-06-01 | C7: =SuiviPMTLoyers2022!C7 -> 65000 | D7: oui | E7: =[2]LoyersConsolide!E7 -> 2022-02-14 | F7: =[2]LoyersConsolide!F7 -> 0 | G7: =[2]LoyersConsolide!G7 -> 0 | H7: =[2]LoyersConsolide!H7 -> 0 | I7: =SuiviPMTLoyers2022!I7 -> 0 | J7: =SuiviPMTLoyers2022!J7 -> 0 | K7: =SuiviPMTLoyers2022!K7 -> 0 | L7: =SuiviPMTLoyers2022!L7 -> 0 | M7: =SuiviPMTLoyers2022!M7 -> 0 | N7: =SuiviPMTLoyers2022!N7 -> 0
A8: =SuiviPMTLoyers2022!A8 -> 128/1 | B8: =SuiviPMTLoyers2022!B8 -> 2022-07-01 | C8: =SuiviPMTLoyers2022!C8 -> 65000 | D8: oui | E8: =[2]LoyersConsolide!E8 -> 2022-10-11 | F8: =[2]LoyersConsolide!F8 -> 0 | G8: =[2]LoyersConsolide!G8 -> 0 | H8: =[2]LoyersConsolide!H8 -> 0 | I8: =SuiviPMTLoyers2022!I8 -> 0 | J8: =SuiviPMTLoyers2022!J8 -> 0 | K8: =SuiviPMTLoyers2022!K8 -> 0 | L8: =SuiviPMTLoyers2022!L8 -> 0 | M8: =SuiviPMTLoyers2022!M8 -> 0 | N8: =SuiviPMTLoyers2022!N8 -> 0
A9: =SuiviPMTLoyers2022!A9 -> 128/1 | B9: =SuiviPMTLoyers2022!B9 -> 2022-08-01 | C9: =SuiviPMTLoyers2022!C9 -> 65000 | D9: oui | E9: =[2]LoyersConsolide!E9 -> 2022-10-11 | F9: =[2]LoyersConsolide!F9 -> 0 | G9: =[2]LoyersConsolide!G9 -> 0 | H9: =[2]LoyersConsolide!H9 -> 0 | I9: =SuiviPMTLoyers2022!I9 -> 0 | J9: =SuiviPMTLoyers2022!J9 -> 0 | K9: =SuiviPMTLoyers2022!K9 -> 0 | L9: =SuiviPMTLoyers2022!L9 -> 0 | M9: =SuiviPMTLoyers2022!M9 -> 0 | N9: =SuiviPMTLoyers2022!N9 -> 0
A10: =SuiviPMTLoyers2022!A10 -> 128/1 | B10: =SuiviPMTLoyers2022!B10 -> 2022-09-01 | C10: =SuiviPMTLoyers2022!C10 -> 65000 | D10: oui | E10: =[2]LoyersConsolide!E10 -> 2022-10-11 | F10: =[2]LoyersConsolide!F10 -> 0 | G10: =[2]LoyersConsolide!G10 -> 0 | H10: =[2]LoyersConsolide!H10 -> 0 | I10: =SuiviPMTLoyers2022!I10 -> 0 | J10: =SuiviPMTLoyers2022!J10 -> 0 | K10: =SuiviPMTLoyers2022!K10 -> 0 | L10: =SuiviPMTLoyers2022!L10 -> 0 | M10: =SuiviPMTLoyers2022!M10 -> 0 | N10: =SuiviPMTLoyers2022!N10 -> 0
A11: =SuiviPMTLoyers2022!A11 -> 128/1 | B11: =SuiviPMTLoyers2022!B11 -> 2022-10-01 | C11: =SuiviPMTLoyers2022!C11 -> 65000 | D11: oui | E11: =[2]LoyersConsolide!E11 -> 2022-10-11 | F11: =[2]LoyersConsolide!F11 -> 0 | G11: =[2]LoyersConsolide!G11 -> 0 | H11: =[2]LoyersConsolide!H11 -> 0 | I11: =SuiviPMTLoyers2022!I11 -> 0 | J11: =SuiviPMTLoyers2022!J11 -> 0 | K11: =SuiviPMTLoyers2022!K11 -> 0 | L11: =SuiviPMTLoyers2022!L11 -> 0 | M11: =SuiviPMTLoyers2022!M11 -> 0 | N11: =SuiviPMTLoyers2022!N11 -> 0
A12: =SuiviPMTLoyers2022!A12 -> 128/1 | B12: =SuiviPMTLoyers2022!B12 -> 2022-11-01 | C12: =SuiviPMTLoyers2022!C12 -> 65000 | D12: oui | E12: =[2]LoyersConsolide!E12 -> 2022-12-28 | F12: =[2]LoyersConsolide!F12 -> 0 | G12: =[2]LoyersConsolide!G12 -> 0 | H12: =[2]LoyersConsolide!H12 -> 0 | I12: =SuiviPMTLoyers2022!I12 -> 0 | J12: =SuiviPMTLoyers2022!J12 -> 0 | K12: =SuiviPMTLoyers2022!K12 -> 0 | L12: =SuiviPMTLoyers2022!L12 -> 0 | M12: =SuiviPMTLoyers2022!M12 -> 0 | N12: =SuiviPMTLoyers2022!N12 -> 0
A13: =SuiviPMTLoyers2022!A13 -> 128/1 | B13: =SuiviPMTLoyers2022!B13 -> 2022-12-01 | C13: =SuiviPMTLoyers2022!C13 -> 65000 | D13: oui | E13: =[2]LoyersConsolide!E13 -> 2022-12-28 | F13: =[2]LoyersConsolide!F13 -> 0 | G13: =[2]LoyersConsolide!G13 -> 0 | H13: =[2]LoyersConsolide!H13 -> 0 | I13: =SuiviPMTLoyers2022!I13 -> 00:00:00 | J13: =SuiviPMTLoyers2022!J13 -> 00:00:00 | K13: =SuiviPMTLoyers2022!K13 -> 00:00:00 | L13: =SuiviPMTLoyers2022!L13 -> 00:00:00 | M13: =SuiviPMTLoyers2022!M13 -> 00:00:00 | N13: =SuiviPMTLoyers2022!N13 -> 00:00:00
A14: =SuiviPMTLoyers2023!A2 -> 128/1 | B14: =SuiviPMTLoyers2023!B2 -> 2023-01-01 | C14: =SuiviPMTLoyers2023!C2 -> 65000 | D14: oui | E14: =[2]LoyersConsolide!E14 -> 2023-03-15 | F14: =[2]LoyersConsolide!F14 -> 0 | G14: =[2]LoyersConsolide!G14 -> 0 | H14: =[2]LoyersConsolide!H14 -> 0 | I14: =SuiviPMTLoyers2023!I2 -> 0 | J14: =SuiviPMTLoyers2023!J2 -> 0 | K14: =SuiviPMTLoyers2023!K2 -> 0 | L14: =SuiviPMTLoyers2023!L2 -> 0 | M14: =SuiviPMTLoyers2023!M2 -> 0 | N14: =SuiviPMTLoyers2023!N2 -> 0
A15: =SuiviPMTLoyers2023!A3 -> 128/1 | B15: =SuiviPMTLoyers2023!B3 -> 2023-02-01 | C15: =SuiviPMTLoyers2023!C3 -> 65000 | D15: oui | E15: =[2]LoyersConsolide!E15 -> 2023-03-15 | F15: =[2]LoyersConsolide!F15 -> 0 | G15: =[2]LoyersConsolide!G15 -> 0 | H15: =[2]LoyersConsolide!H15 -> 0 | I15: =SuiviPMTLoyers2023!I3 -> 0 | J15: =SuiviPMTLoyers2023!J3 -> 0 | K15: =SuiviPMTLoyers2023!K3 -> 0 | L15: =SuiviPMTLoyers2023!L3 -> 0 | M15: =SuiviPMTLoyers2023!M3 -> 0 | N15: =SuiviPMTLoyers2023!N3 -> 0
A16: =SuiviPMTLoyers2023!A4 -> 128/1 | B16: =SuiviPMTLoyers2023!B4 -> 2023-03-01 | C16: =SuiviPMTLoyers2023!C4 -> 65000 | D16: oui | E16: =[2]LoyersConsolide!E16 -> 2023-03-15 | F16: =[2]LoyersConsolide!F16 -> 0 | G16: =[2]LoyersConsolide!G16 -> 0 | H16: =[2]LoyersConsolide!H16 -> 0 | I16: =SuiviPMTLoyers2023!I4 -> 0 | J16: =SuiviPMTLoyers2023!J4 -> 0 | K16: =SuiviPMTLoyers2023!K4 -> 0 | L16: =SuiviPMTLoyers2023!L4 -> 0 | M16: =SuiviPMTLoyers2023!M4 -> 0 | N16: =SuiviPMTLoyers2023!N4 -> 0
A17: =SuiviPMTLoyers2023!A5 -> 128/1 | B17: =SuiviPMTLoyers2023!B5 -> 2023-04-01 | C17: =SuiviPMTLoyers2023!C5 -> 65000 | D17: oui | E17: =[2]LoyersConsolide!E17 -> 2023-08-11 | F17: =[2]LoyersConsolide!F17 -> 0 | G17: =[2]LoyersConsolide!G17 -> 0 | H17: =[2]LoyersConsolide!H17 -> 0 | I17: =SuiviPMTLoyers2023!I5 -> 0 | J17: =SuiviPMTLoyers2023!J5 -> 0 | K17: =SuiviPMTLoyers2023!K5 -> 0 | L17: =SuiviPMTLoyers2023!L5 -> 0 | M17: =SuiviPMTLoyers2023!M5 -> 0 | N17: =SuiviPMTLoyers2023!N5 -> 0
A18: =SuiviPMTLoyers2023!A6 -> 128/1 | B18: =SuiviPMTLoyers2023!B6 -> 2023-05-01 | C18: =SuiviPMTLoyers2023!C6 -> 65000 | D18: oui | E18: =[2]LoyersConsolide!E18 -> 2023-08-11 | F18: =[2]LoyersConsolide!F18 -> 0 | G18: =[2]LoyersConsolide!G18 -> 0 | H18: =[2]LoyersConsolide!H18 -> 0 | I18: =SuiviPMTLoyers2023!I6 -> 0 | J18: =SuiviPMTLoyers2023!J6 -> 0 | K18: =SuiviPMTLoyers2023!K6 -> 0 | L18: =SuiviPMTLoyers2023!L6 -> 0 | M18: =SuiviPMTLoyers2023!M6 -> 0 | N18: =SuiviPMTLoyers2023!N6 -> 0
A19: =SuiviPMTLoyers2023!A7 -> 128/1 | B19: =SuiviPMTLoyers2023!B7 -> 2023-06-01 | C19: =SuiviPMTLoyers2023!C7 -> 65000 | D19: oui | E19: =[2]LoyersConsolide!E19 -> 2023-09-01 | F19: =[2]LoyersConsolide!F19 -> 0 | G19: =[2]LoyersConsolide!G19 -> 0 | H19: =[2]LoyersConsolide!H19 -> 0 | I19: =SuiviPMTLoyers2023!I7 -> 0 | J19: =SuiviPMTLoyers2023!J7 -> 0 | K19: =SuiviPMTLoyers2023!K7 -> 0 | L19: =SuiviPMTLoyers2023!L7 -> 0 | M19: =SuiviPMTLoyers2023!M7 -> 0 | N19: =SuiviPMTLoyers2023!N7 -> 0
A20: =SuiviPMTLoyers2023!A8 -> 128/1 | B20: =SuiviPMTLoyers2023!B8 -> 2023-07-01 | C20: =SuiviPMTLoyers2023!C8 -> 65000 | D20: oui | E20: =[2]LoyersConsolide!E20 -> 2023-12-29 | F20: =[2]LoyersConsolide!F20 -> 0 | G20: =[2]LoyersConsolide!G20 -> 0 | H20: =[2]LoyersConsolide!H20 -> 0 | I20: =SuiviPMTLoyers2023!I8 -> 0 | J20: =SuiviPMTLoyers2023!J8 -> 0 | K20: =SuiviPMTLoyers2023!K8 -> 0 | L20: =SuiviPMTLoyers2023!L8 -> 0 | M20: =SuiviPMTLoyers2023!M8 -> 0 | N20: =SuiviPMTLoyers2023!N8 -> 0
A21: =SuiviPMTLoyers2023!A9 -> 128/1 | B21: =SuiviPMTLoyers2023!B9 -> 2023-08-01 | C21: =SuiviPMTLoyers2023!C9 -> 65000 | D21: oui | E21: =[2]LoyersConsolide!E21 -> 2023-12-29 | F21: =[2]LoyersConsolide!F21 -> 0 | G21: =[2]LoyersConsolide!G21 -> 0 | H21: =[2]LoyersConsolide!H21 -> 0 | I21: =SuiviPMTLoyers2023!I9 -> 0 | J21: =SuiviPMTLoyers2023!J9 -> 0 | K21: =SuiviPMTLoyers2023!K9 -> 0 | L21: =SuiviPMTLoyers2023!L9 -> 0 | M21: =SuiviPMTLoyers2023!M9 -> 0 | N21: =SuiviPMTLoyers2023!N9 -> 0
A22: =SuiviPMTLoyers2023!A10 -> 128/1 | B22: =SuiviPMTLoyers2023!B10 -> 2023-09-01 | C22: =SuiviPMTLoyers2023!C10 -> 65000 | D22: oui | E22: =[2]LoyersConsolide!E22 -> 2023-12-29 | F22: =[2]LoyersConsolide!F22 -> 0 | G22: =[2]LoyersConsolide!G22 -> 0 | H22: =[2]LoyersConsolide!H22 -> 0 | I22: =SuiviPMTLoyers2023!I10 -> 0 | J22: =SuiviPMTLoyers2023!J10 -> 0 | K22: =SuiviPMTLoyers2023!K10 -> 0 | L22: =SuiviPMTLoyers2023!L10 -> 0 | M22: =SuiviPMTLoyers2023!M10 -> 0 | N22: =SuiviPMTLoyers2023!N10 -> 0
A23: =SuiviPMTLoyers2023!A11 -> 128/1 | B23: =SuiviPMTLoyers2023!B11 -> 2023-10-01 | C23: =SuiviPMTLoyers2023!C11 -> 65000 | D23: oui | E23: =[2]LoyersConsolide!E23 -> 2023-12-29 | F23: =[2]LoyersConsolide!F23 -> 0 | G23: =[2]LoyersConsolide!G23 -> 0 | H23: =[2]LoyersConsolide!H23 -> 0 | I23: =SuiviPMTLoyers2023!I11 -> 0 | J23: =SuiviPMTLoyers2023!J11 -> 0 | K23: =SuiviPMTLoyers2023!K11 -> 0 | L23: =SuiviPMTLoyers2023!L11 -> 0 | M23: =SuiviPMTLoyers2023!M11 -> 0 | N23: =SuiviPMTLoyers2023!N11 -> 0
A24: =SuiviPMTLoyers2023!A12 -> 128/1 | B24: =SuiviPMTLoyers2023!B12 -> 2023-11-01 | C24: =SuiviPMTLoyers2023!C12 -> 65000 | D24: oui | E24: =[2]LoyersConsolide!E24 -> 2023-12-29 | F24: =[2]LoyersConsolide!F24 -> 0 | G24: =[2]LoyersConsolide!G24 -> 0 | H24: =[2]LoyersConsolide!H24 -> 0 | I24: =SuiviPMTLoyers2023!I12 -> 0 | J24: =SuiviPMTLoyers2023!J12 -> 0 | K24: =SuiviPMTLoyers2023!K12 -> 0 | L24: =SuiviPMTLoyers2023!L12 -> 0 | M24: =SuiviPMTLoyers2023!M12 -> 0 | N24: =SuiviPMTLoyers2023!N12 -> 0
A25: =SuiviPMTLoyers2023!A13 -> 128/1 | B25: =SuiviPMTLoyers2023!B13 -> 2023-12-01 | C25: =SuiviPMTLoyers2023!C13 -> 65000 | D25: oui | E25: =[2]LoyersConsolide!E25 -> 2023-12-29 | F25: =[2]LoyersConsolide!F25 -> 0 | G25: =[2]LoyersConsolide!G25 -> 0 | H25: =[2]LoyersConsolide!H25 -> 0 | I25: =SuiviPMTLoyers2023!I13 -> 0 | J25: =SuiviPMTLoyers2023!J13 -> 0 | K25: =SuiviPMTLoyers2023!K13 -> 0 | L25: =SuiviPMTLoyers2023!L13 -> 0 | M25: =SuiviPMTLoyers2023!M13 -> 0 | N25: =SuiviPMTLoyers2023!N13 -> 0
A26: =SuiviPMTLoyers2024!A2 -> 128/1 | B26: =SuiviPMTLoyers2024!B2 -> 2024-01-01 | C26: =SuiviPMTLoyers2024!C2 -> 65000 | D26: oui | E26: =[2]LoyersConsolide!E26 -> 2024-04-29 | F26: =[2]LoyersConsolide!F26 -> 0 | G26: =[2]LoyersConsolide!G26 -> 0 | H26: =[2]LoyersConsolide!H26 -> 0 | I26: =SuiviPMTLoyers2024!I2 -> 0 | J26: =SuiviPMTLoyers2024!J2 -> 0 | K26: =SuiviPMTLoyers2024!K2 -> 0 | L26: =SuiviPMTLoyers2024!L2 -> 0 | M26: =SuiviPMTLoyers2024!M2 -> 0 | N26: =SuiviPMTLoyers2024!N2 -> 0
A27: =SuiviPMTLoyers2024!A3 -> 128/1 | B27: =SuiviPMTLoyers2024!B3 -> 2024-02-01 | C27: =SuiviPMTLoyers2024!C3 -> 65000 | D27: oui | E27: =[2]LoyersConsolide!E27 -> 2024-04-29 | F27: =[2]LoyersConsolide!F27 -> 0 | G27: =[2]LoyersConsolide!G27 -> 0 | H27: =[2]LoyersConsolide!H27 -> 0 | I27: =SuiviPMTLoyers2024!I3 -> 0 | J27: =SuiviPMTLoyers2024!J3 -> 0 | K27: =SuiviPMTLoyers2024!K3 -> 0 | L27: =SuiviPMTLoyers2024!L3 -> 0 | M27: =SuiviPMTLoyers2024!M3 -> 0 | N27: =SuiviPMTLoyers2024!N3 -> 0
A28: =SuiviPMTLoyers2024!A4 -> 128/1 | B28: =SuiviPMTLoyers2024!B4 -> 2024-03-01 | C28: =SuiviPMTLoyers2024!C4 -> 65000 | D28: oui | E28: =[2]LoyersConsolide!E28 -> 2024-04-29 | F28: =[2]LoyersConsolide!F28 -> 0 | G28: =[2]LoyersConsolide!G28 -> 0 | H28: =[2]LoyersConsolide!H28 -> 0 | I28: =SuiviPMTLoyers2024!I4 -> 0 | J28: =SuiviPMTLoyers2024!J4 -> 0 | K28: =SuiviPMTLoyers2024!K4 -> 0 | L28: =SuiviPMTLoyers2024!L4 -> 0 | M28: =SuiviPMTLoyers2024!M4 -> 0 | N28: =SuiviPMTLoyers2024!N4 -> 0
A29: =SuiviPMTLoyers2024!A5 -> 128/1 | B29: =SuiviPMTLoyers2024!B5 -> 2024-04-01 | C29: =SuiviPMTLoyers2024!C5 -> 65000 | D29: oui | E29: =[2]LoyersConsolide!E29 -> 2024-04-29 | F29: =[2]LoyersConsolide!F29 -> 0 | G29: =[2]LoyersConsolide!G29 -> 0 | H29: =[2]LoyersConsolide!H29 -> 0 | I29: =SuiviPMTLoyers2024!I5 -> 0 | J29: =SuiviPMTLoyers2024!J5 -> 0 | K29: =SuiviPMTLoyers2024!K5 -> 0 | L29: =SuiviPMTLoyers2024!L5 -> 0 | M29: =SuiviPMTLoyers2024!M5 -> 0 | N29: =SuiviPMTLoyers2024!N5 -> 0
A30: =SuiviPMTLoyers2024!A6 -> 128/1 | B30: =SuiviPMTLoyers2024!B6 -> 2024-05-01 | C30: =SuiviPMTLoyers2024!C6 -> 65000 | D30: oui | E30: =[2]LoyersConsolide!E30 -> 2024-04-29 | F30: =[2]LoyersConsolide!F30 -> 0 | G30: =[2]LoyersConsolide!G30 -> 0 | H30: =[2]LoyersConsolide!H30 -> 0 | I30: =SuiviPMTLoyers2024!I6 -> 0 | J30: =SuiviPMTLoyers2024!J6 -> 0 | K30: =SuiviPMTLoyers2024!K6 -> 0 | L30: =SuiviPMTLoyers2024!L6 -> 0 | M30: =SuiviPMTLoyers2024!M6 -> 0 | N30: =SuiviPMTLoyers2024!N6 -> 0
A31: =SuiviPMTLoyers2024!A7 -> 128/1 | B31: =SuiviPMTLoyers2024!B7 -> 2024-06-01 | C31: =SuiviPMTLoyers2024!C7 -> 65000 | D31: oui | E31: =[2]LoyersConsolide!E31 -> 2024-04-29 | F31: =[2]LoyersConsolide!F31 -> 0 | G31: =[2]LoyersConsolide!G31 -> 0 | H31: =[2]LoyersConsolide!H31 -> 0 | I31: =SuiviPMTLoyers2024!I7 -> 0 | J31: =SuiviPMTLoyers2024!J7 -> 0 | K31: =SuiviPMTLoyers2024!K7 -> 0 | L31: =SuiviPMTLoyers2024!L7 -> 0 | M31: =SuiviPMTLoyers2024!M7 -> 0 | N31: =SuiviPMTLoyers2024!N7 -> 0
A32: =SuiviPMTLoyers2024!A8 -> 128/1 | B32: =SuiviPMTLoyers2024!B8 -> 2024-07-01 | C32: =SuiviPMTLoyers2024!C8 -> 65000 | D32: oui | E32: =[2]LoyersConsolide!E32 -> 2024-12-16 | F32: =[2]LoyersConsolide!F32 -> 0 | G32: =[2]LoyersConsolide!G32 -> 0 | H32: =[2]LoyersConsolide!H32 -> 0 | I32: =SuiviPMTLoyers2024!I8 -> 0 | J32: =SuiviPMTLoyers2024!J8 -> 0 | K32: =SuiviPMTLoyers2024!K8 -> 0 | L32: =SuiviPMTLoyers2024!L8 -> 0 | M32: =SuiviPMTLoyers2024!M8 -> 0 | N32: =SuiviPMTLoyers2024!N8 -> 0
A33: =SuiviPMTLoyers2024!A9 -> 128/1 | B33: =SuiviPMTLoyers2024!B9 -> 2024-08-01 | C33: =SuiviPMTLoyers2024!C9 -> 65000 | D33: oui | E33: =[2]LoyersConsolide!E33 -> 2024-12-16 | F33: =[2]LoyersConsolide!F33 -> 0 | G33: =[2]LoyersConsolide!G33 -> 0 | H33: =[2]LoyersConsolide!H33 -> 0 | I33: =SuiviPMTLoyers2024!I9 -> 0 | J33: =SuiviPMTLoyers2024!J9 -> 0 | K33: =SuiviPMTLoyers2024!K9 -> 0 | L33: =SuiviPMTLoyers2024!L9 -> 0 | M33: =SuiviPMTLoyers2024!M9 -> 0 | N33: =SuiviPMTLoyers2024!N9 -> 0
A34: =SuiviPMTLoyers2024!A10 -> 128/1 | B34: =SuiviPMTLoyers2024!B10 -> 2024-09-01 | C34: =SuiviPMTLoyers2024!C10 -> 65000 | D34: oui | E34: =[2]LoyersConsolide!E34 -> 2024-12-16 | F34: =[2]LoyersConsolide!F34 -> 0 | G34: =[2]LoyersConsolide!G34 -> 0 | H34: =[2]LoyersConsolide!H34 -> 0 | I34: =SuiviPMTLoyers2024!I10 -> 0 | J34: =SuiviPMTLoyers2024!J10 -> 0 | K34: =SuiviPMTLoyers2024!K10 -> 0 | L34: =SuiviPMTLoyers2024!L10 -> 0 | M34: =SuiviPMTLoyers2024!M10 -> 0 | N34: =SuiviPMTLoyers2024!N10 -> 0
A35: =SuiviPMTLoyers2024!A11 -> 128/1 | B35: =SuiviPMTLoyers2024!B11 -> 2024-10-01 | C35: =SuiviPMTLoyers2024!C11 -> 65000 | D35: oui | E35: =[2]LoyersConsolide!E35 -> 2024-12-16 | F35: =[2]LoyersConsolide!F35 -> 0 | G35: =[2]LoyersConsolide!G35 -> 0 | H35: =[2]LoyersConsolide!H35 -> 0 | I35: =SuiviPMTLoyers2024!I11 -> 0 | J35: =SuiviPMTLoyers2024!J11 -> 0 | K35: =SuiviPMTLoyers2024!K11 -> 0 | L35: =SuiviPMTLoyers2024!L11 -> 0 | M35: =SuiviPMTLoyers2024!M11 -> 0 | N35: =SuiviPMTLoyers2024!N11 -> 0
A36: =SuiviPMTLoyers2024!A12 -> 128/1 | B36: =SuiviPMTLoyers2024!B12 -> 2024-11-01 | C36: =SuiviPMTLoyers2024!C12 -> 65000 | D36: oui | E36: =[2]LoyersConsolide!E36 -> 2024-12-16 | F36: =[2]LoyersConsolide!F36 -> 0 | G36: =[2]LoyersConsolide!G36 -> 0 | H36: =[2]LoyersConsolide!H36 -> 0 | I36: =SuiviPMTLoyers2024!I12 -> 0 | J36: =SuiviPMTLoyers2024!J12 -> 0 | K36: =SuiviPMTLoyers2024!K12 -> 0 | L36: =SuiviPMTLoyers2024!L12 -> 0 | M36: =SuiviPMTLoyers2024!M12 -> 0 | N36: =SuiviPMTLoyers2024!N12 -> 0
A37: =SuiviPMTLoyers2024!A13 -> 128/1 | B37: =SuiviPMTLoyers2024!B13 -> 2024-12-01 | C37: =SuiviPMTLoyers2024!C13 -> 65000 | D37: oui | E37: =[2]LoyersConsolide!E37 -> 2025-01-11 | F37: =[2]LoyersConsolide!F37 -> 602 | G37: =[2]LoyersConsolide!G37 -> 57110 | H37: =[2]LoyersConsolide!H37 -> Mérimée | I37: =SuiviPMTLoyers2024!I13 -> 0 | J37: =SuiviPMTLoyers2024!J13 -> 0 | K37: =SuiviPMTLoyers2024!K13 -> 0 | L37: =SuiviPMTLoyers2024!L13 -> 0 | M37: =SuiviPMTLoyers2024!M13 -> 0 | N37: =SuiviPMTLoyers2024!N13 -> 0
A38: =SuiviPMTLoyers2025!A2 -> 128/1 | B38: =SuiviPMTLoyers2025!B2 -> 2025-01-01 | C38: =SuiviPMTLoyers2025!C2 -> 65000 | D38: oui | E38: =[2]LoyersConsolide!E38 -> 2025-04-04 | F38: =[2]LoyersConsolide!F38 -> 656 | G38: =[2]LoyersConsolide!G38 -> 57110 | H38: =[2]LoyersConsolide!H38 -> Mérimée | I38: =SuiviPMTLoyers2025!I2 -> 0 | J38: =SuiviPMTLoyers2025!J2 -> 0 | K38: =SuiviPMTLoyers2025!K2 -> 0 | L38: =SuiviPMTLoyers2025!L2 -> 0 | M38: =SuiviPMTLoyers2025!M2 -> 0 | N38: =SuiviPMTLoyers2025!N2 -> 0
A39: =SuiviPMTLoyers2025!A3 -> 128/1 | B39: =SuiviPMTLoyers2025!B3 -> 2025-02-01 | C39: =SuiviPMTLoyers2025!C3 -> 65000 | D39: oui | E39: =[2]LoyersConsolide!E39 -> 2025-04-04 | F39: =[2]LoyersConsolide!F39 -> 656 | G39: =[2]LoyersConsolide!G39 -> 57110 | H39: =[2]LoyersConsolide!H39 -> Mérimée | I39: =SuiviPMTLoyers2025!I3 -> 0 | J39: =SuiviPMTLoyers2025!J3 -> 0 | K39: =SuiviPMTLoyers2025!K3 -> 0 | L39: =SuiviPMTLoyers2025!L3 -> 0 | M39: =SuiviPMTLoyers2025!M3 -> 0 | N39: =SuiviPMTLoyers2025!N3 -> 0
A40: =SuiviPMTLoyers2025!A4 -> 128/1 | B40: =SuiviPMTLoyers2025!B4 -> 2025-03-01 | C40: =SuiviPMTLoyers2025!C4 -> 65000 | D40: oui | E40: =[2]LoyersConsolide!E40 -> 2025-04-04 | F40: =[2]LoyersConsolide!F40 -> 656 | G40: =[2]LoyersConsolide!G40 -> 57110 | H40: =[2]LoyersConsolide!H40 -> Mérimée | I40: =SuiviPMTLoyers2025!I4 -> 0 | J40: =SuiviPMTLoyers2025!J4 -> 0 | K40: =SuiviPMTLoyers2025!K4 -> 0 | L40: =SuiviPMTLoyers2025!L4 -> 0 | M40: =SuiviPMTLoyers2025!M4 -> 0 | N40: =SuiviPMTLoyers2025!N4 -> 0
A41: =SuiviPMTLoyers2025!A5 -> 128/1 | B41: =SuiviPMTLoyers2025!B5 -> 2025-04-01 | C41: =SuiviPMTLoyers2025!C5 -> 65000 | D41: oui | E41: =[2]LoyersConsolide!E41 -> 2025-04-04 | F41: =[2]LoyersConsolide!F41 -> 656 | G41: =[2]LoyersConsolide!G41 -> 57110 | H41: =[2]LoyersConsolide!H41 -> Mérimée | I41: =SuiviPMTLoyers2025!I5 -> 0 | J41: =SuiviPMTLoyers2025!J5 -> 0 | K41: =SuiviPMTLoyers2025!K5 -> 0 | L41: =SuiviPMTLoyers2025!L5 -> 0 | M41: =SuiviPMTLoyers2025!M5 -> 0 | N41: =SuiviPMTLoyers2025!N5 -> 0
A42: =SuiviPMTLoyers2025!A6 -> 128/1 | B42: =SuiviPMTLoyers2025!B6 -> 2025-05-01 | C42: =SuiviPMTLoyers2025!C6 -> 65000 | D42: oui | E42: =[2]LoyersConsolide!E42 -> 2025-04-04 | F42: =[2]LoyersConsolide!F42 -> 656 | G42: =[2]LoyersConsolide!G42 -> 57110 | H42: =[2]LoyersConsolide!H42 -> Mérimée | I42: =SuiviPMTLoyers2025!I6 -> 0 | J42: =SuiviPMTLoyers2025!J6 -> 0 | K42: =SuiviPMTLoyers2025!K6 -> 0 | L42: =SuiviPMTLoyers2025!L6 -> 0 | M42: =SuiviPMTLoyers2025!M6 -> 0 | N42: =SuiviPMTLoyers2025!N6 -> 0
A43: =SuiviPMTLoyers2025!A7 -> 128/1 | B43: =SuiviPMTLoyers2025!B7 -> 2025-06-01 | C43: =SuiviPMTLoyers2025!C7 -> 65000 | D43: oui | E43: =[2]LoyersConsolide!E43 -> 2025-04-04 | F43: =[2]LoyersConsolide!F43 -> 656 | G43: =[2]LoyersConsolide!G43 -> 57110 | H43: =[2]LoyersConsolide!H43 -> Mérimée | I43: =SuiviPMTLoyers2025!I7 -> 0 | J43: =SuiviPMTLoyers2025!J7 -> 0 | K43: =SuiviPMTLoyers2025!K7 -> 0 | L43: =SuiviPMTLoyers2025!L7 -> 0 | M43: =SuiviPMTLoyers2025!M7 -> 0 | N43: =SuiviPMTLoyers2025!N7 -> 0
A44: =SuiviPMTLoyers2025!A8 -> 128/1 | B44: =SuiviPMTLoyers2025!B8 -> 2025-07-01 | C44: =SuiviPMTLoyers2025!C8 -> 65000 | D44: non payé | E44: =[2]LoyersConsolide!E44 -> 2050-01-01 | F44: =[2]LoyersConsolide!F44 -> 0 | G44: =[2]LoyersConsolide!G44 ->  | H44: =[2]LoyersConsolide!H44 -> 0 | I44: =SuiviPMTLoyers2025!I8 -> 0 | J44: =SuiviPMTLoyers2025!J8 -> 0 | K44: =SuiviPMTLoyers2025!K8 -> 0 | L44: =SuiviPMTLoyers2025!L8 -> 0 | M44: =SuiviPMTLoyers2025!M8 -> 0 | N44: =SuiviPMTLoyers2025!N8 -> 0
A45: =SuiviPMTLoyers2025!A9 -> 128/1 | B45: =SuiviPMTLoyers2025!B9 -> 2025-08-01 | C45: =SuiviPMTLoyers2025!C9 -> 65000 | D45: non payé | E45: =[2]LoyersConsolide!E45 -> 2050-01-01 | F45: =[2]LoyersConsolide!F45 -> 0 | G45: =[2]LoyersConsolide!G45 -> 0 | H45: =[2]LoyersConsolide!H45 -> 0 | I45: =SuiviPMTLoyers2025!I9 -> 0 | J45: =SuiviPMTLoyers2025!J9 -> 0 | K45: =SuiviPMTLoyers2025!K9 -> 0 | L45: =SuiviPMTLoyers2025!L9 -> 0 | M45: =SuiviPMTLoyers2025!M9 -> 0 | N45: =SuiviPMTLoyers2025!N9 -> 0
A46: =SuiviPMTLoyers2025!A10 -> 128/1 | B46: =SuiviPMTLoyers2025!B10 -> 2025-09-01 | C46: =SuiviPMTLoyers2025!C10 -> 65000 | D46: non payé | E46: =[2]LoyersConsolide!E46 -> 2050-01-01 | F46: =[2]LoyersConsolide!F46 -> 0 | G46: =[2]LoyersConsolide!G46 -> 0 | H46: =[2]LoyersConsolide!H46 -> 0 | I46: =SuiviPMTLoyers2025!I10 -> 0 | J46: =SuiviPMTLoyers2025!J10 -> 0 | K46: =SuiviPMTLoyers2025!K10 -> 0 | L46: =SuiviPMTLoyers2025!L10 -> 0 | M46: =SuiviPMTLoyers2025!M10 -> 0 | N46: =SuiviPMTLoyers2025!N10 -> 0
A47: =SuiviPMTLoyers2025!A11 -> 128/1 | B47: =SuiviPMTLoyers2025!B11 -> 2025-10-01 | C47: =SuiviPMTLoyers2025!C11 -> 65000 | D47: non payé | E47: =[2]LoyersConsolide!E47 -> 2050-01-01 | F47: =[2]LoyersConsolide!F47 -> 0 | G47: =[2]LoyersConsolide!G47 -> 0 | H47: =[2]LoyersConsolide!H47 -> 0 | I47: =SuiviPMTLoyers2025!I11 -> 0 | J47: =SuiviPMTLoyers2025!J11 -> 0 | K47: =SuiviPMTLoyers2025!K11 -> 0 | L47: =SuiviPMTLoyers2025!L11 -> 0 | M47: =SuiviPMTLoyers2025!M11 -> 0 | N47: =SuiviPMTLoyers2025!N11 -> 0
A48: =SuiviPMTLoyers2025!A12 -> 128/1 | B48: =SuiviPMTLoyers2025!B12 -> 2025-11-01 | C48: =SuiviPMTLoyers2025!C12 -> 65000 | D48: non payé | E48: =[2]LoyersConsolide!E48 -> 2050-01-01 | F48: =[2]LoyersConsolide!F48 -> 0 | G48: =[2]LoyersConsolide!G48 -> 0 | H48: =[2]LoyersConsolide!H48 -> 0 | I48: =SuiviPMTLoyers2025!I12 -> 0 | J48: =SuiviPMTLoyers2025!J12 -> 0 | K48: =SuiviPMTLoyers2025!K12 -> 0 | L48: =SuiviPMTLoyers2025!L12 -> 0 | M48: =SuiviPMTLoyers2025!M12 -> 0 | N48: =SuiviPMTLoyers2025!N12 -> 0
A49: =SuiviPMTLoyers2025!A13 -> 128/1 | B49: =SuiviPMTLoyers2025!B13 -> 2025-12-01 | C49: =SuiviPMTLoyers2025!C13 -> 65000 | D49: non payé | E49: =[2]LoyersConsolide!E49 -> 2050-01-01 | F49: =[2]LoyersConsolide!F49 -> 0 | G49: =[2]LoyersConsolide!G49 -> 0 | H49: =[2]LoyersConsolide!H49 -> 0 | I49: =SuiviPMTLoyers2025!I13 -> 0 | J49: =SuiviPMTLoyers2025!J13 -> 0 | K49: =SuiviPMTLoyers2025!K13 -> 0 | L49: =SuiviPMTLoyers2025!L13 -> 0 | M49: =SuiviPMTLoyers2025!M13 -> 0 | N49: =SuiviPMTLoyers2025!N13 -> 0
A50: =SuiviPMTLoyers2022!A14 -> 130/2 | B50: =SuiviPMTLoyers2022!B14 -> 2022-01-01 | C50: =SuiviPMTLoyers2022!C14 -> 65000 | D50: oui | E50: =[2]LoyersConsolide!E50 -> 2022-02-17 | F50: =[2]LoyersConsolide!F50 -> 0 | G50: =[2]LoyersConsolide!G50 -> 0 | H50: =[2]LoyersConsolide!H50 -> 0 | I50: =SuiviPMTLoyers2022!I14 -> 00:00:00 | J50: =SuiviPMTLoyers2022!J14 -> 00:00:00 | K50: =SuiviPMTLoyers2022!K14 -> 00:00:00 | L50: =SuiviPMTLoyers2022!L14 -> 00:00:00 | M50: =SuiviPMTLoyers2022!M14 -> 00:00:00 | N50: =SuiviPMTLoyers2022!N14 -> 00:00:00
A51: =SuiviPMTLoyers2022!A15 -> 130/2 | B51: =SuiviPMTLoyers2022!B15 -> 2022-02-01 | C51: =SuiviPMTLoyers2022!C15 -> 65000 | D51: oui | E51: =[2]LoyersConsolide!E51 -> 2022-02-17 | F51: =[2]LoyersConsolide!F51 -> 0 | G51: =[2]LoyersConsolide!G51 -> 0 | H51: =[2]LoyersConsolide!H51 -> 0 | I51: =SuiviPMTLoyers2022!I15 -> 00:00:00 | J51: =SuiviPMTLoyers2022!J15 -> 00:00:00 | K51: =SuiviPMTLoyers2022!K15 -> 00:00:00 | L51: =SuiviPMTLoyers2022!L15 -> 00:00:00 | M51: =SuiviPMTLoyers2022!M15 -> 00:00:00 | N51: =SuiviPMTLoyers2022!N15 -> 00:00:00
A52: =SuiviPMTLoyers2022!A16 -> 130/2 | B52: =SuiviPMTLoyers2022!B16 -> 2022-03-01 | C52: =SuiviPMTLoyers2022!C16 -> 65000 | D52: oui | E52: =[2]LoyersConsolide!E52 -> 2022-09-16 | F52: =[2]LoyersConsolide!F52 -> 0 | G52: =[2]LoyersConsolide!G52 -> 0 | H52: =[2]LoyersConsolide!H52 -> 0 | I52: =SuiviPMTLoyers2022!I16 -> 00:00:00 | J52: =SuiviPMTLoyers2022!J16 -> 00:00:00 | K52: =SuiviPMTLoyers2022!K16 -> 00:00:00 | L52: =SuiviPMTLoyers2022!L16 -> 00:00:00 | M52: =SuiviPMTLoyers2022!M16 -> 00:00:00 | N52: =SuiviPMTLoyers2022!N16 -> 00:00:00
A53: =SuiviPMTLoyers2022!A17 -> 130/2 | B53: =SuiviPMTLoyers2022!B17 -> 2022-04-01 | C53: =SuiviPMTLoyers2022!C17 -> 65000 | D53: oui | E53: =[2]LoyersConsolide!E53 -> 2022-09-16 | F53: =[2]LoyersConsolide!F53 -> 0 | G53: =[2]LoyersConsolide!G53 -> 0 | H53: =[2]LoyersConsolide!H53 -> 0 | I53: =SuiviPMTLoyers2022!I17 -> 00:00:00 | J53: =SuiviPMTLoyers2022!J17 -> 00:00:00 | K53: =SuiviPMTLoyers2022!K17 -> 00:00:00 | L53: =SuiviPMTLoyers2022!L17 -> 00:00:00 | M53: =SuiviPMTLoyers2022!M17 -> 00:00:00 | N53: =SuiviPMTLoyers2022!N17 -> 00:00:00
A54: =SuiviPMTLoyers2022!A18 -> 130/2 | B54: =SuiviPMTLoyers2022!B18 -> 2022-05-01 | C54: =SuiviPMTLoyers2022!C18 -> 65000 | D54: oui | E54: =[2]LoyersConsolide!E54 -> 2022-09-16 | F54: =[2]LoyersConsolide!F54 -> 0 | G54: =[2]LoyersConsolide!G54 -> 0 | H54: =[2]LoyersConsolide!H54 -> 0 | I54: =SuiviPMTLoyers2022!I18 -> 00:00:00 | J54: =SuiviPMTLoyers2022!J18 -> 00:00:00 | K54: =SuiviPMTLoyers2022!K18 -> 00:00:00 | L54: =SuiviPMTLoyers2022!L18 -> 00:00:00 | M54: =SuiviPMTLoyers2022!M18 -> 00:00:00 | N54: =SuiviPMTLoyers2022!N18 -> 00:00:00
A55: =SuiviPMTLoyers2022!A19 -> 130/2 | B55: =SuiviPMTLoyers2022!B19 -> 2022-06-01 | C55: =SuiviPMTLoyers2022!C19 -> 65000 | D55: oui | E55: =[2]LoyersConsolide!E55 -> 2022-09-16 | F55: =[2]LoyersConsolide!F55 -> 0 | G55: =[2]LoyersConsolide!G55 -> 0 | H55: =[2]LoyersConsolide!H55 -> 0 | I55: =SuiviPMTLoyers2022!I19 -> 0 | J55: =SuiviPMTLoyers2022!J19 -> 0 | K55: =SuiviPMTLoyers2022!K19 -> 0 | L55: =SuiviPMTLoyers2022!L19 -> 0 | M55: =SuiviPMTLoyers2022!M19 -> 0 | N55: =SuiviPMTLoyers2022!N19 -> 0
A56: =SuiviPMTLoyers2022!A20 -> 130/2 | B56: =SuiviPMTLoyers2022!B20 -> 2022-07-01 | C56: =SuiviPMTLoyers2022!C20 -> 65000 | D56: oui | E56: =[2]LoyersConsolide!E56 -> 2023-01-25 | F56: =[2]LoyersConsolide!F56 -> 0 | G56: =[2]LoyersConsolide!G56 -> 0 | H56: =[2]LoyersConsolide!H56 -> 0 | I56: =SuiviPMTLoyers2022!I20 -> 0 | J56: =SuiviPMTLoyers2022!J20 -> 0 | K56: =SuiviPMTLoyers2022!K20 -> 0 | L56: =SuiviPMTLoyers2022!L20 -> 0 | M56: =SuiviPMTLoyers2022!M20 -> 0 | N56: =SuiviPMTLoyers2022!N20 -> 0
A57: =SuiviPMTLoyers2022!A21 -> 130/2 | B57: =SuiviPMTLoyers2022!B21 -> 2022-08-01 | C57: =SuiviPMTLoyers2022!C21 -> 65000 | D57: oui | E57: =[2]LoyersConsolide!E57 -> 2023-01-25 | F57: =[2]LoyersConsolide!F57 -> 0 | G57: =[2]LoyersConsolide!G57 -> 0 | H57: =[2]LoyersConsolide!H57 -> 0 | I57: =SuiviPMTLoyers2022!I21 -> 0 | J57: =SuiviPMTLoyers2022!J21 -> 0 | K57: =SuiviPMTLoyers2022!K21 -> 0 | L57: =SuiviPMTLoyers2022!L21 -> 0 | M57: =SuiviPMTLoyers2022!M21 -> 0 | N57: =SuiviPMTLoyers2022!N21 -> 0
A58: =SuiviPMTLoyers2022!A22 -> 130/2 | B58: =SuiviPMTLoyers2022!B22 -> 2022-09-01 | C58: =SuiviPMTLoyers2022!C22 -> 65000 | D58: oui | E58: =[2]LoyersConsolide!E58 -> 2023-01-25 | F58: =[2]LoyersConsolide!F58 -> 0 | G58: =[2]LoyersConsolide!G58 -> 0 | H58: =[2]LoyersConsolide!H58 -> 0 | I58: =SuiviPMTLoyers2022!I22 -> 0 | J58: =SuiviPMTLoyers2022!J22 -> 0 | K58: =SuiviPMTLoyers2022!K22 -> 0 | L58: =SuiviPMTLoyers2022!L22 -> 0 | M58: =SuiviPMTLoyers2022!M22 -> 0 | N58: =SuiviPMTLoyers2022!N22 -> 0
A59: =SuiviPMTLoyers2022!A23 -> 130/2 | B59: =SuiviPMTLoyers2022!B23 -> 2022-10-01 | C59: =SuiviPMTLoyers2022!C23 -> 65000 | D59: oui | E59: =[2]LoyersConsolide!E59 -> 2023-01-25 | F59: =[2]LoyersConsolide!F59 -> 0 | G59: =[2]LoyersConsolide!G59 -> 0 | H59: =[2]LoyersConsolide!H59 -> 0 | I59: =SuiviPMTLoyers2022!I23 -> 0 | J59: =SuiviPMTLoyers2022!J23 -> 0 | K59: =SuiviPMTLoyers2022!K23 -> 0 | L59: =SuiviPMTLoyers2022!L23 -> 0 | M59: =SuiviPMTLoyers2022!M23 -> 0 | N59: =SuiviPMTLoyers2022!N23 -> 0
A60: =SuiviPMTLoyers2022!A24 -> 130/2 | B60: =SuiviPMTLoyers2022!B24 -> 2022-11-01 | C60: =SuiviPMTLoyers2022!C24 -> 65000 | D60: oui | E60: =[2]LoyersConsolide!E60 -> 2023-01-25 | F60: =[2]LoyersConsolide!F60 -> 0 | G60: =[2]LoyersConsolide!G60 -> 0 | H60: =[2]LoyersConsolide!H60 -> 0 | I60: =SuiviPMTLoyers2022!I24 -> 0 | J60: =SuiviPMTLoyers2022!J24 -> 0 | K60: =SuiviPMTLoyers2022!K24 -> 0 | L60: =SuiviPMTLoyers2022!L24 -> 0 | M60: =SuiviPMTLoyers2022!M24 -> 0 | N60: =SuiviPMTLoyers2022!N24 -> 0
A61: =SuiviPMTLoyers2022!A25 -> 130/2 | B61: =SuiviPMTLoyers2022!B25 -> 2022-12-01 | C61: =SuiviPMTLoyers2022!C25 -> 65000 | D61: oui | E61: =[2]LoyersConsolide!E61 -> 2023-01-25 | F61: =[2]LoyersConsolide!F61 -> 0 | G61: =[2]LoyersConsolide!G61 -> 0 | H61: =[2]LoyersConsolide!H61 -> 0 | I61: =SuiviPMTLoyers2022!I25 -> 0 | J61: =SuiviPMTLoyers2022!J25 -> 0 | K61: =SuiviPMTLoyers2022!K25 -> 0 | L61: =SuiviPMTLoyers2022!L25 -> 0 | M61: =SuiviPMTLoyers2022!M25 -> 0 | N61: =SuiviPMTLoyers2022!N25 -> 0
A62: =SuiviPMTLoyers2023!A14 -> 130/2 | B62: =SuiviPMTLoyers2023!B14 -> 2023-01-01 | C62: =SuiviPMTLoyers2023!C14 -> 65000 | D62: oui | E62: =[2]LoyersConsolide!E62 -> 2023-09-01 | F62: =[2]LoyersConsolide!F62 -> 0 | G62: =[2]LoyersConsolide!G62 -> 0 | H62: =[2]LoyersConsolide!H62 -> 0 | I62: =SuiviPMTLoyers2023!I14 -> 0 | J62: =SuiviPMTLoyers2023!J14 -> 0 | K62: =SuiviPMTLoyers2023!K14 -> 0 | L62: =SuiviPMTLoyers2023!L14 -> 0 | M62: =SuiviPMTLoyers2023!M14 -> 0 | N62: =SuiviPMTLoyers2023!N14 -> 0
A63: =SuiviPMTLoyers2023!A15 -> 130/2 | B63: =SuiviPMTLoyers2023!B15 -> 2023-02-01 | C63: =SuiviPMTLoyers2023!C15 -> 65000 | D63: oui | E63: =[2]LoyersConsolide!E63 -> 2023-09-01 | F63: =[2]LoyersConsolide!F63 -> 0 | G63: =[2]LoyersConsolide!G63 -> 0 | H63: =[2]LoyersConsolide!H63 -> 0 | I63: =SuiviPMTLoyers2023!I15 -> 0 | J63: =SuiviPMTLoyers2023!J15 -> 0 | K63: =SuiviPMTLoyers2023!K15 -> 0 | L63: =SuiviPMTLoyers2023!L15 -> 0 | M63: =SuiviPMTLoyers2023!M15 -> 0 | N63: =SuiviPMTLoyers2023!N15 -> 0
A64: =SuiviPMTLoyers2023!A16 -> 130/2 | B64: =SuiviPMTLoyers2023!B16 -> 2023-03-01 | C64: =SuiviPMTLoyers2023!C16 -> 65000 | D64: oui | E64: =[2]LoyersConsolide!E64 -> 2023-09-01 | F64: =[2]LoyersConsolide!F64 -> 0 | G64: =[2]LoyersConsolide!G64 -> 0 | H64: =[2]LoyersConsolide!H64 -> 0 | I64: =SuiviPMTLoyers2023!I16 -> 0 | J64: =SuiviPMTLoyers2023!J16 -> 0 | K64: =SuiviPMTLoyers2023!K16 -> 0 | L64: =SuiviPMTLoyers2023!L16 -> 0 | M64: =SuiviPMTLoyers2023!M16 -> 0 | N64: =SuiviPMTLoyers2023!N16 -> 0
A65: =SuiviPMTLoyers2023!A17 -> 130/2 | B65: =SuiviPMTLoyers2023!B17 -> 2023-04-01 | C65: =SuiviPMTLoyers2023!C17 -> 65000 | D65: oui | E65: =[2]LoyersConsolide!E65 -> 2023-09-01 | F65: =[2]LoyersConsolide!F65 -> 0 | G65: =[2]LoyersConsolide!G65 -> 0 | H65: =[2]LoyersConsolide!H65 -> 0 | I65: =SuiviPMTLoyers2023!I17 -> 0 | J65: =SuiviPMTLoyers2023!J17 -> 0 | K65: =SuiviPMTLoyers2023!K17 -> 0 | L65: =SuiviPMTLoyers2023!L17 -> 0 | M65: =SuiviPMTLoyers2023!M17 -> 0 | N65: =SuiviPMTLoyers2023!N17 -> 0
A66: =SuiviPMTLoyers2023!A18 -> 130/2 | B66: =SuiviPMTLoyers2023!B18 -> 2023-05-01 | C66: =SuiviPMTLoyers2023!C18 -> 65000 | D66: oui | E66: =[2]LoyersConsolide!E66 -> 2023-09-01 | F66: =[2]LoyersConsolide!F66 -> 0 | G66: =[2]LoyersConsolide!G66 -> 0 | H66: =[2]LoyersConsolide!H66 -> 0 | I66: =SuiviPMTLoyers2023!I18 -> 0 | J66: =SuiviPMTLoyers2023!J18 -> 0 | K66: =SuiviPMTLoyers2023!K18 -> 0 | L66: =SuiviPMTLoyers2023!L18 -> 0 | M66: =SuiviPMTLoyers2023!M18 -> 0 | N66: =SuiviPMTLoyers2023!N18 -> 0
A67: =SuiviPMTLoyers2023!A19 -> 130/2 | B67: =SuiviPMTLoyers2023!B19 -> 2023-06-01 | C67: =SuiviPMTLoyers2023!C19 -> 65000 | D67: oui | E67: =[2]LoyersConsolide!E67 -> 2023-09-01 | F67: =[2]LoyersConsolide!F67 -> 0 | G67: =[2]LoyersConsolide!G67 -> 0 | H67: =[2]LoyersConsolide!H67 -> 0 | I67: =SuiviPMTLoyers2023!I19 -> 0 | J67: =SuiviPMTLoyers2023!J19 -> 0 | K67: =SuiviPMTLoyers2023!K19 -> 0 | L67: =SuiviPMTLoyers2023!L19 -> 0 | M67: =SuiviPMTLoyers2023!M19 -> 0 | N67: =SuiviPMTLoyers2023!N19 -> 0
A68: =SuiviPMTLoyers2023!A20 -> 130/2 | B68: =SuiviPMTLoyers2023!B20 -> 2023-07-01 | C68: =SuiviPMTLoyers2023!C20 -> 65000 | D68: oui | E68: =[2]LoyersConsolide!E68 -> 2024-01-18 | F68: =[2]LoyersConsolide!F68 -> 0 | G68: =[2]LoyersConsolide!G68 -> 0 | H68: =[2]LoyersConsolide!H68 -> 0 | I68: =SuiviPMTLoyers2023!I20 -> 0 | J68: =SuiviPMTLoyers2023!J20 -> 0 | K68: =SuiviPMTLoyers2023!K20 -> 0 | L68: =SuiviPMTLoyers2023!L20 -> 0 | M68: =SuiviPMTLoyers2023!M20 -> 0 | N68: =SuiviPMTLoyers2023!N20 -> 0
A69: =SuiviPMTLoyers2023!A21 -> 130/2 | B69: =SuiviPMTLoyers2023!B21 -> 2023-08-01 | C69: =SuiviPMTLoyers2023!C21 -> 65000 | D69: oui | E69: =[2]LoyersConsolide!E69 -> 2024-01-18 | F69: =[2]LoyersConsolide!F69 -> 0 | G69: =[2]LoyersConsolide!G69 -> 0 | H69: =[2]LoyersConsolide!H69 -> 0 | I69: =SuiviPMTLoyers2023!I21 -> 0 | J69: =SuiviPMTLoyers2023!J21 -> 0 | K69: =SuiviPMTLoyers2023!K21 -> 0 | L69: =SuiviPMTLoyers2023!L21 -> 0 | M69: =SuiviPMTLoyers2023!M21 -> 0 | N69: =SuiviPMTLoyers2023!N21 -> 0
A70: =SuiviPMTLoyers2023!A22 -> 130/2 | B70: =SuiviPMTLoyers2023!B22 -> 2023-09-01 | C70: =SuiviPMTLoyers2023!C22 -> 65000 | D70: oui | E70: =[2]LoyersConsolide!E70 -> 2024-01-18 | F70: =[2]LoyersConsolide!F70 -> 0 | G70: =[2]LoyersConsolide!G70 -> 0 | H70: =[2]LoyersConsolide!H70 -> 0 | I70: =SuiviPMTLoyers2023!I22 -> 0 | J70: =SuiviPMTLoyers2023!J22 -> 0 | K70: =SuiviPMTLoyers2023!K22 -> 0 | L70: =SuiviPMTLoyers2023!L22 -> 0 | M70: =SuiviPMTLoyers2023!M22 -> 0 | N70: =SuiviPMTLoyers2023!N22 -> 0
A71: =SuiviPMTLoyers2023!A23 -> 130/2 | B71: =SuiviPMTLoyers2023!B23 -> 2023-10-01 | C71: =SuiviPMTLoyers2023!C23 -> 65000 | D71: oui | E71: =[2]LoyersConsolide!E71 -> 2024-01-18 | F71: =[2]LoyersConsolide!F71 -> 0 | G71: =[2]LoyersConsolide!G71 -> 0 | H71: =[2]LoyersConsolide!H71 -> 0 | I71: =SuiviPMTLoyers2023!I23 -> 0 | J71: =SuiviPMTLoyers2023!J23 -> 0 | K71: =SuiviPMTLoyers2023!K23 -> 0 | L71: =SuiviPMTLoyers2023!L23 -> 0 | M71: =SuiviPMTLoyers2023!M23 -> 0 | N71: =SuiviPMTLoyers2023!N23 -> 0
A72: =SuiviPMTLoyers2023!A24 -> 130/2 | B72: =SuiviPMTLoyers2023!B24 -> 2023-11-01 | C72: =SuiviPMTLoyers2023!C24 -> 65000 | D72: oui | E72: =[2]LoyersConsolide!E72 -> 2024-01-18 | F72: =[2]LoyersConsolide!F72 -> 0 | G72: =[2]LoyersConsolide!G72 -> 0 | H72: =[2]LoyersConsolide!H72 -> 0 | I72: =SuiviPMTLoyers2023!I24 -> 0 | J72: =SuiviPMTLoyers2023!J24 -> 0 | K72: =SuiviPMTLoyers2023!K24 -> 0 | L72: =SuiviPMTLoyers2023!L24 -> 0 | M72: =SuiviPMTLoyers2023!M24 -> 0 | N72: =SuiviPMTLoyers2023!N24 -> 0
A73: =SuiviPMTLoyers2023!A25 -> 130/2 | B73: =SuiviPMTLoyers2023!B25 -> 2023-12-01 | C73: =SuiviPMTLoyers2023!C25 -> 65000 | D73: oui | E73: =[2]LoyersConsolide!E73 -> 2025-03-18 | F73: =[2]LoyersConsolide!F73 -> 0 | G73: =[2]LoyersConsolide!G73 -> 0 | H73: =[2]LoyersConsolide!H73 -> 0 | I73: =SuiviPMTLoyers2023!I25 -> 0 | J73: =SuiviPMTLoyers2023!J25 -> 0 | K73: =SuiviPMTLoyers2023!K25 -> 0 | L73: =SuiviPMTLoyers2023!L25 -> 0 | M73: =SuiviPMTLoyers2023!M25 -> 0 | N73: =SuiviPMTLoyers2023!N25 -> 0
A74: =SuiviPMTLoyers2024!A14 -> 130/2 | B74: =SuiviPMTLoyers2024!B14 -> 2024-01-01 | C74: =SuiviPMTLoyers2024!C14 -> 65000 | D74: oui | E74: =[2]LoyersConsolide!E74 -> 2025-03-18 | F74: =[2]LoyersConsolide!F74 -> 642 | G74: =[2]LoyersConsolide!G74 -> 57110 | H74: =[2]LoyersConsolide!H74 -> Mérimée | I74: =SuiviPMTLoyers2024!I14 -> 0 | J74: =SuiviPMTLoyers2024!J14 -> 0 | K74: =SuiviPMTLoyers2024!K14 -> 0 | L74: =SuiviPMTLoyers2024!L14 -> 0 | M74: =SuiviPMTLoyers2024!M14 -> 0 | N74: =SuiviPMTLoyers2024!N14 -> 0
A75: =SuiviPMTLoyers2024!A15 -> 130/2 | B75: =SuiviPMTLoyers2024!B15 -> 2024-02-01 | C75: =SuiviPMTLoyers2024!C15 -> 65000 | D75: oui | E75: =[2]LoyersConsolide!E75 -> 2025-03-18 | F75: =[2]LoyersConsolide!F75 -> 642 | G75: =[2]LoyersConsolide!G75 -> 57110 | H75: =[2]LoyersConsolide!H75 -> Mérimée | I75: =SuiviPMTLoyers2024!I15 -> 0 | J75: =SuiviPMTLoyers2024!J15 -> 0 | K75: =SuiviPMTLoyers2024!K15 -> 0 | L75: =SuiviPMTLoyers2024!L15 -> 0 | M75: =SuiviPMTLoyers2024!M15 -> 0 | N75: =SuiviPMTLoyers2024!N15 -> 0
A76: =SuiviPMTLoyers2024!A16 -> 130/2 | B76: =SuiviPMTLoyers2024!B16 -> 2024-03-01 | C76: =SuiviPMTLoyers2024!C16 -> 65000 | D76: non payé | E76: =[2]LoyersConsolide!E76 -> 2050-01-01 | F76: =[2]LoyersConsolide!F76 -> 0 | G76: =[2]LoyersConsolide!G76 -> 0 | H76: =[2]LoyersConsolide!H76 -> 0 | I76: =SuiviPMTLoyers2024!I16 -> 0 | J76: =SuiviPMTLoyers2024!J16 -> 0 | K76: =SuiviPMTLoyers2024!K16 -> 0 | L76: =SuiviPMTLoyers2024!L16 -> 0 | M76: =SuiviPMTLoyers2024!M16 -> 0 | N76: =SuiviPMTLoyers2024!N16 -> 0
A77: =SuiviPMTLoyers2024!A17 -> 130/2 | B77: =SuiviPMTLoyers2024!B17 -> 2024-04-01 | C77: =SuiviPMTLoyers2024!C17 -> 65000 | D77: non payé | E77: =[2]LoyersConsolide!E77 -> 2050-01-01 | F77: =[2]LoyersConsolide!F77 -> 0 | G77: =[2]LoyersConsolide!G77 -> 0 | H77: =[2]LoyersConsolide!H77 -> 0 | I77: =SuiviPMTLoyers2024!I17 -> 0 | J77: =SuiviPMTLoyers2024!J17 -> 0 | K77: =SuiviPMTLoyers2024!K17 -> 0 | L77: =SuiviPMTLoyers2024!L17 -> 0 | M77: =SuiviPMTLoyers2024!M17 -> 0 | N77: =SuiviPMTLoyers2024!N17 -> 0
A78: =SuiviPMTLoyers2024!A18 -> 130/2 | B78: =SuiviPMTLoyers2024!B18 -> 2024-05-01 | C78: =SuiviPMTLoyers2024!C18 -> 65000 | D78: non payé | E78: =[2]LoyersConsolide!E78 -> 2050-01-01 | F78: =[2]LoyersConsolide!F78 -> 0 | G78: =[2]LoyersConsolide!G78 -> 0 | H78: =[2]LoyersConsolide!H78 -> 0 | I78: =SuiviPMTLoyers2024!I18 -> 0 | J78: =SuiviPMTLoyers2024!J18 -> 0 | K78: =SuiviPMTLoyers2024!K18 -> 0 | L78: =SuiviPMTLoyers2024!L18 -> 0 | M78: =SuiviPMTLoyers2024!M18 -> 0 | N78: =SuiviPMTLoyers2024!N18 -> 0
A79: =SuiviPMTLoyers2024!A19 -> 130/2 | B79: =SuiviPMTLoyers2024!B19 -> 2024-06-01 | C79: =SuiviPMTLoyers2024!C19 -> 65000 | D79: non payé | E79: =[2]LoyersConsolide!E79 -> 2050-01-01 | F79: =[2]LoyersConsolide!F79 -> 0 | G79: =[2]LoyersConsolide!G79 -> 0 | H79: =[2]LoyersConsolide!H79 -> 0 | I79: =SuiviPMTLoyers2024!I19 -> 0 | J79: =SuiviPMTLoyers2024!J19 -> 0 | K79: =SuiviPMTLoyers2024!K19 -> 0 | L79: =SuiviPMTLoyers2024!L19 -> 0 | M79: =SuiviPMTLoyers2024!M19 -> 0 | N79: =SuiviPMTLoyers2024!N19 -> 0
A80: =SuiviPMTLoyers2024!A20 -> 130/2 | B80: =SuiviPMTLoyers2024!B20 -> 2024-07-01 | C80: =SuiviPMTLoyers2024!C20 -> 65000 | D80: non payé | E80: =[2]LoyersConsolide!E80 -> 2050-01-01 | F80: =[2]LoyersConsolide!F80 -> 0 | G80: =[2]LoyersConsolide!G80 -> 0 | H80: =[2]LoyersConsolide!H80 -> 0 | I80: =SuiviPMTLoyers2024!I20 -> 0 | J80: =SuiviPMTLoyers2024!J20 -> 0 | K80: =SuiviPMTLoyers2024!K20 -> 0 | L80: =SuiviPMTLoyers2024!L20 -> 0 | M80: =SuiviPMTLoyers2024!M20 -> 0 | N80: =SuiviPMTLoyers2024!N20 -> 0
A81: =SuiviPMTLoyers2024!A21 -> 130/2 | B81: =SuiviPMTLoyers2024!B21 -> 2024-08-01 | C81: =SuiviPMTLoyers2024!C21 -> 65000 | D81: non payé | E81: =[2]LoyersConsolide!E81 -> 2050-01-01 | F81: =[2]LoyersConsolide!F81 -> 0 | G81: =[2]LoyersConsolide!G81 -> 0 | H81: =[2]LoyersConsolide!H81 -> 0 | I81: =SuiviPMTLoyers2024!I21 -> 0 | J81: =SuiviPMTLoyers2024!J21 -> 0 | K81: =SuiviPMTLoyers2024!K21 -> 0 | L81: =SuiviPMTLoyers2024!L21 -> 0 | M81: =SuiviPMTLoyers2024!M21 -> 0 | N81: =SuiviPMTLoyers2024!N21 -> 0
A82: =SuiviPMTLoyers2024!A22 -> 130/2 | B82: =SuiviPMTLoyers2024!B22 -> 2024-09-01 | C82: =SuiviPMTLoyers2024!C22 -> 65000 | D82: non payé | E82: =[2]LoyersConsolide!E82 -> 2050-01-01 | F82: =[2]LoyersConsolide!F82 -> 0 | G82: =[2]LoyersConsolide!G82 -> 0 | H82: =[2]LoyersConsolide!H82 -> 0 | I82: =SuiviPMTLoyers2024!I22 -> 0 | J82: =SuiviPMTLoyers2024!J22 -> 0 | K82: =SuiviPMTLoyers2024!K22 -> 0 | L82: =SuiviPMTLoyers2024!L22 -> 0 | M82: =SuiviPMTLoyers2024!M22 -> 0 | N82: =SuiviPMTLoyers2024!N22 -> 0
A83: =SuiviPMTLoyers2024!A23 -> 130/2 | B83: =SuiviPMTLoyers2024!B23 -> 2024-10-01 | C83: =SuiviPMTLoyers2024!C23 -> 65000 | D83: non payé | E83: =[2]LoyersConsolide!E83 -> 2050-01-01 | F83: =[2]LoyersConsolide!F83 -> 0 | G83: =[2]LoyersConsolide!G83 -> 0 | H83: =[2]LoyersConsolide!H83 -> 0 | I83: =SuiviPMTLoyers2024!I23 -> 0 | J83: =SuiviPMTLoyers2024!J23 -> 0 | K83: =SuiviPMTLoyers2024!K23 -> 0 | L83: =SuiviPMTLoyers2024!L23 -> 0 | M83: =SuiviPMTLoyers2024!M23 -> 0 | N83: =SuiviPMTLoyers2024!N23 -> 0
A84: =SuiviPMTLoyers2024!A24 -> 130/2 | B84: =SuiviPMTLoyers2024!B24 -> 2024-11-01 | C84: =SuiviPMTLoyers2024!C24 -> 65000 | D84: non payé | E84: =[2]LoyersConsolide!E84 -> 2050-01-01 | F84: =[2]LoyersConsolide!F84 -> 0 | G84: =[2]LoyersConsolide!G84 -> 0 | H84: =[2]LoyersConsolide!H84 -> 0 | I84: =SuiviPMTLoyers2024!I24 -> 0 | J84: =SuiviPMTLoyers2024!J24 -> 0 | K84: =SuiviPMTLoyers2024!K24 -> 0 | L84: =SuiviPMTLoyers2024!L24 -> 0 | M84: =SuiviPMTLoyers2024!M24 -> 0 | N84: =SuiviPMTLoyers2024!N24 -> 0
A85: =SuiviPMTLoyers2024!A25 -> 130/2 | B85: =SuiviPMTLoyers2024!B25 -> 2024-12-01 | C85: =SuiviPMTLoyers2024!C25 -> 65000 | D85: non payé | E85: =[2]LoyersConsolide!E85 -> 2050-01-01 | F85: =[2]LoyersConsolide!F85 -> 0 | G85: =[2]LoyersConsolide!G85 -> 0 | H85: =[2]LoyersConsolide!H85 -> 0 | I85: =SuiviPMTLoyers2024!I25 -> 0 | J85: =SuiviPMTLoyers2024!J25 -> 0 | K85: =SuiviPMTLoyers2024!K25 -> 0 | L85: =SuiviPMTLoyers2024!L25 -> 0 | M85: =SuiviPMTLoyers2024!M25 -> 0 | N85: =SuiviPMTLoyers2024!N25 -> 0
A86: =SuiviPMTLoyers2025!A14 -> 130/2 | B86: =SuiviPMTLoyers2025!B14 -> 2025-01-01 | C86: =SuiviPMTLoyers2025!C14 -> 65000 | D86: non payé | E86: =[2]LoyersConsolide!E86 -> 2050-01-01 | F86: =[2]LoyersConsolide!F86 -> 0 | G86: =[2]LoyersConsolide!G86 -> 0 | H86: =[2]LoyersConsolide!H86 -> 0 | I86: =SuiviPMTLoyers2025!I14 -> 0 | J86: =SuiviPMTLoyers2025!J14 -> 0 | K86: =SuiviPMTLoyers2025!K14 -> 0 | L86: =SuiviPMTLoyers2025!L14 -> 0 | M86: =SuiviPMTLoyers2025!M14 -> 0 | N86: =SuiviPMTLoyers2025!N14 -> 0
A87: =SuiviPMTLoyers2025!A15 -> 130/2 | B87: =SuiviPMTLoyers2025!B15 -> 2025-02-01 | C87: =SuiviPMTLoyers2025!C15 -> 65000 | D87: non payé | E87: =[2]LoyersConsolide!E87 -> 2050-01-01 | F87: =[2]LoyersConsolide!F87 -> 0 | G87: =[2]LoyersConsolide!G87 -> 0 | H87: =[2]LoyersConsolide!H87 -> 0 | I87: =SuiviPMTLoyers2025!I15 -> 0 | J87: =SuiviPMTLoyers2025!J15 -> 0 | K87: =SuiviPMTLoyers2025!K15 -> 0 | L87: =SuiviPMTLoyers2025!L15 -> 0 | M87: =SuiviPMTLoyers2025!M15 -> 0 | N87: =SuiviPMTLoyers2025!N15 -> 0
A88: =SuiviPMTLoyers2025!A16 -> 130/2 | B88: =SuiviPMTLoyers2025!B16 -> 2025-03-01 | C88: =SuiviPMTLoyers2025!C16 -> 65000 | D88: non payé | E88: =[2]LoyersConsolide!E88 -> 2050-01-01 | F88: =[2]LoyersConsolide!F88 -> 0 | G88: =[2]LoyersConsolide!G88 -> 0 | H88: =[2]LoyersConsolide!H88 -> 0 | I88: =SuiviPMTLoyers2025!I16 -> 0 | J88: =SuiviPMTLoyers2025!J16 -> 0 | K88: =SuiviPMTLoyers2025!K16 -> 0 | L88: =SuiviPMTLoyers2025!L16 -> 0 | M88: =SuiviPMTLoyers2025!M16 -> 0 | N88: =SuiviPMTLoyers2025!N16 -> 0
A89: =SuiviPMTLoyers2025!A17 -> 130/2 | B89: =SuiviPMTLoyers2025!B17 -> 2025-04-01 | C89: =SuiviPMTLoyers2025!C17 -> 65000 | D89: non payé | E89: =[2]LoyersConsolide!E89 -> 2050-01-01 | F89: =[2]LoyersConsolide!F89 -> 0 | G89: =[2]LoyersConsolide!G89 -> 0 | H89: =[2]LoyersConsolide!H89 -> 0 | I89: =SuiviPMTLoyers2025!I17 -> 0 | J89: =SuiviPMTLoyers2025!J17 -> 0 | K89: =SuiviPMTLoyers2025!K17 -> 0 | L89: =SuiviPMTLoyers2025!L17 -> 0 | M89: =SuiviPMTLoyers2025!M17 -> 0 | N89: =SuiviPMTLoyers2025!N17 -> 0
A90: =SuiviPMTLoyers2025!A18 -> 130/2 | B90: =SuiviPMTLoyers2025!B18 -> 2025-05-01 | C90: =SuiviPMTLoyers2025!C18 -> 65000 | D90: non payé | E90: =[2]LoyersConsolide!E90 -> 2050-01-01 | F90: =[2]LoyersConsolide!F90 -> 0 | G90: =[2]LoyersConsolide!G90 -> 0 | H90: =[2]LoyersConsolide!H90 -> 0 | I90: =SuiviPMTLoyers2025!I18 -> 0 | J90: =SuiviPMTLoyers2025!J18 -> 0 | K90: =SuiviPMTLoyers2025!K18 -> 0 | L90: =SuiviPMTLoyers2025!L18 -> 0 | M90: =SuiviPMTLoyers2025!M18 -> 0 | N90: =SuiviPMTLoyers2025!N18 -> 0
A91: =SuiviPMTLoyers2025!A19 -> 130/2 | B91: =SuiviPMTLoyers2025!B19 -> 2025-06-01 | C91: =SuiviPMTLoyers2025!C19 -> 65000 | D91: non payé | E91: =[2]LoyersConsolide!E91 -> 2050-01-01 | F91: =[2]LoyersConsolide!F91 -> 0 | G91: =[2]LoyersConsolide!G91 -> 0 | H91: =[2]LoyersConsolide!H91 -> 0 | I91: =SuiviPMTLoyers2025!I19 -> 0 | J91: =SuiviPMTLoyers2025!J19 -> 0 | K91: =SuiviPMTLoyers2025!K19 -> 0 | L91: =SuiviPMTLoyers2025!L19 -> 0 | M91: =SuiviPMTLoyers2025!M19 -> 0 | N91: =SuiviPMTLoyers2025!N19 -> 0
A92: =SuiviPMTLoyers2025!A20 -> 130/2 | B92: =SuiviPMTLoyers2025!B20 -> 2025-07-01 | C92: =SuiviPMTLoyers2025!C20 -> 65000 | D92: non payé | E92: =[2]LoyersConsolide!E92 -> 2050-01-01 | F92: =[2]LoyersConsolide!F92 -> 0 | G92: =[2]LoyersConsolide!G92 -> 0 | H92: =[2]LoyersConsolide!H92 -> 0 | I92: =SuiviPMTLoyers2025!I20 -> 0 | J92: =SuiviPMTLoyers2025!J20 -> 0 | K92: =SuiviPMTLoyers2025!K20 -> 0 | L92: =SuiviPMTLoyers2025!L20 -> 0 | M92: =SuiviPMTLoyers2025!M20 -> 0 | N92: =SuiviPMTLoyers2025!N20 -> 0
A93: =SuiviPMTLoyers2025!A21 -> 130/2 | B93: =SuiviPMTLoyers2025!B21 -> 2025-08-01 | C93: =SuiviPMTLoyers2025!C21 -> 65000 | D93: non payé | E93: =[2]LoyersConsolide!E93 -> 2050-01-01 | F93: =[2]LoyersConsolide!F93 -> 0 | G93: =[2]LoyersConsolide!G93 -> 0 | H93: =[2]LoyersConsolide!H93 -> 0 | I93: =SuiviPMTLoyers2025!I21 -> 0 | J93: =SuiviPMTLoyers2025!J21 -> 0 | K93: =SuiviPMTLoyers2025!K21 -> 0 | L93: =SuiviPMTLoyers2025!L21 -> 0 | M93: =SuiviPMTLoyers2025!M21 -> 0 | N93: =SuiviPMTLoyers2025!N21 -> 0
A94: =SuiviPMTLoyers2025!A22 -> 130/2 | B94: =SuiviPMTLoyers2025!B22 -> 2025-09-01 | C94: =SuiviPMTLoyers2025!C22 -> 65000 | D94: non payé | E94: =[2]LoyersConsolide!E94 -> 2050-01-01 | F94: =[2]LoyersConsolide!F94 -> 0 | G94: =[2]LoyersConsolide!G94 -> 0 | H94: =[2]LoyersConsolide!H94 -> 0 | I94: =SuiviPMTLoyers2025!I22 -> 0 | J94: =SuiviPMTLoyers2025!J22 -> 0 | K94: =SuiviPMTLoyers2025!K22 -> 0 | L94: =SuiviPMTLoyers2025!L22 -> 0 | M94: =SuiviPMTLoyers2025!M22 -> 0 | N94: =SuiviPMTLoyers2025!N22 -> 0
A95: =SuiviPMTLoyers2025!A23 -> 130/2 | B95: =SuiviPMTLoyers2025!B23 -> 2025-10-01 | C95: =SuiviPMTLoyers2025!C23 -> 65000 | D95: non payé | E95: =[2]LoyersConsolide!E95 -> 2050-01-01 | F95: =[2]LoyersConsolide!F95 -> 0 | G95: =[2]LoyersConsolide!G95 -> 0 | H95: =[2]LoyersConsolide!H95 -> 0 | I95: =SuiviPMTLoyers2025!I23 -> 0 | J95: =SuiviPMTLoyers2025!J23 -> 0 | K95: =SuiviPMTLoyers2025!K23 -> 0 | L95: =SuiviPMTLoyers2025!L23 -> 0 | M95: =SuiviPMTLoyers2025!M23 -> 0 | N95: =SuiviPMTLoyers2025!N23 -> 0
A96: =SuiviPMTLoyers2025!A24 -> 130/2 | B96: =SuiviPMTLoyers2025!B24 -> 2025-11-01 | C96: =SuiviPMTLoyers2025!C24 -> 65000 | D96: non payé | E96: =[2]LoyersConsolide!E96 -> 2050-01-01 | F96: =[2]LoyersConsolide!F96 -> 0 | G96: =[2]LoyersConsolide!G96 -> 0 | H96: =[2]LoyersConsolide!H96 -> 0 | I96: =SuiviPMTLoyers2025!I24 -> 0 | J96: =SuiviPMTLoyers2025!J24 -> 0 | K96: =SuiviPMTLoyers2025!K24 -> 0 | L96: =SuiviPMTLoyers2025!L24 -> 0 | M96: =SuiviPMTLoyers2025!M24 -> 0 | N96: =SuiviPMTLoyers2025!N24 -> 0
A97: =SuiviPMTLoyers2025!A25 -> 130/2 | B97: =SuiviPMTLoyers2025!B25 -> 2025-12-01 | C97: =SuiviPMTLoyers2025!C25 -> 65000 | D97: non payé | E97: =[2]LoyersConsolide!E97 -> 2050-01-01 | F97: =[2]LoyersConsolide!F97 -> 0 | G97: =[2]LoyersConsolide!G97 -> 0 | H97: =[2]LoyersConsolide!H97 -> 0 | I97: =SuiviPMTLoyers2025!I25 -> 0 | J97: =SuiviPMTLoyers2025!J25 -> 0 | K97: =SuiviPMTLoyers2025!K25 -> 0 | L97: =SuiviPMTLoyers2025!L25 -> 0 | M97: =SuiviPMTLoyers2025!M25 -> 0 | N97: =SuiviPMTLoyers2025!N25 -> 0
A98: =SuiviPMTLoyers2022!A26 -> 132/3 | B98: =SuiviPMTLoyers2022!B26 -> 2022-01-01 | C98: =SuiviPMTLoyers2022!C26 -> 65000 | D98: oui | E98: =[2]LoyersConsolide!E98 -> 2022-02-21 | F98: =[2]LoyersConsolide!F98 -> 0 | G98: =[2]LoyersConsolide!G98 -> 0 | H98: =[2]LoyersConsolide!H98 -> 0 | I98: =SuiviPMTLoyers2022!I26 -> 0 | J98: =SuiviPMTLoyers2022!J26 -> 0 | K98: =SuiviPMTLoyers2022!K26 -> 0 | L98: =SuiviPMTLoyers2022!L26 -> 0 | M98: =SuiviPMTLoyers2022!M26 -> 0 | N98: =SuiviPMTLoyers2022!N26 -> 0
A99: =SuiviPMTLoyers2022!A27 -> 132/3 | B99: =SuiviPMTLoyers2022!B27 -> 2022-02-01 | C99: =SuiviPMTLoyers2022!C27 -> 65000 | D99: oui | E99: =[2]LoyersConsolide!E99 -> 2022-02-21 | F99: =[2]LoyersConsolide!F99 -> 0 | G99: =[2]LoyersConsolide!G99 -> 0 | H99: =[2]LoyersConsolide!H99 -> 0 | I99: =SuiviPMTLoyers2022!I27 -> 0 | J99: =SuiviPMTLoyers2022!J27 -> 0 | K99: =SuiviPMTLoyers2022!K27 -> 0 | L99: =SuiviPMTLoyers2022!L27 -> 0 | M99: =SuiviPMTLoyers2022!M27 -> 0 | N99: =SuiviPMTLoyers2022!N27 -> 0
A100: =SuiviPMTLoyers2022!A28 -> 132/3 | B100: =SuiviPMTLoyers2022!B28 -> 2022-03-01 | C100: =SuiviPMTLoyers2022!C28 -> 65000 | D100: oui | E100: =[2]LoyersConsolide!E100 -> 2022-02-21 | F100: =[2]LoyersConsolide!F100 -> 0 | G100: =[2]LoyersConsolide!G100 -> 0 | H100: =[2]LoyersConsolide!H100 -> 0 | I100: =SuiviPMTLoyers2022!I28 -> 0 | J100: =SuiviPMTLoyers2022!J28 -> 0 | K100: =SuiviPMTLoyers2022!K28 -> 0 | L100: =SuiviPMTLoyers2022!L28 -> 0 | M100: =SuiviPMTLoyers2022!M28 -> 0 | N100: =SuiviPMTLoyers2022!N28 -> 0
A101: =SuiviPMTLoyers2022!A29 -> 132/3 | B101: =SuiviPMTLoyers2022!B29 -> 2022-04-01 | C101: =SuiviPMTLoyers2022!C29 -> 65000 | D101: oui | E101: =[2]LoyersConsolide!E101 -> 2022-02-21 | F101: =[2]LoyersConsolide!F101 -> 0 | G101: =[2]LoyersConsolide!G101 -> 0 | H101: =[2]LoyersConsolide!H101 -> 0 | I101: =SuiviPMTLoyers2022!I29 -> 0 | J101: =SuiviPMTLoyers2022!J29 -> 0 | K101: =SuiviPMTLoyers2022!K29 -> 0 | L101: =SuiviPMTLoyers2022!L29 -> 0 | M101: =SuiviPMTLoyers2022!M29 -> 0 | N101: =SuiviPMTLoyers2022!N29 -> 0
A102: =SuiviPMTLoyers2022!A30 -> 132/3 | B102: =SuiviPMTLoyers2022!B30 -> 2022-05-01 | C102: =SuiviPMTLoyers2022!C30 -> 65000 | D102: oui | E102: =[2]LoyersConsolide!E102 -> 2022-02-21 | F102: =[2]LoyersConsolide!F102 -> 0 | G102: =[2]LoyersConsolide!G102 -> 0 | H102: =[2]LoyersConsolide!H102 -> 0 | I102: =SuiviPMTLoyers2022!I30 -> 0 | J102: =SuiviPMTLoyers2022!J30 -> 0 | K102: =SuiviPMTLoyers2022!K30 -> 0 | L102: =SuiviPMTLoyers2022!L30 -> 0 | M102: =SuiviPMTLoyers2022!M30 -> 0 | N102: =SuiviPMTLoyers2022!N30 -> 0
A103: =SuiviPMTLoyers2022!A31 -> 132/3 | B103: =SuiviPMTLoyers2022!B31 -> 2022-06-01 | C103: =SuiviPMTLoyers2022!C31 -> 65000 | D103: oui | E103: =[2]LoyersConsolide!E103 -> 2022-02-21 | F103: =[2]LoyersConsolide!F103 -> 0 | G103: =[2]LoyersConsolide!G103 -> 0 | H103: =[2]LoyersConsolide!H103 -> 0 | I103: =SuiviPMTLoyers2022!I31 -> 0 | J103: =SuiviPMTLoyers2022!J31 -> 0 | K103: =SuiviPMTLoyers2022!K31 -> 0 | L103: =SuiviPMTLoyers2022!L31 -> 0 | M103: =SuiviPMTLoyers2022!M31 -> 0 | N103: =SuiviPMTLoyers2022!N31 -> 0
A104: =SuiviPMTLoyers2022!A32 -> 132/3 | B104: =SuiviPMTLoyers2022!B32 -> 2022-07-01 | C104: =SuiviPMTLoyers2022!C32 -> 65000 | D104: oui | E104: =[2]LoyersConsolide!E104 -> 2022-10-11 | F104: =[2]LoyersConsolide!F104 -> 0 | G104: =[2]LoyersConsolide!G104 -> 0 | H104: =[2]LoyersConsolide!H104 -> 0 | I104: =SuiviPMTLoyers2022!I32 -> 0 | J104: =SuiviPMTLoyers2022!J32 -> 0 | K104: =SuiviPMTLoyers2022!K32 -> 0 | L104: =SuiviPMTLoyers2022!L32 -> 0 | M104: =SuiviPMTLoyers2022!M32 -> 0 | N104: =SuiviPMTLoyers2022!N32 -> 0
A105: =SuiviPMTLoyers2022!A33 -> 132/3 | B105: =SuiviPMTLoyers2022!B33 -> 2022-08-01 | C105: =SuiviPMTLoyers2022!C33 -> 65000 | D105: oui | E105: =[2]LoyersConsolide!E105 -> 2022-10-11 | F105: =[2]LoyersConsolide!F105 -> 0 | G105: =[2]LoyersConsolide!G105 -> 0 | H105: =[2]LoyersConsolide!H105 -> 0 | I105: =SuiviPMTLoyers2022!I33 -> 0 | J105: =SuiviPMTLoyers2022!J33 -> 0 | K105: =SuiviPMTLoyers2022!K33 -> 0 | L105: =SuiviPMTLoyers2022!L33 -> 0 | M105: =SuiviPMTLoyers2022!M33 -> 0 | N105: =SuiviPMTLoyers2022!N33 -> 0
A106: =SuiviPMTLoyers2022!A34 -> 132/3 | B106: =SuiviPMTLoyers2022!B34 -> 2022-09-01 | C106: =SuiviPMTLoyers2022!C34 -> 65000 | D106: oui | E106: =[2]LoyersConsolide!E106 -> 2022-10-11 | F106: =[2]LoyersConsolide!F106 -> 0 | G106: =[2]LoyersConsolide!G106 -> 0 | H106: =[2]LoyersConsolide!H106 -> 0 | I106: =SuiviPMTLoyers2022!I34 -> 0 | J106: =SuiviPMTLoyers2022!J34 -> 0 | K106: =SuiviPMTLoyers2022!K34 -> 0 | L106: =SuiviPMTLoyers2022!L34 -> 0 | M106: =SuiviPMTLoyers2022!M34 -> 0 | N106: =SuiviPMTLoyers2022!N34 -> 0
A107: =SuiviPMTLoyers2022!A35 -> 132/3 | B107: =SuiviPMTLoyers2022!B35 -> 2022-10-01 | C107: =SuiviPMTLoyers2022!C35 -> 65000 | D107: oui | E107: =[2]LoyersConsolide!E107 -> 2022-10-11 | F107: =[2]LoyersConsolide!F107 -> 0 | G107: =[2]LoyersConsolide!G107 -> 0 | H107: =[2]LoyersConsolide!H107 -> 0 | I107: =SuiviPMTLoyers2022!I35 -> 0 | J107: =SuiviPMTLoyers2022!J35 -> 0 | K107: =SuiviPMTLoyers2022!K35 -> 0 | L107: =SuiviPMTLoyers2022!L35 -> 0 | M107: =SuiviPMTLoyers2022!M35 -> 0 | N107: =SuiviPMTLoyers2022!N35 -> 0
A108: =SuiviPMTLoyers2022!A36 -> 132/3 | B108: =SuiviPMTLoyers2022!B36 -> 2022-11-01 | C108: =SuiviPMTLoyers2022!C36 -> 65000 | D108: oui | E108: =[2]LoyersConsolide!E108 -> 2022-10-11 | F108: =[2]LoyersConsolide!F108 -> 0 | G108: =[2]LoyersConsolide!G108 -> 0 | H108: =[2]LoyersConsolide!H108 -> 0 | I108: =SuiviPMTLoyers2022!I36 -> 0 | J108: =SuiviPMTLoyers2022!J36 -> 0 | K108: =SuiviPMTLoyers2022!K36 -> 0 | L108: =SuiviPMTLoyers2022!L36 -> 0 | M108: =SuiviPMTLoyers2022!M36 -> 0 | N108: =SuiviPMTLoyers2022!N36 -> 0
A109: =SuiviPMTLoyers2022!A37 -> 132/3 | B109: =SuiviPMTLoyers2022!B37 -> 2022-12-01 | C109: =SuiviPMTLoyers2022!C37 -> 65000 | D109: oui | E109: =[2]LoyersConsolide!E109 -> 2022-10-11 | F109: =[2]LoyersConsolide!F109 -> 0 | G109: =[2]LoyersConsolide!G109 -> 0 | H109: =[2]LoyersConsolide!H109 -> 0 | I109: =SuiviPMTLoyers2022!I37 -> 0 | J109: =SuiviPMTLoyers2022!J37 -> 0 | K109: =SuiviPMTLoyers2022!K37 -> 0 | L109: =SuiviPMTLoyers2022!L37 -> 0 | M109: =SuiviPMTLoyers2022!M37 -> 0 | N109: =SuiviPMTLoyers2022!N37 -> 0
A110: =SuiviPMTLoyers2023!A26 -> 132/3 | B110: =SuiviPMTLoyers2023!B26 -> 2023-01-01 | C110: =SuiviPMTLoyers2023!C26 -> 65000 | D110: oui | E110: =[2]LoyersConsolide!E110 -> 2023-03-15 | F110: =[2]LoyersConsolide!F110 -> 0 | G110: =[2]LoyersConsolide!G110 -> 0 | H110: =[2]LoyersConsolide!H110 -> 0 | I110: =SuiviPMTLoyers2023!I26 -> 0 | J110: =SuiviPMTLoyers2023!J26 -> 0 | K110: =SuiviPMTLoyers2023!K26 -> 0 | L110: =SuiviPMTLoyers2023!L26 -> 0 | M110: =SuiviPMTLoyers2023!M26 -> 0 | N110: =SuiviPMTLoyers2023!N26 -> 0
A111: =SuiviPMTLoyers2023!A27 -> 132/3 | B111: =SuiviPMTLoyers2023!B27 -> 2023-02-01 | C111: =SuiviPMTLoyers2023!C27 -> 65000 | D111: oui | E111: =[2]LoyersConsolide!E111 -> 2023-03-15 | F111: =[2]LoyersConsolide!F111 -> 0 | G111: =[2]LoyersConsolide!G111 -> 0 | H111: =[2]LoyersConsolide!H111 -> 0 | I111: =SuiviPMTLoyers2023!I27 -> 0 | J111: =SuiviPMTLoyers2023!J27 -> 0 | K111: =SuiviPMTLoyers2023!K27 -> 0 | L111: =SuiviPMTLoyers2023!L27 -> 0 | M111: =SuiviPMTLoyers2023!M27 -> 0 | N111: =SuiviPMTLoyers2023!N27 -> 0
A112: =SuiviPMTLoyers2023!A28 -> 132/3 | B112: =SuiviPMTLoyers2023!B28 -> 2023-03-01 | C112: =SuiviPMTLoyers2023!C28 -> 65000 | D112: oui | E112: =[2]LoyersConsolide!E112 -> 2023-03-15 | F112: =[2]LoyersConsolide!F112 -> 0 | G112: =[2]LoyersConsolide!G112 -> 0 | H112: =[2]LoyersConsolide!H112 -> 0 | I112: =SuiviPMTLoyers2023!I28 -> 0 | J112: =SuiviPMTLoyers2023!J28 -> 0 | K112: =SuiviPMTLoyers2023!K28 -> 0 | L112: =SuiviPMTLoyers2023!L28 -> 0 | M112: =SuiviPMTLoyers2023!M28 -> 0 | N112: =SuiviPMTLoyers2023!N28 -> 0
A113: =SuiviPMTLoyers2023!A29 -> 132/3 | B113: =SuiviPMTLoyers2023!B29 -> 2023-04-01 | C113: =SuiviPMTLoyers2023!C29 -> 65000 | D113: oui | E113: =[2]LoyersConsolide!E113 -> 2023-03-15 | F113: =[2]LoyersConsolide!F113 -> 0 | G113: =[2]LoyersConsolide!G113 -> 0 | H113: =[2]LoyersConsolide!H113 -> 0 | I113: =SuiviPMTLoyers2023!I29 -> 0 | J113: =SuiviPMTLoyers2023!J29 -> 0 | K113: =SuiviPMTLoyers2023!K29 -> 0 | L113: =SuiviPMTLoyers2023!L29 -> 0 | M113: =SuiviPMTLoyers2023!M29 -> 0 | N113: =SuiviPMTLoyers2023!N29 -> 0
A114: =SuiviPMTLoyers2023!A30 -> 132/3 | B114: =SuiviPMTLoyers2023!B30 -> 2023-05-01 | C114: =SuiviPMTLoyers2023!C30 -> 65000 | D114: oui | E114: =[2]LoyersConsolide!E114 -> 2023-03-15 | F114: =[2]LoyersConsolide!F114 -> 0 | G114: =[2]LoyersConsolide!G114 -> 0 | H114: =[2]LoyersConsolide!H114 -> 0 | I114: =SuiviPMTLoyers2023!I30 -> 0 | J114: =SuiviPMTLoyers2023!J30 -> 0 | K114: =SuiviPMTLoyers2023!K30 -> 0 | L114: =SuiviPMTLoyers2023!L30 -> 0 | M114: =SuiviPMTLoyers2023!M30 -> 0 | N114: =SuiviPMTLoyers2023!N30 -> 0
A115: =SuiviPMTLoyers2023!A31 -> 132/3 | B115: =SuiviPMTLoyers2023!B31 -> 2023-06-01 | C115: =SuiviPMTLoyers2023!C31 -> 65000 | D115: oui | E115: =[2]LoyersConsolide!E115 -> 2023-03-15 | F115: =[2]LoyersConsolide!F115 -> 0 | G115: =[2]LoyersConsolide!G115 -> 0 | H115: =[2]LoyersConsolide!H115 -> 0 | I115: =SuiviPMTLoyers2023!I31 -> 0 | J115: =SuiviPMTLoyers2023!J31 -> 0 | K115: =SuiviPMTLoyers2023!K31 -> 0 | L115: =SuiviPMTLoyers2023!L31 -> 0 | M115: =SuiviPMTLoyers2023!M31 -> 0 | N115: =SuiviPMTLoyers2023!N31 -> 0
A116: =SuiviPMTLoyers2023!A32 -> 132/3 | B116: =SuiviPMTLoyers2023!B32 -> 2023-07-01 | C116: =SuiviPMTLoyers2023!C32 -> 65000 | D116: oui | E116: =[2]LoyersConsolide!E116 -> 2023-09-11 | F116: =[2]LoyersConsolide!F116 -> 0 | G116: =[2]LoyersConsolide!G116 -> 0 | H116: =[2]LoyersConsolide!H116 -> 0 | I116: =SuiviPMTLoyers2023!I32 -> 0 | J116: =SuiviPMTLoyers2023!J32 -> 0 | K116: =SuiviPMTLoyers2023!K32 -> 0 | L116: =SuiviPMTLoyers2023!L32 -> 0 | M116: =SuiviPMTLoyers2023!M32 -> 0 | N116: =SuiviPMTLoyers2023!N32 -> 0
A117: =SuiviPMTLoyers2023!A33 -> 132/3 | B117: =SuiviPMTLoyers2023!B33 -> 2023-08-01 | C117: =SuiviPMTLoyers2023!C33 -> 65000 | D117: oui | E117: =[2]LoyersConsolide!E117 -> 2023-09-11 | F117: =[2]LoyersConsolide!F117 -> 0 | G117: =[2]LoyersConsolide!G117 -> 0 | H117: =[2]LoyersConsolide!H117 -> 0 | I117: =SuiviPMTLoyers2023!I33 -> 0 | J117: =SuiviPMTLoyers2023!J33 -> 0 | K117: =SuiviPMTLoyers2023!K33 -> 0 | L117: =SuiviPMTLoyers2023!L33 -> 0 | M117: =SuiviPMTLoyers2023!M33 -> 0 | N117: =SuiviPMTLoyers2023!N33 -> 0
A118: =SuiviPMTLoyers2023!A34 -> 132/3 | B118: =SuiviPMTLoyers2023!B34 -> 2023-09-01 | C118: =SuiviPMTLoyers2023!C34 -> 65000 | D118: oui | E118: =[2]LoyersConsolide!E118 -> 2023-09-11 | F118: =[2]LoyersConsolide!F118 -> 0 | G118: =[2]LoyersConsolide!G118 -> 0 | H118: =[2]LoyersConsolide!H118 -> 0 | I118: =SuiviPMTLoyers2023!I34 -> 0 | J118: =SuiviPMTLoyers2023!J34 -> 0 | K118: =SuiviPMTLoyers2023!K34 -> 0 | L118: =SuiviPMTLoyers2023!L34 -> 0 | M118: =SuiviPMTLoyers2023!M34 -> 0 | N118: =SuiviPMTLoyers2023!N34 -> 0
A119: =SuiviPMTLoyers2023!A35 -> 132/3 | B119: =SuiviPMTLoyers2023!B35 -> 2023-10-01 | C119: =SuiviPMTLoyers2023!C35 -> 65000 | D119: oui | E119: =[2]LoyersConsolide!E119 -> 2023-09-11 | F119: =[2]LoyersConsolide!F119 -> 0 | G119: =[2]LoyersConsolide!G119 -> 0 | H119: =[2]LoyersConsolide!H119 -> 0 | I119: =SuiviPMTLoyers2023!I35 -> 0 | J119: =SuiviPMTLoyers2023!J35 -> 0 | K119: =SuiviPMTLoyers2023!K35 -> 0 | L119: =SuiviPMTLoyers2023!L35 -> 0 | M119: =SuiviPMTLoyers2023!M35 -> 0 | N119: =SuiviPMTLoyers2023!N35 -> 0
A120: =SuiviPMTLoyers2023!A36 -> 132/3 | B120: =SuiviPMTLoyers2023!B36 -> 2023-11-01 | C120: =SuiviPMTLoyers2023!C36 -> 65000 | D120: oui | E120: =[2]LoyersConsolide!E120 -> 2023-09-11 | F120: =[2]LoyersConsolide!F120 -> 0 | G120: =[2]LoyersConsolide!G120 -> 0 | H120: =[2]LoyersConsolide!H120 -> 0 | I120: =SuiviPMTLoyers2023!I36 -> 0 | J120: =SuiviPMTLoyers2023!J36 -> 0 | K120: =SuiviPMTLoyers2023!K36 -> 0 | L120: =SuiviPMTLoyers2023!L36 -> 0 | M120: =SuiviPMTLoyers2023!M36 -> 0 | N120: =SuiviPMTLoyers2023!N36 -> 0
A121: =SuiviPMTLoyers2023!A37 -> 132/3 | B121: =SuiviPMTLoyers2023!B37 -> 2023-12-01 | C121: =SuiviPMTLoyers2023!C37 -> 65000 | D121: oui | E121: =[2]LoyersConsolide!E121 -> 2023-09-11 | F121: =[2]LoyersConsolide!F121 -> 0 | G121: =[2]LoyersConsolide!G121 -> 0 | H121: =[2]LoyersConsolide!H121 -> 0 | I121: =SuiviPMTLoyers2023!I37 -> 0 | J121: =SuiviPMTLoyers2023!J37 -> 0 | K121: =SuiviPMTLoyers2023!K37 -> 0 | L121: =SuiviPMTLoyers2023!L37 -> 0 | M121: =SuiviPMTLoyers2023!M37 -> 0 | N121: =SuiviPMTLoyers2023!N37 -> 0
A122: =SuiviPMTLoyers2024!A26 -> 132/3 | B122: =SuiviPMTLoyers2024!B26 -> 2024-01-01 | C122: =SuiviPMTLoyers2024!C26 -> 65000 | D122: oui | E122: =[2]LoyersConsolide!E122 -> 2024-04-08 | F122: =[2]LoyersConsolide!F122 -> 0 | G122: =[2]LoyersConsolide!G122 -> 0 | H122: =[2]LoyersConsolide!H122 -> 0 | I122: =SuiviPMTLoyers2024!I26 -> 0 | J122: =SuiviPMTLoyers2024!J26 -> 0 | K122: =SuiviPMTLoyers2024!K26 -> 0 | L122: =SuiviPMTLoyers2024!L26 -> 0 | M122: =SuiviPMTLoyers2024!M26 -> 0 | N122: =SuiviPMTLoyers2024!N26 -> 0
A123: =SuiviPMTLoyers2024!A27 -> 132/3 | B123: =SuiviPMTLoyers2024!B27 -> 2024-02-01 | C123: =SuiviPMTLoyers2024!C27 -> 65000 | D123: oui | E123: =[2]LoyersConsolide!E123 -> 2024-04-08 | F123: =[2]LoyersConsolide!F123 -> 0 | G123: =[2]LoyersConsolide!G123 -> 0 | H123: =[2]LoyersConsolide!H123 -> 0 | I123: =SuiviPMTLoyers2024!I27 -> 0 | J123: =SuiviPMTLoyers2024!J27 -> 0 | K123: =SuiviPMTLoyers2024!K27 -> 0 | L123: =SuiviPMTLoyers2024!L27 -> 0 | M123: =SuiviPMTLoyers2024!M27 -> 0 | N123: =SuiviPMTLoyers2024!N27 -> 0
A124: =SuiviPMTLoyers2024!A28 -> 132/3 | B124: =SuiviPMTLoyers2024!B28 -> 2024-03-01 | C124: =SuiviPMTLoyers2024!C28 -> 65000 | D124: oui | E124: =[2]LoyersConsolide!E124 -> 2024-04-08 | F124: =[2]LoyersConsolide!F124 -> 0 | G124: =[2]LoyersConsolide!G124 -> 0 | H124: =[2]LoyersConsolide!H124 -> 0 | I124: =SuiviPMTLoyers2024!I28 -> 0 | J124: =SuiviPMTLoyers2024!J28 -> 0 | K124: =SuiviPMTLoyers2024!K28 -> 0 | L124: =SuiviPMTLoyers2024!L28 -> 0 | M124: =SuiviPMTLoyers2024!M28 -> 0 | N124: =SuiviPMTLoyers2024!N28 -> 0
A125: =SuiviPMTLoyers2024!A29 -> 132/3 | B125: =SuiviPMTLoyers2024!B29 -> 2024-04-01 | C125: =SuiviPMTLoyers2024!C29 -> 65000 | D125: oui | E125: =[2]LoyersConsolide!E125 -> 2024-04-08 | F125: =[2]LoyersConsolide!F125 -> 0 | G125: =[2]LoyersConsolide!G125 -> 0 | H125: =[2]LoyersConsolide!H125 -> 0 | I125: =SuiviPMTLoyers2024!I29 -> 0 | J125: =SuiviPMTLoyers2024!J29 -> 0 | K125: =SuiviPMTLoyers2024!K29 -> 0 | L125: =SuiviPMTLoyers2024!L29 -> 0 | M125: =SuiviPMTLoyers2024!M29 -> 0 | N125: =SuiviPMTLoyers2024!N29 -> 0
A126: =SuiviPMTLoyers2024!A30 -> 132/3 | B126: =SuiviPMTLoyers2024!B30 -> 2024-05-01 | C126: =SuiviPMTLoyers2024!C30 -> 65000 | D126: oui | E126: =[2]LoyersConsolide!E126 -> 2024-04-08 | F126: =[2]LoyersConsolide!F126 -> 0 | G126: =[2]LoyersConsolide!G126 -> 0 | H126: =[2]LoyersConsolide!H126 -> 0 | I126: =SuiviPMTLoyers2024!I30 -> 0 | J126: =SuiviPMTLoyers2024!J30 -> 0 | K126: =SuiviPMTLoyers2024!K30 -> 0 | L126: =SuiviPMTLoyers2024!L30 -> 0 | M126: =SuiviPMTLoyers2024!M30 -> 0 | N126: =SuiviPMTLoyers2024!N30 -> 0
A127: =SuiviPMTLoyers2024!A31 -> 132/3 | B127: =SuiviPMTLoyers2024!B31 -> 2024-06-01 | C127: =SuiviPMTLoyers2024!C31 -> 65000 | D127: oui | E127: =[2]LoyersConsolide!E127 -> 2024-04-08 | F127: =[2]LoyersConsolide!F127 -> 0 | G127: =[2]LoyersConsolide!G127 -> 0 | H127: =[2]LoyersConsolide!H127 -> 0 | I127: =SuiviPMTLoyers2024!I31 -> 0 | J127: =SuiviPMTLoyers2024!J31 -> 0 | K127: =SuiviPMTLoyers2024!K31 -> 0 | L127: =SuiviPMTLoyers2024!L31 -> 0 | M127: =SuiviPMTLoyers2024!M31 -> 0 | N127: =SuiviPMTLoyers2024!N31 -> 0
A128: =SuiviPMTLoyers2024!A32 -> 132/3 | B128: =SuiviPMTLoyers2024!B32 -> 2024-07-01 | C128: =SuiviPMTLoyers2024!C32 -> 65000 | D128: oui | E128: =[2]LoyersConsolide!E128 -> 2024-09-30 | F128: =[2]LoyersConsolide!F128 -> 0 | G128: =[2]LoyersConsolide!G128 -> 0 | H128: =[2]LoyersConsolide!H128 -> 0 | I128: =SuiviPMTLoyers2024!I32 -> 0 | J128: =SuiviPMTLoyers2024!J32 -> 0 | K128: =SuiviPMTLoyers2024!K32 -> 0 | L128: =SuiviPMTLoyers2024!L32 -> 0 | M128: =SuiviPMTLoyers2024!M32 -> 0 | N128: =SuiviPMTLoyers2024!N32 -> 0
A129: =SuiviPMTLoyers2024!A33 -> 132/3 | B129: =SuiviPMTLoyers2024!B33 -> 2024-08-01 | C129: =SuiviPMTLoyers2024!C33 -> 65000 | D129: oui | E129: =[2]LoyersConsolide!E129 -> 2024-09-30 | F129: =[2]LoyersConsolide!F129 -> 0 | G129: =[2]LoyersConsolide!G129 -> 0 | H129: =[2]LoyersConsolide!H129 -> 0 | I129: =SuiviPMTLoyers2024!I33 -> 0 | J129: =SuiviPMTLoyers2024!J33 -> 0 | K129: =SuiviPMTLoyers2024!K33 -> 0 | L129: =SuiviPMTLoyers2024!L33 -> 0 | M129: =SuiviPMTLoyers2024!M33 -> 0 | N129: =SuiviPMTLoyers2024!N33 -> 0
A130: =SuiviPMTLoyers2024!A34 -> 132/3 | B130: =SuiviPMTLoyers2024!B34 -> 2024-09-01 | C130: =SuiviPMTLoyers2024!C34 -> 65000 | D130: oui | E130: =[2]LoyersConsolide!E130 -> 2024-09-30 | F130: =[2]LoyersConsolide!F130 -> 0 | G130: =[2]LoyersConsolide!G130 -> 0 | H130: =[2]LoyersConsolide!H130 -> 0 | I130: =SuiviPMTLoyers2024!I34 -> 0 | J130: =SuiviPMTLoyers2024!J34 -> 0 | K130: =SuiviPMTLoyers2024!K34 -> 0 | L130: =SuiviPMTLoyers2024!L34 -> 0 | M130: =SuiviPMTLoyers2024!M34 -> 0 | N130: =SuiviPMTLoyers2024!N34 -> 0
A131: =SuiviPMTLoyers2024!A35 -> 132/3 | B131: =SuiviPMTLoyers2024!B35 -> 2024-10-01 | C131: =SuiviPMTLoyers2024!C35 -> 65000 | D131: oui | E131: =[2]LoyersConsolide!E131 -> 2024-09-30 | F131: =[2]LoyersConsolide!F131 -> 0 | G131: =[2]LoyersConsolide!G131 -> 0 | H131: =[2]LoyersConsolide!H131 -> 0 | I131: =SuiviPMTLoyers2024!I35 -> 0 | J131: =SuiviPMTLoyers2024!J35 -> 0 | K131: =SuiviPMTLoyers2024!K35 -> 0 | L131: =SuiviPMTLoyers2024!L35 -> 0 | M131: =SuiviPMTLoyers2024!M35 -> 0 | N131: =SuiviPMTLoyers2024!N35 -> 0
A132: =SuiviPMTLoyers2024!A36 -> 132/3 | B132: =SuiviPMTLoyers2024!B36 -> 2024-11-01 | C132: =SuiviPMTLoyers2024!C36 -> 65000 | D132: oui | E132: =[2]LoyersConsolide!E132 -> 2024-09-30 | F132: =[2]LoyersConsolide!F132 -> 0 | G132: =[2]LoyersConsolide!G132 -> 0 | H132: =[2]LoyersConsolide!H132 -> 0 | I132: =SuiviPMTLoyers2024!I36 -> 0 | J132: =SuiviPMTLoyers2024!J36 -> 0 | K132: =SuiviPMTLoyers2024!K36 -> 0 | L132: =SuiviPMTLoyers2024!L36 -> 0 | M132: =SuiviPMTLoyers2024!M36 -> 0 | N132: =SuiviPMTLoyers2024!N36 -> 0
A133: =SuiviPMTLoyers2024!A37 -> 132/3 | B133: =SuiviPMTLoyers2024!B37 -> 2024-12-01 | C133: =SuiviPMTLoyers2024!C37 -> 65000 | D133: oui | E133: =[2]LoyersConsolide!E133 -> 2024-09-30 | F133: =[2]LoyersConsolide!F133 -> 0 | G133: =[2]LoyersConsolide!G133 -> 0 | H133: =[2]LoyersConsolide!H133 -> 0 | I133: =SuiviPMTLoyers2024!I37 -> 0 | J133: =SuiviPMTLoyers2024!J37 -> 0 | K133: =SuiviPMTLoyers2024!K37 -> 0 | L133: =SuiviPMTLoyers2024!L37 -> 0 | M133: =SuiviPMTLoyers2024!M37 -> 0 | N133: =SuiviPMTLoyers2024!N37 -> 0
A134: =SuiviPMTLoyers2025!A26 -> 132/3 | B134: =SuiviPMTLoyers2025!B26 -> 2025-01-01 | C134: =SuiviPMTLoyers2025!C26 -> 65000 | D134: oui | E134: =[2]LoyersConsolide!E134 -> 2025-03-18 | F134: =[2]LoyersConsolide!F134 -> 643 | G134: =[2]LoyersConsolide!G134 -> 57110 | H134: =[2]LoyersConsolide!H134 -> Mérimée | I134: =SuiviPMTLoyers2025!I26 -> 0 | J134: =SuiviPMTLoyers2025!J26 -> 0 | K134: =SuiviPMTLoyers2025!K26 -> 0 | L134: =SuiviPMTLoyers2025!L26 -> 0 | M134: =SuiviPMTLoyers2025!M26 -> 0 | N134: =SuiviPMTLoyers2025!N26 -> 0
A135: =SuiviPMTLoyers2025!A27 -> 132/3 | B135: =SuiviPMTLoyers2025!B27 -> 2025-02-01 | C135: =SuiviPMTLoyers2025!C27 -> 65000 | D135: oui | E135: =[2]LoyersConsolide!E135 -> 2025-03-18 | F135: =[2]LoyersConsolide!F135 -> 643 | G135: =[2]LoyersConsolide!G135 -> 57110 | H135: =[2]LoyersConsolide!H135 -> Mérimée | I135: =SuiviPMTLoyers2025!I27 -> 0 | J135: =SuiviPMTLoyers2025!J27 -> 0 | K135: =SuiviPMTLoyers2025!K27 -> 0 | L135: =SuiviPMTLoyers2025!L27 -> 0 | M135: =SuiviPMTLoyers2025!M27 -> 0 | N135: =SuiviPMTLoyers2025!N27 -> 0
A136: =SuiviPMTLoyers2025!A28 -> 132/3 | B136: =SuiviPMTLoyers2025!B28 -> 2025-03-01 | C136: =SuiviPMTLoyers2025!C28 -> 65000 | D136: oui | E136: =[2]LoyersConsolide!E136 -> 2025-03-18 | F136: =[2]LoyersConsolide!F136 -> 643 | G136: =[2]LoyersConsolide!G136 -> 57110 | H136: =[2]LoyersConsolide!H136 -> Mérimée | I136: =SuiviPMTLoyers2025!I28 -> 0 | J136: =SuiviPMTLoyers2025!J28 -> 0 | K136: =SuiviPMTLoyers2025!K28 -> 0 | L136: =SuiviPMTLoyers2025!L28 -> 0 | M136: =SuiviPMTLoyers2025!M28 -> 0 | N136: =SuiviPMTLoyers2025!N28 -> 0
A137: =SuiviPMTLoyers2025!A29 -> 132/3 | B137: =SuiviPMTLoyers2025!B29 -> 2025-04-01 | C137: =SuiviPMTLoyers2025!C29 -> 65000 | D137: oui | E137: =[2]LoyersConsolide!E137 -> 2025-03-18 | F137: =[2]LoyersConsolide!F137 -> 643 | G137: =[2]LoyersConsolide!G137 -> 57110 | H137: =[2]LoyersConsolide!H137 -> Mérimée | I137: =SuiviPMTLoyers2025!I29 -> 0 | J137: =SuiviPMTLoyers2025!J29 -> 0 | K137: =SuiviPMTLoyers2025!K29 -> 0 | L137: =SuiviPMTLoyers2025!L29 -> 0 | M137: =SuiviPMTLoyers2025!M29 -> 0 | N137: =SuiviPMTLoyers2025!N29 -> 0
A138: =SuiviPMTLoyers2025!A30 -> 132/3 | B138: =SuiviPMTLoyers2025!B30 -> 2025-05-01 | C138: =SuiviPMTLoyers2025!C30 -> 65000 | D138: oui | E138: =[2]LoyersConsolide!E138 -> 2025-03-18 | F138: =[2]LoyersConsolide!F138 -> 643 | G138: =[2]LoyersConsolide!G138 -> 57110 | H138: =[2]LoyersConsolide!H138 -> Mérimée | I138: =SuiviPMTLoyers2025!I30 -> 0 | J138: =SuiviPMTLoyers2025!J30 -> 0 | K138: =SuiviPMTLoyers2025!K30 -> 0 | L138: =SuiviPMTLoyers2025!L30 -> 0 | M138: =SuiviPMTLoyers2025!M30 -> 0 | N138: =SuiviPMTLoyers2025!N30 -> 0
A139: =SuiviPMTLoyers2025!A31 -> 132/3 | B139: =SuiviPMTLoyers2025!B31 -> 2025-06-01 | C139: =SuiviPMTLoyers2025!C31 -> 65000 | D139: oui | E139: =[2]LoyersConsolide!E139 -> 2025-03-18 | F139: =[2]LoyersConsolide!F139 -> 643 | G139: =[2]LoyersConsolide!G139 -> 57110 | H139: =[2]LoyersConsolide!H139 -> Mérimée | I139: =SuiviPMTLoyers2025!I31 -> 0 | J139: =SuiviPMTLoyers2025!J31 -> 0 | K139: =SuiviPMTLoyers2025!K31 -> 0 | L139: =SuiviPMTLoyers2025!L31 -> 0 | M139: =SuiviPMTLoyers2025!M31 -> 0 | N139: =SuiviPMTLoyers2025!N31 -> 0
A140: =SuiviPMTLoyers2025!A32 -> 132/3 | B140: =SuiviPMTLoyers2025!B32 -> 2025-07-01 | C140: =SuiviPMTLoyers2025!C32 -> 65000 | D140: non payé | E140: =[2]LoyersConsolide!E140 -> 2050-01-01 | F140: =[2]LoyersConsolide!F140 -> 0 | G140: =[2]LoyersConsolide!G140 -> 0 | H140: =[2]LoyersConsolide!H140 -> 0 | I140: =SuiviPMTLoyers2025!I32 -> 0 | J140: =SuiviPMTLoyers2025!J32 -> 0 | K140: =SuiviPMTLoyers2025!K32 -> 0 | L140: =SuiviPMTLoyers2025!L32 -> 0 | M140: =SuiviPMTLoyers2025!M32 -> 0 | N140: =SuiviPMTLoyers2025!N32 -> 0
A141: =SuiviPMTLoyers2025!A33 -> 132/3 | B141: =SuiviPMTLoyers2025!B33 -> 2025-08-01 | C141: =SuiviPMTLoyers2025!C33 -> 65000 | D141: non payé | E141: =[2]LoyersConsolide!E141 -> 2050-01-01 | F141: =[2]LoyersConsolide!F141 -> 0 | G141: =[2]LoyersConsolide!G141 -> 0 | H141: =[2]LoyersConsolide!H141 -> 0 | I141: =SuiviPMTLoyers2025!I33 -> 0 | J141: =SuiviPMTLoyers2025!J33 -> 0 | K141: =SuiviPMTLoyers2025!K33 -> 0 | L141: =SuiviPMTLoyers2025!L33 -> 0 | M141: =SuiviPMTLoyers2025!M33 -> 0 | N141: =SuiviPMTLoyers2025!N33 -> 0
A142: =SuiviPMTLoyers2025!A34 -> 132/3 | B142: =SuiviPMTLoyers2025!B34 -> 2025-09-01 | C142: =SuiviPMTLoyers2025!C34 -> 65000 | D142: non payé | E142: =[2]LoyersConsolide!E142 -> 2050-01-01 | F142: =[2]LoyersConsolide!F142 -> 0 | G142: =[2]LoyersConsolide!G142 -> 0 | H142: =[2]LoyersConsolide!H142 -> 0 | I142: =SuiviPMTLoyers2025!I34 -> 0 | J142: =SuiviPMTLoyers2025!J34 -> 0 | K142: =SuiviPMTLoyers2025!K34 -> 0 | L142: =SuiviPMTLoyers2025!L34 -> 0 | M142: =SuiviPMTLoyers2025!M34 -> 0 | N142: =SuiviPMTLoyers2025!N34 -> 0
A143: =SuiviPMTLoyers2025!A35 -> 132/3 | B143: =SuiviPMTLoyers2025!B35 -> 2025-10-01 | C143: =SuiviPMTLoyers2025!C35 -> 65000 | D143: non payé | E143: =[2]LoyersConsolide!E143 -> 2050-01-01 | F143: =[2]LoyersConsolide!F143 -> 0 | G143: =[2]LoyersConsolide!G143 -> 0 | H143: =[2]LoyersConsolide!H143 -> 0 | I143: =SuiviPMTLoyers2025!I35 -> 0 | J143: =SuiviPMTLoyers2025!J35 -> 0 | K143: =SuiviPMTLoyers2025!K35 -> 0 | L143: =SuiviPMTLoyers2025!L35 -> 0 | M143: =SuiviPMTLoyers2025!M35 -> 0 | N143: =SuiviPMTLoyers2025!N35 -> 0
A144: =SuiviPMTLoyers2025!A36 -> 132/3 | B144: =SuiviPMTLoyers2025!B36 -> 2025-11-01 | C144: =SuiviPMTLoyers2025!C36 -> 65000 | D144: non payé | E144: =[2]LoyersConsolide!E144 -> 2050-01-01 | F144: =[2]LoyersConsolide!F144 -> 0 | G144: =[2]LoyersConsolide!G144 -> 0 | H144: =[2]LoyersConsolide!H144 -> 0 | I144: =SuiviPMTLoyers2025!I36 -> 0 | J144: =SuiviPMTLoyers2025!J36 -> 0 | K144: =SuiviPMTLoyers2025!K36 -> 0 | L144: =SuiviPMTLoyers2025!L36 -> 0 | M144: =SuiviPMTLoyers2025!M36 -> 0 | N144: =SuiviPMTLoyers2025!N36 -> 0
A145: =SuiviPMTLoyers2025!A37 -> 132/3 | B145: =SuiviPMTLoyers2025!B37 -> 2025-12-01 | C145: =SuiviPMTLoyers2025!C37 -> 65000 | D145: non payé | E145: =[2]LoyersConsolide!E145 -> 2050-01-01 | F145: =[2]LoyersConsolide!F145 -> 0 | G145: =[2]LoyersConsolide!G145 -> 0 | H145: =[2]LoyersConsolide!H145 -> 0 | I145: =SuiviPMTLoyers2025!I37 -> 0 | J145: =SuiviPMTLoyers2025!J37 -> 0 | K145: =SuiviPMTLoyers2025!K37 -> 0 | L145: =SuiviPMTLoyers2025!L37 -> 0 | M145: =SuiviPMTLoyers2025!M37 -> 0 | N145: =SuiviPMTLoyers2025!N37 -> 0
A146: =SuiviPMTLoyers2022!A38 -> 134/4 | B146: =SuiviPMTLoyers2022!B38 -> 2022-01-01 | C146: =SuiviPMTLoyers2022!C38 -> 65000 | D146: oui | E146: =[2]LoyersConsolide!E146 -> 2022-04-14 | F146: =[2]LoyersConsolide!F146 -> 0 | G146: =[2]LoyersConsolide!G146 -> 0 | H146: =[2]LoyersConsolide!H146 -> 0 | I146: =SuiviPMTLoyers2022!I38 -> 0 | J146: =SuiviPMTLoyers2022!J38 -> 0 | K146: =SuiviPMTLoyers2022!K38 -> 0 | L146: =SuiviPMTLoyers2022!L38 -> 0 | M146: =SuiviPMTLoyers2022!M38 -> 0 | N146: =SuiviPMTLoyers2022!N38 -> 0
A147: =SuiviPMTLoyers2022!A39 -> 134/4 | B147: =SuiviPMTLoyers2022!B39 -> 2022-02-01 | C147: =SuiviPMTLoyers2022!C39 -> 65000 | D147: oui | E147: =[2]LoyersConsolide!E147 -> 2022-04-14 | F147: =[2]LoyersConsolide!F147 -> 0 | G147: =[2]LoyersConsolide!G147 -> 0 | H147: =[2]LoyersConsolide!H147 -> 0 | I147: =SuiviPMTLoyers2022!I39 -> 0 | J147: =SuiviPMTLoyers2022!J39 -> 0 | K147: =SuiviPMTLoyers2022!K39 -> 0 | L147: =SuiviPMTLoyers2022!L39 -> 0 | M147: =SuiviPMTLoyers2022!M39 -> 0 | N147: =SuiviPMTLoyers2022!N39 -> 0
A148: =SuiviPMTLoyers2022!A40 -> 134/4 | B148: =SuiviPMTLoyers2022!B40 -> 2022-03-01 | C148: =SuiviPMTLoyers2022!C40 -> 65000 | D148: oui | E148: =[2]LoyersConsolide!E148 -> 2022-04-14 | F148: =[2]LoyersConsolide!F148 -> 0 | G148: =[2]LoyersConsolide!G148 -> 0 | H148: =[2]LoyersConsolide!H148 -> 0 | I148: =SuiviPMTLoyers2022!I40 -> 0 | J148: =SuiviPMTLoyers2022!J40 -> 0 | K148: =SuiviPMTLoyers2022!K40 -> 0 | L148: =SuiviPMTLoyers2022!L40 -> 0 | M148: =SuiviPMTLoyers2022!M40 -> 0 | N148: =SuiviPMTLoyers2022!N40 -> 0
A149: =SuiviPMTLoyers2022!A41 -> 134/4 | B149: =SuiviPMTLoyers2022!B41 -> 2022-04-01 | C149: =SuiviPMTLoyers2022!C41 -> 65000 | D149: oui | E149: =[2]LoyersConsolide!E149 -> 2022-04-14 | F149: =[2]LoyersConsolide!F149 -> 0 | G149: =[2]LoyersConsolide!G149 -> 0 | H149: =[2]LoyersConsolide!H149 -> 0 | I149: =SuiviPMTLoyers2022!I41 -> 0 | J149: =SuiviPMTLoyers2022!J41 -> 0 | K149: =SuiviPMTLoyers2022!K41 -> 0 | L149: =SuiviPMTLoyers2022!L41 -> 0 | M149: =SuiviPMTLoyers2022!M41 -> 0 | N149: =SuiviPMTLoyers2022!N41 -> 0
A150: =SuiviPMTLoyers2022!A42 -> 134/4 | B150: =SuiviPMTLoyers2022!B42 -> 2022-05-01 | C150: =SuiviPMTLoyers2022!C42 -> 65000 | D150: oui | E150: =[2]LoyersConsolide!E150 -> 2022-04-14 | F150: =[2]LoyersConsolide!F150 -> 0 | G150: =[2]LoyersConsolide!G150 -> 0 | H150: =[2]LoyersConsolide!H150 -> 0 | I150: =SuiviPMTLoyers2022!I42 -> 0 | J150: =SuiviPMTLoyers2022!J42 -> 0 | K150: =SuiviPMTLoyers2022!K42 -> 0 | L150: =SuiviPMTLoyers2022!L42 -> 0 | M150: =SuiviPMTLoyers2022!M42 -> 0 | N150: =SuiviPMTLoyers2022!N42 -> 0
A151: =SuiviPMTLoyers2022!A43 -> 134/4 | B151: =SuiviPMTLoyers2022!B43 -> 2022-06-01 | C151: =SuiviPMTLoyers2022!C43 -> 65000 | D151: oui | E151: =[2]LoyersConsolide!E151 -> 2022-04-14 | F151: =[2]LoyersConsolide!F151 -> 0 | G151: =[2]LoyersConsolide!G151 -> 0 | H151: =[2]LoyersConsolide!H151 -> 0 | I151: =SuiviPMTLoyers2022!I43 -> 0 | J151: =SuiviPMTLoyers2022!J43 -> 0 | K151: =SuiviPMTLoyers2022!K43 -> 0 | L151: =SuiviPMTLoyers2022!L43 -> 0 | M151: =SuiviPMTLoyers2022!M43 -> 0 | N151: =SuiviPMTLoyers2022!N43 -> 0
A152: =SuiviPMTLoyers2022!A44 -> 134/4 | B152: =SuiviPMTLoyers2022!B44 -> 2022-07-01 | C152: =SuiviPMTLoyers2022!C44 -> 65000 | D152: oui | E152: =[2]LoyersConsolide!E152 -> 2022-09-16 | F152: =[2]LoyersConsolide!F152 -> 0 | G152: =[2]LoyersConsolide!G152 -> 0 | H152: =[2]LoyersConsolide!H152 -> 0 | I152: =SuiviPMTLoyers2022!I44 -> 0 | J152: =SuiviPMTLoyers2022!J44 -> 0 | K152: =SuiviPMTLoyers2022!K44 -> 0 | L152: =SuiviPMTLoyers2022!L44 -> 0 | M152: =SuiviPMTLoyers2022!M44 -> 0 | N152: =SuiviPMTLoyers2022!N44 -> 0
A153: =SuiviPMTLoyers2022!A45 -> 134/4 | B153: =SuiviPMTLoyers2022!B45 -> 2022-08-01 | C153: =SuiviPMTLoyers2022!C45 -> 65000 | D153: oui | E153: =[2]LoyersConsolide!E153 -> 2022-09-16 | F153: =[2]LoyersConsolide!F153 -> 0 | G153: =[2]LoyersConsolide!G153 -> 0 | H153: =[2]LoyersConsolide!H153 -> 0 | I153: =SuiviPMTLoyers2022!I45 -> 0 | J153: =SuiviPMTLoyers2022!J45 -> 0 | K153: =SuiviPMTLoyers2022!K45 -> 0 | L153: =SuiviPMTLoyers2022!L45 -> 0 | M153: =SuiviPMTLoyers2022!M45 -> 0 | N153: =SuiviPMTLoyers2022!N45 -> 0
A154: =SuiviPMTLoyers2022!A46 -> 134/4 | B154: =SuiviPMTLoyers2022!B46 -> 2022-09-01 | C154: =SuiviPMTLoyers2022!C46 -> 65000 | D154: oui | E154: =[2]LoyersConsolide!E154 -> 2022-09-16 | F154: =[2]LoyersConsolide!F154 -> 0 | G154: =[2]LoyersConsolide!G154 -> 0 | H154: =[2]LoyersConsolide!H154 -> 0 | I154: =SuiviPMTLoyers2022!I46 -> 0 | J154: =SuiviPMTLoyers2022!J46 -> 0 | K154: =SuiviPMTLoyers2022!K46 -> 0 | L154: =SuiviPMTLoyers2022!L46 -> 0 | M154: =SuiviPMTLoyers2022!M46 -> 0 | N154: =SuiviPMTLoyers2022!N46 -> 0
A155: =SuiviPMTLoyers2022!A47 -> 134/4 | B155: =SuiviPMTLoyers2022!B47 -> 2022-10-01 | C155: =SuiviPMTLoyers2022!C47 -> 65000 | D155: oui | E155: =[2]LoyersConsolide!E155 -> 2022-09-16 | F155: =[2]LoyersConsolide!F155 -> 0 | G155: =[2]LoyersConsolide!G155 -> 0 | H155: =[2]LoyersConsolide!H155 -> 0 | I155: =SuiviPMTLoyers2022!I47 -> 0 | J155: =SuiviPMTLoyers2022!J47 -> 0 | K155: =SuiviPMTLoyers2022!K47 -> 0 | L155: =SuiviPMTLoyers2022!L47 -> 0 | M155: =SuiviPMTLoyers2022!M47 -> 0 | N155: =SuiviPMTLoyers2022!N47 -> 0
A156: =SuiviPMTLoyers2022!A48 -> 134/4 | B156: =SuiviPMTLoyers2022!B48 -> 2022-11-01 | C156: =SuiviPMTLoyers2022!C48 -> 65000 | D156: oui | E156: =[2]LoyersConsolide!E156 -> 2022-09-16 | F156: =[2]LoyersConsolide!F156 -> 0 | G156: =[2]LoyersConsolide!G156 -> 0 | H156: =[2]LoyersConsolide!H156 -> 0 | I156: =SuiviPMTLoyers2022!I48 -> 0 | J156: =SuiviPMTLoyers2022!J48 -> 0 | K156: =SuiviPMTLoyers2022!K48 -> 0 | L156: =SuiviPMTLoyers2022!L48 -> 0 | M156: =SuiviPMTLoyers2022!M48 -> 0 | N156: =SuiviPMTLoyers2022!N48 -> 0
A157: =SuiviPMTLoyers2022!A49 -> 134/4 | B157: =SuiviPMTLoyers2022!B49 -> 2022-12-01 | C157: =SuiviPMTLoyers2022!C49 -> 65000 | D157: oui | E157: =[2]LoyersConsolide!E157 -> 2022-09-16 | F157: =[2]LoyersConsolide!F157 -> 0 | G157: =[2]LoyersConsolide!G157 -> 0 | H157: =[2]LoyersConsolide!H157 -> 0 | I157: =SuiviPMTLoyers2022!I49 -> 0 | J157: =SuiviPMTLoyers2022!J49 -> 0 | K157: =SuiviPMTLoyers2022!K49 -> 0 | L157: =SuiviPMTLoyers2022!L49 -> 0 | M157: =SuiviPMTLoyers2022!M49 -> 0 | N157: =SuiviPMTLoyers2022!N49 -> 0
A158: =SuiviPMTLoyers2023!A38 -> 134/4 | B158: =SuiviPMTLoyers2023!B38 -> 2023-01-01 | C158: =SuiviPMTLoyers2023!C38 -> 65000 | D158: oui | E158: =[2]LoyersConsolide!E158 -> 2023-04-26 | F158: =[2]LoyersConsolide!F158 -> 0 | G158: =[2]LoyersConsolide!G158 -> 0 | H158: =[2]LoyersConsolide!H158 -> 0 | I158: =SuiviPMTLoyers2023!I38 -> 0 | J158: =SuiviPMTLoyers2023!J38 -> 0 | K158: =SuiviPMTLoyers2023!K38 -> 0 | L158: =SuiviPMTLoyers2023!L38 -> 0 | M158: =SuiviPMTLoyers2023!M38 -> 0 | N158: =SuiviPMTLoyers2023!N38 -> 0
A159: =SuiviPMTLoyers2023!A39 -> 134/4 | B159: =SuiviPMTLoyers2023!B39 -> 2023-02-01 | C159: =SuiviPMTLoyers2023!C39 -> 65000 | D159: oui | E159: =[2]LoyersConsolide!E159 -> 2023-04-26 | F159: =[2]LoyersConsolide!F159 -> 0 | G159: =[2]LoyersConsolide!G159 -> 0 | H159: =[2]LoyersConsolide!H159 -> 0 | I159: =SuiviPMTLoyers2023!I39 -> 0 | J159: =SuiviPMTLoyers2023!J39 -> 0 | K159: =SuiviPMTLoyers2023!K39 -> 0 | L159: =SuiviPMTLoyers2023!L39 -> 0 | M159: =SuiviPMTLoyers2023!M39 -> 0 | N159: =SuiviPMTLoyers2023!N39 -> 0
A160: =SuiviPMTLoyers2023!A40 -> 134/4 | B160: =SuiviPMTLoyers2023!B40 -> 2023-03-01 | C160: =SuiviPMTLoyers2023!C40 -> 65000 | D160: oui | E160: =[2]LoyersConsolide!E160 -> 2023-04-26 | F160: =[2]LoyersConsolide!F160 -> 0 | G160: =[2]LoyersConsolide!G160 -> 0 | H160: =[2]LoyersConsolide!H160 -> 0 | I160: =SuiviPMTLoyers2023!I40 -> 0 | J160: =SuiviPMTLoyers2023!J40 -> 0 | K160: =SuiviPMTLoyers2023!K40 -> 0 | L160: =SuiviPMTLoyers2023!L40 -> 0 | M160: =SuiviPMTLoyers2023!M40 -> 0 | N160: =SuiviPMTLoyers2023!N40 -> 0
A161: =SuiviPMTLoyers2023!A41 -> 134/4 | B161: =SuiviPMTLoyers2023!B41 -> 2023-04-01 | C161: =SuiviPMTLoyers2023!C41 -> 65000 | D161: oui | E161: =[2]LoyersConsolide!E161 -> 2023-04-26 | F161: =[2]LoyersConsolide!F161 -> 0 | G161: =[2]LoyersConsolide!G161 -> 0 | H161: =[2]LoyersConsolide!H161 -> 0 | I161: =SuiviPMTLoyers2023!I41 -> 0 | J161: =SuiviPMTLoyers2023!J41 -> 0 | K161: =SuiviPMTLoyers2023!K41 -> 0 | L161: =SuiviPMTLoyers2023!L41 -> 0 | M161: =SuiviPMTLoyers2023!M41 -> 0 | N161: =SuiviPMTLoyers2023!N41 -> 0
A162: =SuiviPMTLoyers2023!A42 -> 134/4 | B162: =SuiviPMTLoyers2023!B42 -> 2023-05-01 | C162: =SuiviPMTLoyers2023!C42 -> 65000 | D162: oui | E162: =[2]LoyersConsolide!E162 -> 2023-04-26 | F162: =[2]LoyersConsolide!F162 -> 0 | G162: =[2]LoyersConsolide!G162 -> 0 | H162: =[2]LoyersConsolide!H162 -> 0 | I162: =SuiviPMTLoyers2023!I42 -> 0 | J162: =SuiviPMTLoyers2023!J42 -> 0 | K162: =SuiviPMTLoyers2023!K42 -> 0 | L162: =SuiviPMTLoyers2023!L42 -> 0 | M162: =SuiviPMTLoyers2023!M42 -> 0 | N162: =SuiviPMTLoyers2023!N42 -> 0
A163: =SuiviPMTLoyers2023!A43 -> 134/4 | B163: =SuiviPMTLoyers2023!B43 -> 2023-06-01 | C163: =SuiviPMTLoyers2023!C43 -> 65000 | D163: oui | E163: =[2]LoyersConsolide!E163 -> 2023-04-26 | F163: =[2]LoyersConsolide!F163 -> 0 | G163: =[2]LoyersConsolide!G163 -> 0 | H163: =[2]LoyersConsolide!H163 -> 0 | I163: =SuiviPMTLoyers2023!I43 -> 0 | J163: =SuiviPMTLoyers2023!J43 -> 0 | K163: =SuiviPMTLoyers2023!K43 -> 0 | L163: =SuiviPMTLoyers2023!L43 -> 0 | M163: =SuiviPMTLoyers2023!M43 -> 0 | N163: =SuiviPMTLoyers2023!N43 -> 0
A164: =SuiviPMTLoyers2023!A44 -> 134/4 | B164: =SuiviPMTLoyers2023!B44 -> 2023-07-01 | C164: =SuiviPMTLoyers2023!C44 -> 65000 | D164: oui | E164: =[2]LoyersConsolide!E164 -> 2023-09-01 | F164: =[2]LoyersConsolide!F164 -> 0 | G164: =[2]LoyersConsolide!G164 -> 0 | H164: =[2]LoyersConsolide!H164 -> 0 | I164: =SuiviPMTLoyers2023!I44 -> 0 | J164: =SuiviPMTLoyers2023!J44 -> 0 | K164: =SuiviPMTLoyers2023!K44 -> 0 | L164: =SuiviPMTLoyers2023!L44 -> 0 | M164: =SuiviPMTLoyers2023!M44 -> 0 | N164: =SuiviPMTLoyers2023!N44 -> 0
A165: =SuiviPMTLoyers2023!A45 -> 134/4 | B165: =SuiviPMTLoyers2023!B45 -> 2023-08-01 | C165: =SuiviPMTLoyers2023!C45 -> 65000 | D165: oui | E165: =[2]LoyersConsolide!E165 -> 2023-09-01 | F165: =[2]LoyersConsolide!F165 -> 0 | G165: =[2]LoyersConsolide!G165 -> 0 | H165: =[2]LoyersConsolide!H165 -> 0 | I165: =SuiviPMTLoyers2023!I45 -> 0 | J165: =SuiviPMTLoyers2023!J45 -> 0 | K165: =SuiviPMTLoyers2023!K45 -> 0 | L165: =SuiviPMTLoyers2023!L45 -> 0 | M165: =SuiviPMTLoyers2023!M45 -> 0 | N165: =SuiviPMTLoyers2023!N45 -> 0
A166: =SuiviPMTLoyers2023!A46 -> 134/4 | B166: =SuiviPMTLoyers2023!B46 -> 2023-09-01 | C166: =SuiviPMTLoyers2023!C46 -> 65000 | D166: oui | E166: =[2]LoyersConsolide!E166 -> 2023-09-01 | F166: =[2]LoyersConsolide!F166 -> 0 | G166: =[2]LoyersConsolide!G166 -> 0 | H166: =[2]LoyersConsolide!H166 -> 0 | I166: =SuiviPMTLoyers2023!I46 -> 0 | J166: =SuiviPMTLoyers2023!J46 -> 0 | K166: =SuiviPMTLoyers2023!K46 -> 0 | L166: =SuiviPMTLoyers2023!L46 -> 0 | M166: =SuiviPMTLoyers2023!M46 -> 0 | N166: =SuiviPMTLoyers2023!N46 -> 0
A167: =SuiviPMTLoyers2023!A47 -> 134/4 | B167: =SuiviPMTLoyers2023!B47 -> 2023-10-01 | C167: =SuiviPMTLoyers2023!C47 -> 65000 | D167: oui | E167: =[2]LoyersConsolide!E167 -> 2023-09-01 | F167: =[2]LoyersConsolide!F167 -> 0 | G167: =[2]LoyersConsolide!G167 -> 0 | H167: =[2]LoyersConsolide!H167 -> 0 | I167: =SuiviPMTLoyers2023!I47 -> 0 | J167: =SuiviPMTLoyers2023!J47 -> 0 | K167: =SuiviPMTLoyers2023!K47 -> 0 | L167: =SuiviPMTLoyers2023!L47 -> 0 | M167: =SuiviPMTLoyers2023!M47 -> 0 | N167: =SuiviPMTLoyers2023!N47 -> 0
A168: =SuiviPMTLoyers2023!A48 -> 134/4 | B168: =SuiviPMTLoyers2023!B48 -> 2023-11-01 | C168: =SuiviPMTLoyers2023!C48 -> 65000 | D168: oui | E168: =[2]LoyersConsolide!E168 -> 2023-09-01 | F168: =[2]LoyersConsolide!F168 -> 0 | G168: =[2]LoyersConsolide!G168 -> 0 | H168: =[2]LoyersConsolide!H168 -> 0 | I168: =SuiviPMTLoyers2023!I48 -> 0 | J168: =SuiviPMTLoyers2023!J48 -> 0 | K168: =SuiviPMTLoyers2023!K48 -> 0 | L168: =SuiviPMTLoyers2023!L48 -> 0 | M168: =SuiviPMTLoyers2023!M48 -> 0 | N168: =SuiviPMTLoyers2023!N48 -> 0
A169: =SuiviPMTLoyers2023!A49 -> 134/4 | B169: =SuiviPMTLoyers2023!B49 -> 2023-12-01 | C169: =SuiviPMTLoyers2023!C49 -> 65000 | D169: oui | E169: =[2]LoyersConsolide!E169 -> 2023-09-01 | F169: =[2]LoyersConsolide!F169 -> 0 | G169: =[2]LoyersConsolide!G169 -> 0 | H169: =[2]LoyersConsolide!H169 -> 0 | I169: =SuiviPMTLoyers2023!I49 -> 0 | J169: =SuiviPMTLoyers2023!J49 -> 0 | K169: =SuiviPMTLoyers2023!K49 -> 0 | L169: =SuiviPMTLoyers2023!L49 -> 0 | M169: =SuiviPMTLoyers2023!M49 -> 0 | N169: =SuiviPMTLoyers2023!N49 -> 0
A170: =SuiviPMTLoyers2024!A38 -> 134/4 | B170: =SuiviPMTLoyers2024!B38 -> 2024-01-01 | C170: =SuiviPMTLoyers2024!C38 -> 65000 | D170: oui | E170: =[2]LoyersConsolide!E170 -> 2024-05-10 | F170: =[2]LoyersConsolide!F170 -> 0 | G170: =[2]LoyersConsolide!G170 -> 0 | H170: =[2]LoyersConsolide!H170 -> 0 | I170: =SuiviPMTLoyers2024!I38 -> 0 | J170: =SuiviPMTLoyers2024!J38 -> 0 | K170: =SuiviPMTLoyers2024!K38 -> 0 | L170: =SuiviPMTLoyers2024!L38 -> 0 | M170: =SuiviPMTLoyers2024!M38 -> 0 | N170: =SuiviPMTLoyers2024!N38 -> 0
A171: =SuiviPMTLoyers2024!A39 -> 134/4 | B171: =SuiviPMTLoyers2024!B39 -> 2024-02-01 | C171: =SuiviPMTLoyers2024!C39 -> 65000 | D171: oui | E171: =[2]LoyersConsolide!E171 -> 2024-05-10 | F171: =[2]LoyersConsolide!F171 -> 0 | G171: =[2]LoyersConsolide!G171 -> 0 | H171: =[2]LoyersConsolide!H171 -> 0 | I171: =SuiviPMTLoyers2024!I39 -> 0 | J171: =SuiviPMTLoyers2024!J39 -> 0 | K171: =SuiviPMTLoyers2024!K39 -> 0 | L171: =SuiviPMTLoyers2024!L39 -> 0 | M171: =SuiviPMTLoyers2024!M39 -> 0 | N171: =SuiviPMTLoyers2024!N39 -> 0
A172: =SuiviPMTLoyers2024!A40 -> 134/4 | B172: =SuiviPMTLoyers2024!B40 -> 2024-03-01 | C172: =SuiviPMTLoyers2024!C40 -> 65000 | D172: oui | E172: =[2]LoyersConsolide!E172 -> 2024-05-10 | F172: =[2]LoyersConsolide!F172 -> 0 | G172: =[2]LoyersConsolide!G172 -> 0 | H172: =[2]LoyersConsolide!H172 -> 0 | I172: =SuiviPMTLoyers2024!I40 -> 0 | J172: =SuiviPMTLoyers2024!J40 -> 0 | K172: =SuiviPMTLoyers2024!K40 -> 0 | L172: =SuiviPMTLoyers2024!L40 -> 0 | M172: =SuiviPMTLoyers2024!M40 -> 0 | N172: =SuiviPMTLoyers2024!N40 -> 0
A173: =SuiviPMTLoyers2024!A41 -> 134/4 | B173: =SuiviPMTLoyers2024!B41 -> 2024-04-01 | C173: =SuiviPMTLoyers2024!C41 -> 65000 | D173: oui | E173: =[2]LoyersConsolide!E173 -> 2024-05-10 | F173: =[2]LoyersConsolide!F173 -> 0 | G173: =[2]LoyersConsolide!G173 -> 0 | H173: =[2]LoyersConsolide!H173 -> 0 | I173: =SuiviPMTLoyers2024!I41 -> 0 | J173: =SuiviPMTLoyers2024!J41 -> 0 | K173: =SuiviPMTLoyers2024!K41 -> 0 | L173: =SuiviPMTLoyers2024!L41 -> 0 | M173: =SuiviPMTLoyers2024!M41 -> 0 | N173: =SuiviPMTLoyers2024!N41 -> 0
A174: =SuiviPMTLoyers2024!A42 -> 134/4 | B174: =SuiviPMTLoyers2024!B42 -> 2024-05-01 | C174: =SuiviPMTLoyers2024!C42 -> 65000 | D174: oui | E174: =[2]LoyersConsolide!E174 -> 2024-05-10 | F174: =[2]LoyersConsolide!F174 -> 0 | G174: =[2]LoyersConsolide!G174 -> 0 | H174: =[2]LoyersConsolide!H174 -> 0 | I174: =SuiviPMTLoyers2024!I42 -> 0 | J174: =SuiviPMTLoyers2024!J42 -> 0 | K174: =SuiviPMTLoyers2024!K42 -> 0 | L174: =SuiviPMTLoyers2024!L42 -> 0 | M174: =SuiviPMTLoyers2024!M42 -> 0 | N174: =SuiviPMTLoyers2024!N42 -> 0
A175: =SuiviPMTLoyers2024!A43 -> 134/4 | B175: =SuiviPMTLoyers2024!B43 -> 2024-06-01 | C175: =SuiviPMTLoyers2024!C43 -> 65000 | D175: oui | E175: =[2]LoyersConsolide!E175 -> 2024-05-10 | F175: =[2]LoyersConsolide!F175 -> 0 | G175: =[2]LoyersConsolide!G175 -> 0 | H175: =[2]LoyersConsolide!H175 -> 0 | I175: =SuiviPMTLoyers2024!I43 -> 0 | J175: =SuiviPMTLoyers2024!J43 -> 0 | K175: =SuiviPMTLoyers2024!K43 -> 0 | L175: =SuiviPMTLoyers2024!L43 -> 0 | M175: =SuiviPMTLoyers2024!M43 -> 0 | N175: =SuiviPMTLoyers2024!N43 -> 0
A176: =SuiviPMTLoyers2024!A44 -> 134/4 | B176: =SuiviPMTLoyers2024!B44 -> 2024-07-01 | C176: =SuiviPMTLoyers2024!C44 -> 65000 | D176: oui | E176: =[2]LoyersConsolide!E176 -> 2024-09-30 | F176: =[2]LoyersConsolide!F176 -> 0 | G176: =[2]LoyersConsolide!G176 -> 0 | H176: =[2]LoyersConsolide!H176 -> 0 | I176: =SuiviPMTLoyers2024!I44 -> 0 | J176: =SuiviPMTLoyers2024!J44 -> 0 | K176: =SuiviPMTLoyers2024!K44 -> 0 | L176: =SuiviPMTLoyers2024!L44 -> 0 | M176: =SuiviPMTLoyers2024!M44 -> 0 | N176: =SuiviPMTLoyers2024!N44 -> 0
A177: =SuiviPMTLoyers2024!A45 -> 134/4 | B177: =SuiviPMTLoyers2024!B45 -> 2024-08-01 | C177: =SuiviPMTLoyers2024!C45 -> 65000 | D177: oui | E177: =[2]LoyersConsolide!E177 -> 2024-09-30 | F177: =[2]LoyersConsolide!F177 -> 0 | G177: =[2]LoyersConsolide!G177 -> 0 | H177: =[2]LoyersConsolide!H177 -> 0 | I177: =SuiviPMTLoyers2024!I45 -> 0 | J177: =SuiviPMTLoyers2024!J45 -> 0 | K177: =SuiviPMTLoyers2024!K45 -> 0 | L177: =SuiviPMTLoyers2024!L45 -> 0 | M177: =SuiviPMTLoyers2024!M45 -> 0 | N177: =SuiviPMTLoyers2024!N45 -> 0
A178: =SuiviPMTLoyers2024!A46 -> 134/4 | B178: =SuiviPMTLoyers2024!B46 -> 2024-09-01 | C178: =SuiviPMTLoyers2024!C46 -> 65000 | D178: oui | E178: =[2]LoyersConsolide!E178 -> 2024-09-30 | F178: =[2]LoyersConsolide!F178 -> 0 | G178: =[2]LoyersConsolide!G178 -> 0 | H178: =[2]LoyersConsolide!H178 -> 0 | I178: =SuiviPMTLoyers2024!I46 -> 0 | J178: =SuiviPMTLoyers2024!J46 -> 0 | K178: =SuiviPMTLoyers2024!K46 -> 0 | L178: =SuiviPMTLoyers2024!L46 -> 0 | M178: =SuiviPMTLoyers2024!M46 -> 0 | N178: =SuiviPMTLoyers2024!N46 -> 0
A179: =SuiviPMTLoyers2024!A47 -> 134/4 | B179: =SuiviPMTLoyers2024!B47 -> 2024-10-01 | C179: =SuiviPMTLoyers2024!C47 -> 65000 | D179: oui | E179: =[2]LoyersConsolide!E179 -> 2024-09-30 | F179: =[2]LoyersConsolide!F179 -> 0 | G179: =[2]LoyersConsolide!G179 -> 0 | H179: =[2]LoyersConsolide!H179 -> 0 | I179: =SuiviPMTLoyers2024!I47 -> 0 | J179: =SuiviPMTLoyers2024!J47 -> 0 | K179: =SuiviPMTLoyers2024!K47 -> 0 | L179: =SuiviPMTLoyers2024!L47 -> 0 | M179: =SuiviPMTLoyers2024!M47 -> 0 | N179: =SuiviPMTLoyers2024!N47 -> 0
A180: =SuiviPMTLoyers2024!A48 -> 134/4 | B180: =SuiviPMTLoyers2024!B48 -> 2024-11-01 | C180: =SuiviPMTLoyers2024!C48 -> 65000 | D180: oui | E180: =[2]LoyersConsolide!E180 -> 2024-09-30 | F180: =[2]LoyersConsolide!F180 -> 0 | G180: =[2]LoyersConsolide!G180 -> 0 | H180: =[2]LoyersConsolide!H180 -> 0 | I180: =SuiviPMTLoyers2024!I48 -> 0 | J180: =SuiviPMTLoyers2024!J48 -> 0 | K180: =SuiviPMTLoyers2024!K48 -> 0 | L180: =SuiviPMTLoyers2024!L48 -> 0 | M180: =SuiviPMTLoyers2024!M48 -> 0 | N180: =SuiviPMTLoyers2024!N48 -> 0
A181: =SuiviPMTLoyers2024!A49 -> 134/4 | B181: =SuiviPMTLoyers2024!B49 -> 2024-12-01 | C181: =SuiviPMTLoyers2024!C49 -> 65000 | D181: oui | E181: =[2]LoyersConsolide!E181 -> 2024-09-30 | F181: =[2]LoyersConsolide!F181 -> 0 | G181: =[2]LoyersConsolide!G181 -> 0 | H181: =[2]LoyersConsolide!H181 -> 0 | I181: =SuiviPMTLoyers2024!I49 -> 0 | J181: =SuiviPMTLoyers2024!J49 -> 0 | K181: =SuiviPMTLoyers2024!K49 -> 0 | L181: =SuiviPMTLoyers2024!L49 -> 0 | M181: =SuiviPMTLoyers2024!M49 -> 0 | N181: =SuiviPMTLoyers2024!N49 -> 0
A182: =SuiviPMTLoyers2025!A38 -> 134/4 | B182: =SuiviPMTLoyers2025!B38 -> 2025-01-01 | C182: =SuiviPMTLoyers2025!C38 -> 65000 | D182: oui | E182: =[2]LoyersConsolide!E182 -> 2025-03-18 | F182: =[2]LoyersConsolide!F182 -> 644 | G182: =[2]LoyersConsolide!G182 -> 57110 | H182: =[2]LoyersConsolide!H182 -> Mérimée | I182: =SuiviPMTLoyers2025!I38 -> 0 | J182: =SuiviPMTLoyers2025!J38 -> 0 | K182: =SuiviPMTLoyers2025!K38 -> 0 | L182: =SuiviPMTLoyers2025!L38 -> 0 | M182: =SuiviPMTLoyers2025!M38 -> 0 | N182: =SuiviPMTLoyers2025!N38 -> 0
A183: =SuiviPMTLoyers2025!A39 -> 134/4 | B183: =SuiviPMTLoyers2025!B39 -> 2025-02-01 | C183: =SuiviPMTLoyers2025!C39 -> 65000 | D183: oui | E183: =[2]LoyersConsolide!E183 -> 2025-03-18 | F183: =[2]LoyersConsolide!F183 -> 644 | G183: =[2]LoyersConsolide!G183 -> 57110 | H183: =[2]LoyersConsolide!H183 -> Mérimée | I183: =SuiviPMTLoyers2025!I39 -> 0 | J183: =SuiviPMTLoyers2025!J39 -> 0 | K183: =SuiviPMTLoyers2025!K39 -> 0 | L183: =SuiviPMTLoyers2025!L39 -> 0 | M183: =SuiviPMTLoyers2025!M39 -> 0 | N183: =SuiviPMTLoyers2025!N39 -> 0
A184: =SuiviPMTLoyers2025!A40 -> 134/4 | B184: =SuiviPMTLoyers2025!B40 -> 2025-03-01 | C184: =SuiviPMTLoyers2025!C40 -> 65000 | D184: oui | E184: =[2]LoyersConsolide!E184 -> 2025-03-18 | F184: =[2]LoyersConsolide!F184 -> 644 | G184: =[2]LoyersConsolide!G184 -> 57110 | H184: =[2]LoyersConsolide!H184 -> Mérimée | I184: =SuiviPMTLoyers2025!I40 -> 0 | J184: =SuiviPMTLoyers2025!J40 -> 0 | K184: =SuiviPMTLoyers2025!K40 -> 0 | L184: =SuiviPMTLoyers2025!L40 -> 0 | M184: =SuiviPMTLoyers2025!M40 -> 0 | N184: =SuiviPMTLoyers2025!N40 -> 0
A185: =SuiviPMTLoyers2025!A41 -> 134/4 | B185: =SuiviPMTLoyers2025!B41 -> 2025-04-01 | C185: =SuiviPMTLoyers2025!C41 -> 65000 | D185: oui | E185: =[2]LoyersConsolide!E185 -> 2025-03-18 | F185: =[2]LoyersConsolide!F185 -> 644 | G185: =[2]LoyersConsolide!G185 -> 57110 | H185: =[2]LoyersConsolide!H185 -> Mérimée | I185: =SuiviPMTLoyers2025!I41 -> 0 | J185: =SuiviPMTLoyers2025!J41 -> 0 | K185: =SuiviPMTLoyers2025!K41 -> 0 | L185: =SuiviPMTLoyers2025!L41 -> 0 | M185: =SuiviPMTLoyers2025!M41 -> 0 | N185: =SuiviPMTLoyers2025!N41 -> 0
A186: =SuiviPMTLoyers2025!A42 -> 134/4 | B186: =SuiviPMTLoyers2025!B42 -> 2025-05-01 | C186: =SuiviPMTLoyers2025!C42 -> 65000 | D186: oui | E186: =[2]LoyersConsolide!E186 -> 2025-03-18 | F186: =[2]LoyersConsolide!F186 -> 644 | G186: =[2]LoyersConsolide!G186 -> 57110 | H186: =[2]LoyersConsolide!H186 -> Mérimée | I186: =SuiviPMTLoyers2025!I42 -> 0 | J186: =SuiviPMTLoyers2025!J42 -> 0 | K186: =SuiviPMTLoyers2025!K42 -> 0 | L186: =SuiviPMTLoyers2025!L42 -> 0 | M186: =SuiviPMTLoyers2025!M42 -> 0 | N186: =SuiviPMTLoyers2025!N42 -> 0
A187: =SuiviPMTLoyers2025!A43 -> 134/4 | B187: =SuiviPMTLoyers2025!B43 -> 2025-06-01 | C187: =SuiviPMTLoyers2025!C43 -> 65000 | D187: oui | E187: =[2]LoyersConsolide!E187 -> 2025-03-18 | F187: =[2]LoyersConsolide!F187 -> 644 | G187: =[2]LoyersConsolide!G187 -> 57110 | H187: =[2]LoyersConsolide!H187 -> Mérimée | I187: =SuiviPMTLoyers2025!I43 -> 0 | J187: =SuiviPMTLoyers2025!J43 -> 0 | K187: =SuiviPMTLoyers2025!K43 -> 0 | L187: =SuiviPMTLoyers2025!L43 -> 0 | M187: =SuiviPMTLoyers2025!M43 -> 0 | N187: =SuiviPMTLoyers2025!N43 -> 0
A188: =SuiviPMTLoyers2025!A44 -> 134/4 | B188: =SuiviPMTLoyers2025!B44 -> 2025-07-01 | C188: =SuiviPMTLoyers2025!C44 -> 65000 | D188: non payé | E188: =[2]LoyersConsolide!E188 -> 2050-01-01 | F188: =[2]LoyersConsolide!F188 -> 0 | G188: =[2]LoyersConsolide!G188 -> 0 | H188: =[2]LoyersConsolide!H188 -> 0 | I188: =SuiviPMTLoyers2025!I44 -> 0 | J188: =SuiviPMTLoyers2025!J44 -> 0 | K188: =SuiviPMTLoyers2025!K44 -> 0 | L188: =SuiviPMTLoyers2025!L44 -> 0 | M188: =SuiviPMTLoyers2025!M44 -> 0 | N188: =SuiviPMTLoyers2025!N44 -> 0
A189: =SuiviPMTLoyers2025!A45 -> 134/4 | B189: =SuiviPMTLoyers2025!B45 -> 2025-08-01 | C189: =SuiviPMTLoyers2025!C45 -> 65000 | D189: non payé | E189: =[2]LoyersConsolide!E189 -> 2050-01-01 | F189: =[2]LoyersConsolide!F189 -> 0 | G189: =[2]LoyersConsolide!G189 -> 0 | H189: =[2]LoyersConsolide!H189 -> 0 | I189: =SuiviPMTLoyers2025!I45 -> 0 | J189: =SuiviPMTLoyers2025!J45 -> 0 | K189: =SuiviPMTLoyers2025!K45 -> 0 | L189: =SuiviPMTLoyers2025!L45 -> 0 | M189: =SuiviPMTLoyers2025!M45 -> 0 | N189: =SuiviPMTLoyers2025!N45 -> 0
A190: =SuiviPMTLoyers2025!A46 -> 134/4 | B190: =SuiviPMTLoyers2025!B46 -> 2025-09-01 | C190: =SuiviPMTLoyers2025!C46 -> 65000 | D190: non payé | E190: =[2]LoyersConsolide!E190 -> 2050-01-01 | F190: =[2]LoyersConsolide!F190 -> 0 | G190: =[2]LoyersConsolide!G190 -> 0 | H190: =[2]LoyersConsolide!H190 -> 0 | I190: =SuiviPMTLoyers2025!I46 -> 0 | J190: =SuiviPMTLoyers2025!J46 -> 0 | K190: =SuiviPMTLoyers2025!K46 -> 0 | L190: =SuiviPMTLoyers2025!L46 -> 0 | M190: =SuiviPMTLoyers2025!M46 -> 0 | N190: =SuiviPMTLoyers2025!N46 -> 0
A191: =SuiviPMTLoyers2025!A47 -> 134/4 | B191: =SuiviPMTLoyers2025!B47 -> 2025-10-01 | C191: =SuiviPMTLoyers2025!C47 -> 65000 | D191: non payé | E191: =[2]LoyersConsolide!E191 -> 2050-01-01 | F191: =[2]LoyersConsolide!F191 -> 0 | G191: =[2]LoyersConsolide!G191 -> 0 | H191: =[2]LoyersConsolide!H191 -> 0 | I191: =SuiviPMTLoyers2025!I47 -> 0 | J191: =SuiviPMTLoyers2025!J47 -> 0 | K191: =SuiviPMTLoyers2025!K47 -> 0 | L191: =SuiviPMTLoyers2025!L47 -> 0 | M191: =SuiviPMTLoyers2025!M47 -> 0 | N191: =SuiviPMTLoyers2025!N47 -> 0
A192: =SuiviPMTLoyers2025!A48 -> 134/4 | B192: =SuiviPMTLoyers2025!B48 -> 2025-11-01 | C192: =SuiviPMTLoyers2025!C48 -> 65000 | D192: non payé | E192: =[2]LoyersConsolide!E192 -> 2050-01-01 | F192: =[2]LoyersConsolide!F192 -> 0 | G192: =[2]LoyersConsolide!G192 -> 0 | H192: =[2]LoyersConsolide!H192 -> 0 | I192: =SuiviPMTLoyers2025!I48 -> 0 | J192: =SuiviPMTLoyers2025!J48 -> 0 | K192: =SuiviPMTLoyers2025!K48 -> 0 | L192: =SuiviPMTLoyers2025!L48 -> 0 | M192: =SuiviPMTLoyers2025!M48 -> 0 | N192: =SuiviPMTLoyers2025!N48 -> 0
A193: =SuiviPMTLoyers2025!A49 -> 134/4 | B193: =SuiviPMTLoyers2025!B49 -> 2025-12-01 | C193: =SuiviPMTLoyers2025!C49 -> 65000 | D193: non payé | E193: =[2]LoyersConsolide!E193 -> 2050-01-01 | F193: =[2]LoyersConsolide!F193 -> 0 | G193: =[2]LoyersConsolide!G193 -> 0 | H193: =[2]LoyersConsolide!H193 -> 0 | I193: =SuiviPMTLoyers2025!I49 -> 0 | J193: =SuiviPMTLoyers2025!J49 -> 0 | K193: =SuiviPMTLoyers2025!K49 -> 0 | L193: =SuiviPMTLoyers2025!L49 -> 0 | M193: =SuiviPMTLoyers2025!M49 -> 0 | N193: =SuiviPMTLoyers2025!N49 -> 0
A194: =SuiviPMTLoyers2022!A50 -> 136/5 | B194: =SuiviPMTLoyers2022!B50 -> 2022-01-01 | C194: =SuiviPMTLoyers2022!C50 -> 65000 | D194: oui | E194: =[2]LoyersConsolide!E194 -> 2022-03-08 | F194: =[2]LoyersConsolide!F194 -> 0 | G194: =[2]LoyersConsolide!G194 -> 0 | H194: =[2]LoyersConsolide!H194 -> 0 | I194: =SuiviPMTLoyers2022!I50 -> 0 | J194: =SuiviPMTLoyers2022!J50 -> 0 | K194: =SuiviPMTLoyers2022!K50 -> 0 | L194: =SuiviPMTLoyers2022!L50 -> 0 | M194: =SuiviPMTLoyers2022!M50 -> 0 | N194: =SuiviPMTLoyers2022!N50 -> 0
A195: =SuiviPMTLoyers2022!A51 -> 136/5 | B195: =SuiviPMTLoyers2022!B51 -> 2022-02-01 | C195: =SuiviPMTLoyers2022!C51 -> 65000 | D195: oui | E195: =[2]LoyersConsolide!E195 -> 2022-03-08 | F195: =[2]LoyersConsolide!F195 -> 0 | G195: =[2]LoyersConsolide!G195 -> 0 | H195: =[2]LoyersConsolide!H195 -> 0 | I195: =SuiviPMTLoyers2022!I51 -> 0 | J195: =SuiviPMTLoyers2022!J51 -> 0 | K195: =SuiviPMTLoyers2022!K51 -> 0 | L195: =SuiviPMTLoyers2022!L51 -> 0 | M195: =SuiviPMTLoyers2022!M51 -> 0 | N195: =SuiviPMTLoyers2022!N51 -> 0
A196: =SuiviPMTLoyers2022!A52 -> 136/5 | B196: =SuiviPMTLoyers2022!B52 -> 2022-03-01 | C196: =SuiviPMTLoyers2022!C52 -> 65000 | D196: oui | E196: =[2]LoyersConsolide!E196 -> 2022-03-08 | F196: =[2]LoyersConsolide!F196 -> 0 | G196: =[2]LoyersConsolide!G196 -> 0 | H196: =[2]LoyersConsolide!H196 -> 0 | I196: =SuiviPMTLoyers2022!I52 -> 0 | J196: =SuiviPMTLoyers2022!J52 -> 0 | K196: =SuiviPMTLoyers2022!K52 -> 0 | L196: =SuiviPMTLoyers2022!L52 -> 0 | M196: =SuiviPMTLoyers2022!M52 -> 0 | N196: =SuiviPMTLoyers2022!N52 -> 0
A197: =SuiviPMTLoyers2022!A53 -> 136/5 | B197: =SuiviPMTLoyers2022!B53 -> 2022-04-01 | C197: =SuiviPMTLoyers2022!C53 -> 65000 | D197: oui | E197: =[2]LoyersConsolide!E197 -> 2022-03-08 | F197: =[2]LoyersConsolide!F197 -> 0 | G197: =[2]LoyersConsolide!G197 -> 0 | H197: =[2]LoyersConsolide!H197 -> 0 | I197: =SuiviPMTLoyers2022!I53 -> 0 | J197: =SuiviPMTLoyers2022!J53 -> 0 | K197: =SuiviPMTLoyers2022!K53 -> 0 | L197: =SuiviPMTLoyers2022!L53 -> 0 | M197: =SuiviPMTLoyers2022!M53 -> 0 | N197: =SuiviPMTLoyers2022!N53 -> 0
A198: =SuiviPMTLoyers2022!A54 -> 136/5 | B198: =SuiviPMTLoyers2022!B54 -> 2022-05-01 | C198: =SuiviPMTLoyers2022!C54 -> 65000 | D198: oui | E198: =[2]LoyersConsolide!E198 -> 2022-03-08 | F198: =[2]LoyersConsolide!F198 -> 0 | G198: =[2]LoyersConsolide!G198 -> 0 | H198: =[2]LoyersConsolide!H198 -> 0 | I198: =SuiviPMTLoyers2022!I54 -> 0 | J198: =SuiviPMTLoyers2022!J54 -> 0 | K198: =SuiviPMTLoyers2022!K54 -> 0 | L198: =SuiviPMTLoyers2022!L54 -> 0 | M198: =SuiviPMTLoyers2022!M54 -> 0 | N198: =SuiviPMTLoyers2022!N54 -> 0
A199: =SuiviPMTLoyers2022!A55 -> 136/5 | B199: =SuiviPMTLoyers2022!B55 -> 2022-06-01 | C199: =SuiviPMTLoyers2022!C55 -> 65000 | D199: oui | E199: =[2]LoyersConsolide!E199 -> 2022-03-08 | F199: =[2]LoyersConsolide!F199 -> 0 | G199: =[2]LoyersConsolide!G199 -> 0 | H199: =[2]LoyersConsolide!H199 -> 0 | I199: =SuiviPMTLoyers2022!I55 -> 0 | J199: =SuiviPMTLoyers2022!J55 -> 0 | K199: =SuiviPMTLoyers2022!K55 -> 0 | L199: =SuiviPMTLoyers2022!L55 -> 0 | M199: =SuiviPMTLoyers2022!M55 -> 0 | N199: =SuiviPMTLoyers2022!N55 -> 0
A200: =SuiviPMTLoyers2022!A56 -> 136/5 | B200: =SuiviPMTLoyers2022!B56 -> 2022-07-01 | C200: =SuiviPMTLoyers2022!C56 -> 65000 | D200: oui | E200: =[2]LoyersConsolide!E200 -> 2022-11-11 | F200: =[2]LoyersConsolide!F200 -> 0 | G200: =[2]LoyersConsolide!G200 -> 0 | H200: =[2]LoyersConsolide!H200 -> 0 | I200: =SuiviPMTLoyers2022!I56 -> 0 | J200: =SuiviPMTLoyers2022!J56 -> 0 | K200: =SuiviPMTLoyers2022!K56 -> 0 | L200: =SuiviPMTLoyers2022!L56 -> 0 | M200: =SuiviPMTLoyers2022!M56 -> 0 | N200: =SuiviPMTLoyers2022!N56 -> 0
... 4300 more rows

Sheet LoyerConso-mois

Sheet LoyerConso-pmts

Sheet LoyerConso-AR

Sheet SuiviPMTLoyers2025
A1: Boutique | B1: Mois dû | C1: Montant | D1: Payé? | E1: Date PMT | F1: NumQuitt | G1: GL Caisse | H1: Payé à | I1: Emettre EDC? | J1: Code Locataire | K1: Nom Locataire | L1: Prénom Locataire | M1: Tel Locataire | N1: RemarqueMois
A2: 128/1 | B2: 2025-01-01 | C2: 65000 | D2: =IF(E2>54000,"non payé","oui") -> non payé | E2: 2050-01-01
A3: 128/1 | B3: 2025-02-01 | C3: 65000 | D3: non payé | E3: 2050-01-01
A4: 128/1 | B4: 2025-03-01 | C4: 65000 | D4: non payé | E4: 2050-01-01
A5: 128/1 | B5: 2025-04-01 | C5: 65000 | D5: non payé | E5: 2050-01-01
A6: 128/1 | B6: 2025-05-01 | C6: 65000 | D6: non payé | E6: 2050-01-01
A7: 128/1 | B7: 2025-06-01 | C7: 65000 | D7: non payé | E7: 2050-01-01
A8: 128/1 | B8: 2025-07-01 | C8: 65000 | D8: non payé | E8: 2050-01-01
A9: 128/1 | B9: 2025-08-01 | C9: 65000 | D9: non payé | E9: 2050-01-01
A10: 128/1 | B10: 2025-09-01 | C10: 65000 | D10: non payé | E10: 2050-01-01
A11: 128/1 | B11: 2025-10-01 | C11: 65000 | D11: non payé | E11: 2050-01-01
A12: 128/1 | B12: 2025-11-01 | C12: 65000 | D12: non payé | E12: 2050-01-01
A13: 128/1 | B13: 2025-12-01 | C13: 65000 | D13: non payé | E13: 2050-01-01
A14: 130/2 | B14: 2025-01-01 | C14: 65000 | D14: non payé | E14: 2050-01-01
A15: 130/2 | B15: 2025-02-01 | C15: 65000 | D15: non payé | E15: 2050-01-01
A16: 130/2 | B16: 2025-03-01 | C16: 65000 | D16: non payé | E16: 2050-01-01
A17: 130/2 | B17: 2025-04-01 | C17: 65000 | D17: non payé | E17: 2050-01-01
A18: 130/2 | B18: 2025-05-01 | C18: 65000 | D18: non payé | E18: 2050-01-01
A19: 130/2 | B19: 2025-06-01 | C19: 65000 | D19: non payé | E19: 2050-01-01
A20: 130/2 | B20: 2025-07-01 | C20: 65000 | D20: non payé | E20: 2050-01-01
A21: 130/2 | B21: 2025-08-01 | C21: 65000 | D21: non payé | E21: 2050-01-01
A22: 130/2 | B22: 2025-09-01 | C22: 65000 | D22: non payé | E22: 2050-01-01
A23: 130/2 | B23: 2025-10-01 | C23: 65000 | D23: non payé | E23: 2050-01-01
A24: 130/2 | B24: 2025-11-01 | C24: 65000 | D24: non payé | E24: 2050-01-01
A25: 130/2 | B25: 2025-12-01 | C25: 65000 | D25: non payé | E25: 2050-01-01
A26: 132/3 | B26: 2025-01-01 | C26: 65000 | D26: non payé | E26: 2050-01-01
A27: 132/3 | B27: 2025-02-01 | C27: 65000 | D27: non payé | E27: 2050-01-01
A28: 132/3 | B28: 2025-03-01 | C28: 65000 | D28: non payé | E28: 2050-01-01
A29: 132/3 | B29: 2025-04-01 | C29: 65000 | D29: non payé | E29: 2050-01-01
A30: 132/3 | B30: 2025-05-01 | C30: 65000 | D30: non payé | E30: 2050-01-01
A31: 132/3 | B31: 2025-06-01 | C31: 65000 | D31: non payé | E31: 2050-01-01
A32: 132/3 | B32: 2025-07-01 | C32: 65000 | D32: non payé | E32: 2050-01-01
A33: 132/3 | B33: 2025-08-01 | C33: 65000 | D33: non payé | E33: 2050-01-01
A34: 132/3 | B34: 2025-09-01 | C34: 65000 | D34: non payé | E34: 2050-01-01
A35: 132/3 | B35: 2025-10-01 | C35: 65000 | D35: non payé | E35: 2050-01-01
A36: 132/3 | B36: 2025-11-01 | C36: 65000 | D36: non payé | E36: 2050-01-01
A37: 132/3 | B37: 2025-12-01 | C37: 65000 | D37: non payé | E37: 2050-01-01
A38: 134/4 | B38: 2025-01-01 | C38: 65000 | D38: non payé | E38: 2050-01-01
A39: 134/4 | B39: 2025-02-01 | C39: 65000 | D39: non payé | E39: 2050-01-01
A40: 134/4 | B40: 2025-03-01 | C40: 65000 | D40: non payé | E40: 2050-01-01
A41: 134/4 | B41: 2025-04-01 | C41: 65000 | D41: non payé | E41: 2050-01-01
A42: 134/4 | B42: 2025-05-01 | C42: 65000 | D42: non payé | E42: 2050-01-01
A43: 134/4 | B43: 2025-06-01 | C43: 65000 | D43: non payé | E43: 2050-01-01
A44: 134/4 | B44: 2025-07-01 | C44: 65000 | D44: non payé | E44: 2050-01-01
A45: 134/4 | B45: 2025-08-01 | C45: 65000 | D45: non payé | E45: 2050-01-01
A46: 134/4 | B46: 2025-09-01 | C46: 65000 | D46: non payé | E46: 2050-01-01
A47: 134/4 | B47: 2025-10-01 | C47: 65000 | D47: non payé | E47: 2050-01-01
A48: 134/4 | B48: 2025-11-01 | C48: 65000 | D48: non payé | E48: 2050-01-01
A49: 134/4 | B49: 2025-12-01 | C49: 65000 | D49: non payé | E49: 2050-01-01
A50: 136/5 | B50: 2025-01-01 | C50: 65000 | D50: non payé | E50: 2050-01-01
A51: 136/5 | B51: 2025-02-01 | C51: 65000 | D51: non payé | E51: 2050-01-01
A52: 136/5 | B52: 2025-03-01 | C52: 65000 | D52: non payé | E52: 2050-01-01
A53: 136/5 | B53: 2025-04-01 | C53: 65000 | D53: non payé | E53: 2050-01-01
A54: 136/5 | B54: 2025-05-01 | C54: 65000 | D54: non payé | E54: 2050-01-01
A55: 136/5 | B55: 2025-06-01 | C55: 65000 | D55: non payé | E55: 2050-01-01
A56: 136/5 | B56: 2025-07-01 | C56: 65000 | D56: non payé | E56: 2050-01-01
A57: 136/5 | B57: 2025-08-01 | C57: 65000 | D57: non payé | E57: 2050-01-01
A58: 136/5 | B58: 2025-09-01 | C58: 65000 | D58: non payé | E58: 2050-01-01
A59: 136/5 | B59: 2025-10-01 | C59: 65000 | D59: non payé | E59: 2050-01-01
A60: 136/5 | B60: 2025-11-01 | C60: 65000 | D60: non payé | E60: 2050-01-01
A61: 136/5 | B61: 2025-12-01 | C61: 65000 | D61: non payé | E61: 2050-01-01
A62: 138/6 | B62: 2025-01-01 | C62: 65000 | D62: non payé | E62: 2050-01-01
A63: 138/6 | B63: 2025-02-01 | C63: 65000 | D63: non payé | E63: 2050-01-01
A64: 138/6 | B64: 2025-03-01 | C64: 65000 | D64: non payé | E64: 2050-01-01
A65: 138/6 | B65: 2025-04-01 | C65: 65000 | D65: non payé | E65: 2050-01-01
A66: 138/6 | B66: 2025-05-01 | C66: 65000 | D66: non payé | E66: 2050-01-01
A67: 138/6 | B67: 2025-06-01 | C67: 65000 | D67: non payé | E67: 2050-01-01
A68: 138/6 | B68: 2025-07-01 | C68: 65000 | D68: non payé | E68: 2050-01-01
A69: 138/6 | B69: 2025-08-01 | C69: 65000 | D69: non payé | E69: 2050-01-01
A70: 138/6 | B70: 2025-09-01 | C70: 65000 | D70: non payé | E70: 2050-01-01
A71: 138/6 | B71: 2025-10-01 | C71: 65000 | D71: non payé | E71: 2050-01-01
A72: 138/6 | B72: 2025-11-01 | C72: 65000 | D72: non payé | E72: 2050-01-01
A73: 138/6 | B73: 2025-12-01 | C73: 65000 | D73: non payé | E73: 2050-01-01
A74: 140/7 | B74: 2025-01-01 | C74: 65000 | D74: non payé | E74: 2050-01-01
A75: 140/7 | B75: 2025-02-01 | C75: 65000 | D75: non payé | E75: 2050-01-01
A76: 140/7 | B76: 2025-03-01 | C76: 65000 | D76: non payé | E76: 2050-01-01
A77: 140/7 | B77: 2025-04-01 | C77: 65000 | D77: non payé | E77: 2050-01-01
A78: 140/7 | B78: 2025-05-01 | C78: 65000 | D78: non payé | E78: 2050-01-01
A79: 140/7 | B79: 2025-06-01 | C79: 65000 | D79: non payé | E79: 2050-01-01
A80: 140/7 | B80: 2025-07-01 | C80: 65000 | D80: non payé | E80: 2050-01-01
A81: 140/7 | B81: 2025-08-01 | C81: 65000 | D81: non payé | E81: 2050-01-01
A82: 140/7 | B82: 2025-09-01 | C82: 65000 | D82: non payé | E82: 2050-01-01
A83: 140/7 | B83: 2025-10-01 | C83: 65000 | D83: non payé | E83: 2050-01-01
A84: 140/7 | B84: 2025-11-01 | C84: 65000 | D84: non payé | E84: 2050-01-01
A85: 140/7 | B85: 2025-12-01 | C85: 65000 | D85: non payé | E85: 2050-01-01
A86: 142/8 | B86: 2025-01-01 | C86: 65000 | D86: non payé | E86: 2050-01-01
A87: 142/8 | B87: 2025-02-01 | C87: 65000 | D87: non payé | E87: 2050-01-01
A88: 142/8 | B88: 2025-03-01 | C88: 65000 | D88: non payé | E88: 2050-01-01
A89: 142/8 | B89: 2025-04-01 | C89: 65000 | D89: non payé | E89: 2050-01-01
A90: 142/8 | B90: 2025-05-01 | C90: 65000 | D90: non payé | E90: 2050-01-01
A91: 142/8 | B91: 2025-06-01 | C91: 65000 | D91: non payé | E91: 2050-01-01
A92: 142/8 | B92: 2025-07-01 | C92: 65000 | D92: non payé | E92: 2050-01-01
A93: 142/8 | B93: 2025-08-01 | C93: 65000 | D93: non payé | E93: 2050-01-01
A94: 142/8 | B94: 2025-09-01 | C94: 65000 | D94: non payé | E94: 2050-01-01
A95: 142/8 | B95: 2025-10-01 | C95: 65000 | D95: non payé | E95: 2050-01-01
A96: 142/8 | B96: 2025-11-01 | C96: 65000 | D96: non payé | E96: 2050-01-01
A97: 142/8 | B97: 2025-12-01 | C97: 65000 | D97: non payé | E97: 2050-01-01
A98: 144/9 | B98: 2025-01-01 | C98: 65000 | D98: non payé | E98: 2050-01-01
A99: 144/9 | B99: 2025-02-01 | C99: 65000 | D99: non payé | E99: 2050-01-01
A100: 144/9 | B100: 2025-03-01 | C100: 65000 | D100: non payé | E100: 2050-01-01
A101: 144/9 | B101: 2025-04-01 | C101: 65000 | D101: non payé | E101: 2050-01-01
A102: 144/9 | B102: 2025-05-01 | C102: 65000 | D102: non payé | E102: 2050-01-01
A103: 144/9 | B103: 2025-06-01 | C103: 65000 | D103: non payé | E103: 2050-01-01
A104: 144/9 | B104: 2025-07-01 | C104: 65000 | D104: non payé | E104: 2050-01-01
A105: 144/9 | B105: 2025-08-01 | C105: 65000 | D105: non payé | E105: 2050-01-01
A106: 144/9 | B106: 2025-09-01 | C106: 65000 | D106: non payé | E106: 2050-01-01
A107: 144/9 | B107: 2025-10-01 | C107: 65000 | D107: non payé | E107: 2050-01-01
A108: 144/9 | B108: 2025-11-01 | C108: 65000 | D108: non payé | E108: 2050-01-01
A109: 144/9 | B109: 2025-12-01 | C109: 65000 | D109: non payé | E109: 2050-01-01
A110: 146/10 | B110: 2025-01-01 | C110: 41666.66667 | D110: non payé | E110: 2050-01-01
A111: 146/10 | B111: 2025-02-01 | C111: 41666.66667 | D111: non payé | E111: 2050-01-01
A112: 146/10 | B112: 2025-03-01 | C112: 41666.66667 | D112: non payé | E112: 2050-01-01
A113: 146/10 | B113: 2025-04-01 | C113: 41666.66667 | D113: non payé | E113: 2050-01-01
A114: 146/10 | B114: 2025-05-01 | C114: 41666.66667 | D114: non payé | E114: 2050-01-01
A115: 146/10 | B115: 2025-06-01 | C115: 41666.66667 | D115: non payé | E115: 2050-01-01
A116: 146/10 | B116: 2025-07-01 | C116: 41666.66667 | D116: non payé | E116: 2050-01-01
A117: 146/10 | B117: 2025-08-01 | C117: 41666.66667 | D117: non payé | E117: 2050-01-01
A118: 146/10 | B118: 2025-09-01 | C118: 41666.66667 | D118: non payé | E118: 2050-01-01
A119: 146/10 | B119: 2025-10-01 | C119: 41666.66667 | D119: non payé | E119: 2050-01-01
A120: 146/10 | B120: 2025-11-01 | C120: 41666.66667 | D120: non payé | E120: 2050-01-01
A121: 146/10 | B121: 2025-12-01 | C121: 41666.66667 | D121: non payé | E121: 2050-01-01
A122: 148/11 | B122: 2025-01-01 | C122: 65000 | D122: non payé | E122: 2050-01-01
A123: 148/11 | B123: 2025-02-01 | C123: 65000 | D123: non payé | E123: 2050-01-01
A124: 148/11 | B124: 2025-03-01 | C124: 65000 | D124: non payé | E124: 2050-01-01
A125: 148/11 | B125: 2025-04-01 | C125: 65000 | D125: non payé | E125: 2050-01-01
A126: 148/11 | B126: 2025-05-01 | C126: 65000 | D126: non payé | E126: 2050-01-01
A127: 148/11 | B127: 2025-06-01 | C127: 65000 | D127: non payé | E127: 2050-01-01
A128: 148/11 | B128: 2025-07-01 | C128: 65000 | D128: non payé | E128: 2050-01-01
A129: 148/11 | B129: 2025-08-01 | C129: 65000 | D129: non payé | E129: 2050-01-01
A130: 148/11 | B130: 2025-09-01 | C130: 65000 | D130: non payé | E130: 2050-01-01
A131: 148/11 | B131: 2025-10-01 | C131: 65000 | D131: non payé | E131: 2050-01-01
A132: 148/11 | B132: 2025-11-01 | C132: 65000 | D132: non payé | E132: 2050-01-01
A133: 148/11 | B133: 2025-12-01 | C133: 65000 | D133: non payé | E133: 2050-01-01
A134: 150/12 | B134: 2025-01-01 | C134: 65000 | D134: non payé | E134: 2050-01-01
A135: 150/12 | B135: 2025-02-01 | C135: 65000 | D135: non payé | E135: 2050-01-01
A136: 150/12 | B136: 2025-03-01 | C136: 65000 | D136: non payé | E136: 2050-01-01
A137: 150/12 | B137: 2025-04-01 | C137: 65000 | D137: non payé | E137: 2050-01-01
A138: 150/12 | B138: 2025-05-01 | C138: 65000 | D138: non payé | E138: 2050-01-01
A139: 150/12 | B139: 2025-06-01 | C139: 65000 | D139: non payé | E139: 2050-01-01
A140: 150/12 | B140: 2025-07-01 | C140: 65000 | D140: non payé | E140: 2050-01-01
A141: 150/12 | B141: 2025-08-01 | C141: 65000 | D141: non payé | E141: 2050-01-01
A142: 150/12 | B142: 2025-09-01 | C142: 65000 | D142: non payé | E142: 2050-01-01
A143: 150/12 | B143: 2025-10-01 | C143: 65000 | D143: non payé | E143: 2050-01-01
A144: 150/12 | B144: 2025-11-01 | C144: 65000 | D144: non payé | E144: 2050-01-01
A145: 150/12 | B145: 2025-12-01 | C145: 65000 | D145: non payé | E145: 2050-01-01
A146: G-A-01 | B146: 2025-01-01 | C146: 50000 | D146: non payé | E146: 2050-01-01
A147: G-A-01 | B147: 2025-02-01 | C147: 50000 | D147: non payé | E147: 2050-01-01
A148: G-A-01 | B148: 2025-03-01 | C148: 50000 | D148: non payé | E148: 2050-01-01
A149: G-A-01 | B149: 2025-04-01 | C149: 50000 | D149: non payé | E149: 2050-01-01
A150: G-A-01 | B150: 2025-05-01 | C150: 50000 | D150: non payé | E150: 2050-01-01
A151: G-A-01 | B151: 2025-06-01 | C151: 50000 | D151: non payé | E151: 2050-01-01
A152: G-A-01 | B152: 2025-07-01 | C152: 50000 | D152: non payé | E152: 2050-01-01
A153: G-A-01 | B153: 2025-08-01 | C153: 50000 | D153: non payé | E153: 2050-01-01
A154: G-A-01 | B154: 2025-09-01 | C154: 50000 | D154: non payé | E154: 2050-01-01
A155: G-A-01 | B155: 2025-10-01 | C155: 50000 | D155: non payé | E155: 2050-01-01
A156: G-A-01 | B156: 2025-11-01 | C156: 50000 | D156: non payé | E156: 2050-01-01
A157: G-A-01 | B157: 2025-12-01 | C157: 50000 | D157: non payé | E157: 2050-01-01
A158: G-A-02 | B158: 2025-01-01 | C158: 50000 | D158: non payé | E158: 2050-01-01
A159: G-A-02 | B159: 2025-02-01 | C159: 50000 | D159: non payé | E159: 2050-01-01
A160: G-A-02 | B160: 2025-03-01 | C160: 50000 | D160: non payé | E160: 2050-01-01
A161: G-A-02 | B161: 2025-04-01 | C161: 50000 | D161: non payé | E161: 2050-01-01
A162: G-A-02 | B162: 2025-05-01 | C162: 50000 | D162: non payé | E162: 2050-01-01
A163: G-A-02 | B163: 2025-06-01 | C163: 50000 | D163: non payé | E163: 2050-01-01
A164: G-A-02 | B164: 2025-07-01 | C164: 50000 | D164: non payé | E164: 2050-01-01
A165: G-A-02 | B165: 2025-08-01 | C165: 50000 | D165: non payé | E165: 2050-01-01
A166: G-A-02 | B166: 2025-09-01 | C166: 50000 | D166: non payé | E166: 2050-01-01
A167: G-A-02 | B167: 2025-10-01 | C167: 50000 | D167: non payé | E167: 2050-01-01
A168: G-A-02 | B168: 2025-11-01 | C168: 50000 | D168: non payé | E168: 2050-01-01
A169: G-A-02 | B169: 2025-12-01 | C169: 50000 | D169: non payé | E169: 2050-01-01
A170: G-A-03 | B170: 2025-01-01 | C170: 50000 | D170: non payé | E170: 2050-01-01
A171: G-A-03 | B171: 2025-02-01 | C171: 50000 | D171: non payé | E171: 2050-01-01
A172: G-A-03 | B172: 2025-03-01 | C172: 50000 | D172: non payé | E172: 2050-01-01
A173: G-A-03 | B173: 2025-04-01 | C173: 50000 | D173: non payé | E173: 2050-01-01
A174: G-A-03 | B174: 2025-05-01 | C174: 50000 | D174: non payé | E174: 2050-01-01
A175: G-A-03 | B175: 2025-06-01 | C175: 50000 | D175: non payé | E175: 2050-01-01
A176: G-A-03 | B176: 2025-07-01 | C176: 50000 | D176: non payé | E176: 2050-01-01
A177: G-A-03 | B177: 2025-08-01 | C177: 50000 | D177: non payé | E177: 2050-01-01
A178: G-A-03 | B178: 2025-09-01 | C178: 50000 | D178: non payé | E178: 2050-01-01
A179: G-A-03 | B179: 2025-10-01 | C179: 50000 | D179: non payé | E179: 2050-01-01
A180: G-A-03 | B180: 2025-11-01 | C180: 50000 | D180: non payé | E180: 2050-01-01
A181: G-A-03 | B181: 2025-12-01 | C181: 50000 | D181: non payé | E181: 2050-01-01
A182: G-A-04 | B182: 2025-01-01 | C182: 50000 | D182: non payé | E182: 2050-01-01
A183: G-A-04 | B183: 2025-02-01 | C183: 50000 | D183: non payé | E183: 2050-01-01
A184: G-A-04 | B184: 2025-03-01 | C184: 50000 | D184: non payé | E184: 2050-01-01
A185: G-A-04 | B185: 2025-04-01 | C185: 50000 | D185: non payé | E185: 2050-01-01
A186: G-A-04 | B186: 2025-05-01 | C186: 50000 | D186: non payé | E186: 2050-01-01
A187: G-A-04 | B187: 2025-06-01 | C187: 50000 | D187: non payé | E187: 2050-01-01
A188: G-A-04 | B188: 2025-07-01 | C188: 50000 | D188: non payé | E188: 2050-01-01
A189: G-A-04 | B189: 2025-08-01 | C189: 50000 | D189: non payé | E189: 2050-01-01
A190: G-A-04 | B190: 2025-09-01 | C190: 50000 | D190: non payé | E190: 2050-01-01
A191: G-A-04 | B191: 2025-10-01 | C191: 50000 | D191: non payé | E191: 2050-01-01
A192: G-A-04 | B192: 2025-11-01 | C192: 50000 | D192: non payé | E192: 2050-01-01
A193: G-A-04 | B193: 2025-12-01 | C193: 50000 | D193: non payé | E193: 2050-01-01
A194: G-A-05 | B194: 2025-01-01 | C194: 50000 | D194: non payé | E194: 2050-01-01
A195: G-A-05 | B195: 2025-02-01 | C195: 50000 | D195: non payé | E195: 2050-01-01
A196: G-A-05 | B196: 2025-03-01 | C196: 50000 | D196: non payé | E196: 2050-01-01
A197: G-A-05 | B197: 2025-04-01 | C197: 50000 | D197: non payé | E197: 2050-01-01
A198: G-A-05 | B198: 2025-05-01 | C198: 50000 | D198: non payé | E198: 2050-01-01
A199: G-A-05 | B199: 2025-06-01 | C199: 50000 | D199: non payé | E199: 2050-01-01
A200: G-A-05 | B200: 2025-07-01 | C200: 50000 | D200: non payé | E200: 2050-01-01
... 2585 more rows

Sheet 25tcd-mois
P4: 54789

Sheet 25tcd-mois (2)
P4: 54789

Sheet 25tcd-pmts

Sheet ListeCaisses
A1: Num GL
A2: 57100 | B2: Caisse générale SCI
A3: 51211 | B3: Compte BICEC
A4: 51212 | B4: Compte Afriland
A5: 57110 | B5: Caisse Loyers Gipza | C5: Mérimée
A6: 57111 | B6: Caisse Gipza - CUY
A7: 57120 | B7: Caisse Loyers Ongola | C7: Jack
A8: 57121 | B8: Caisse Ongola - CUY
A9: 57122 | B9: Caisse Ongola - Associés
A10: 57123 | B10: Petite Caisse Ongola
A11: 57130 | B11: Caisse Frais de Sécurité et Nettoyage
A12: 57140 | B12: Caisse Frais d'électricité
A13: 57150 | B13: Caisse Parkings Ongola
A14: 57170 | B14: Caisse Sandra | C14: Sandra
A15: 57120 | B15: Monnaies Numériques Diverses
A16: 57121 | B16: OM
A17: 57122 | B17: MoMo
E36: SI(RECHERCHEV(A2;'[Suivi paiements loyers 2022-2024.xlsx]SuiviPMTLoyer'!$A$2:$DI$245;46;FAUX)="";"non payé";RECHERCHEV(A2;'[Suivi paiements loyers 2022-2024.xlsx]SuiviPMTLoyer'!$A$2:$DI$245;46;FAUX))

Sheet SuiviPMTLoyers2024
A1: Boutique | B1: Mois dû | C1: Montant | D1: Payé? | E1: Date PMT | F1: NumQuitt | G1: GL Caisse | H1: Payé à | I1: Emettre EDC? | J1: Code Locataire | K1: Nom Locataire | L1: Prénom Locataire | M1: Tel Locataire | N1: RemarqueMois
A2: 128/1 | B2: 2024-01-01 | C2: 65000 | D2: =IF(E2>54000,"non payé","oui") -> oui | E2: 2024-04-29
A3: 128/1 | B3: 2024-02-01 | C3: 65000 | D3: oui | E3: 2024-04-29
A4: 128/1 | B4: 2024-03-01 | C4: 65000 | D4: oui | E4: 2024-04-29
A5: 128/1 | B5: 2024-04-01 | C5: 65000 | D5: oui | E5: 2024-04-29
A6: 128/1 | B6: 2024-05-01 | C6: 65000 | D6: oui | E6: 2024-04-29
A7: 128/1 | B7: 2024-06-01 | C7: 65000 | D7: oui | E7: 2024-04-29
A8: 128/1 | B8: 2024-07-01 | C8: 65000 | D8: oui | E8: 2024-12-16
A9: 128/1 | B9: 2024-08-01 | C9: 65000 | D9: oui | E9: 2024-12-16
A10: 128/1 | B10: 2024-09-01 | C10: 65000 | D10: oui | E10: 2024-12-16
A11: 128/1 | B11: 2024-10-01 | C11: 65000 | D11: oui | E11: 2024-12-16
A12: 128/1 | B12: 2024-11-01 | C12: 65000 | D12: oui | E12: 2024-12-16
A13: 128/1 | B13: 2024-12-01 | C13: 65000 | D13: oui | E13: 2024-12-16
A14: 130/2 | B14: 2024-01-01 | C14: 65000 | D14: non payé | E14: 2050-01-01
A15: 130/2 | B15: 2024-02-01 | C15: 65000 | D15: non payé | E15: 2050-01-01
A16: 130/2 | B16: 2024-03-01 | C16: 65000 | D16: non payé | E16: 2050-01-01
A17: 130/2 | B17: 2024-04-01 | C17: 65000 | D17: non payé | E17: 2050-01-01
A18: 130/2 | B18: 2024-05-01 | C18: 65000 | D18: non payé | E18: 2050-01-01
A19: 130/2 | B19: 2024-06-01 | C19: 65000 | D19: non payé | E19: 2050-01-01
A20: 130/2 | B20: 2024-07-01 | C20: 65000 | D20: non payé | E20: 2050-01-01
A21: 130/2 | B21: 2024-08-01 | C21: 65000 | D21: non payé | E21: 2050-01-01
A22: 130/2 | B22: 2024-09-01 | C22: 65000 | D22: non payé | E22: 2050-01-01
A23: 130/2 | B23: 2024-10-01 | C23: 65000 | D23: non payé | E23: 2050-01-01
A24: 130/2 | B24: 2024-11-01 | C24: 65000 | D24: non payé | E24: 2050-01-01
A25: 130/2 | B25: 2024-12-01 | C25: 65000 | D25: non payé | E25: 2050-01-01
A26: 132/3 | B26: 2024-01-01 | C26: 65000 | D26: oui | E26: 2024-04-08
A27: 132/3 | B27: 2024-02-01 | C27: 65000 | D27: oui | E27: 2024-04-08
A28: 132/3 | B28: 2024-03-01 | C28: 65000 | D28: oui | E28: 2024-04-08
A29: 132/3 | B29: 2024-04-01 | C29: 65000 | D29: oui | E29: 2024-04-08
A30: 132/3 | B30: 2024-05-01 | C30: 65000 | D30: oui | E30: 2024-04-08
A31: 132/3 | B31: 2024-06-01 | C31: 65000 | D31: oui | E31: 2024-04-08
A32: 132/3 | B32: 2024-07-01 | C32: 65000 | D32: oui | E32: 2024-09-30
A33: 132/3 | B33: 2024-08-01 | C33: 65000 | D33: oui | E33: 2024-09-30
A34: 132/3 | B34: 2024-09-01 | C34: 65000 | D34: oui | E34: 2024-09-30
A35: 132/3 | B35: 2024-10-01 | C35: 65000 | D35: oui | E35: 2024-09-30
A36: 132/3 | B36: 2024-11-01 | C36: 65000 | D36: oui | E36: 2024-09-30
A37: 132/3 | B37: 2024-12-01 | C37: 65000 | D37: oui | E37: 2024-09-30
A38: 134/4 | B38: 2024-01-01 | C38: 65000 | D38: oui | E38: 2024-05-10
A39: 134/4 | B39: 2024-02-01 | C39: 65000 | D39: oui | E39: 2024-05-10
A40: 134/4 | B40: 2024-03-01 | C40: 65000 | D40: oui | E40: 2024-05-10
A41: 134/4 | B41: 2024-04-01 | C41: 65000 | D41: oui | E41: 2024-05-10
A42: 134/4 | B42: 2024-05-01 | C42: 65000 | D42: oui | E42: 2024-05-10
A43: 134/4 | B43: 2024-06-01 | C43: 65000 | D43: oui | E43: 2024-05-10
A44: 134/4 | B44: 2024-07-01 | C44: 65000 | D44: oui | E44: 2024-09-30
A45: 134/4 | B45: 2024-08-01 | C45: 65000 | D45: oui | E45: 2024-09-30
A46: 134/4 | B46: 2024-09-01 | C46: 65000 | D46: oui | E46: 2024-09-30
A47: 134/4 | B47: 2024-10-01 | C47: 65000 | D47: oui | E47: 2024-09-30
A48: 134/4 | B48: 2024-11-01 | C48: 65000 | D48: oui | E48: 2024-09-30
A49: 134/4 | B49: 2024-12-01 | C49: 65000 | D49: oui | E49: 2024-09-30
A50: 136/5 | B50: 2024-01-01 | C50: 65000 | D50: oui | E50: 2024-05-10
A51: 136/5 | B51: 2024-02-01 | C51: 65000 | D51: oui | E51: 2024-05-10
A52: 136/5 | B52: 2024-03-01 | C52: 65000 | D52: oui | E52: 2024-05-10
A53: 136/5 | B53: 2024-04-01 | C53: 65000 | D53: oui | E53: 2024-05-10
A54: 136/5 | B54: 2024-05-01 | C54: 65000 | D54: oui | E54: 2024-05-10
A55: 136/5 | B55: 2024-06-01 | C55: 65000 | D55: oui | E55: 2024-05-10
A56: 136/5 | B56: 2024-07-01 | C56: 65000 | D56: oui | E56: 2024-10-07
A57: 136/5 | B57: 2024-08-01 | C57: 65000 | D57: oui | E57: 2024-10-07
A58: 136/5 | B58: 2024-09-01 | C58: 65000 | D58: oui | E58: 2024-10-07
A59: 136/5 | B59: 2024-10-01 | C59: 65000 | D59: oui | E59: 2024-10-07
A60: 136/5 | B60: 2024-11-01 | C60: 65000 | D60: oui | E60: 2024-10-07
A61: 136/5 | B61: 2024-12-01 | C61: 65000 | D61: oui | E61: 2024-10-07
A62: 138/6 | B62: 2024-01-01 | C62: 65000 | D62: oui | E62: 2024-02-16
A63: 138/6 | B63: 2024-02-01 | C63: 65000 | D63: oui | E63: 2024-02-16
A64: 138/6 | B64: 2024-03-01 | C64: 65000 | D64: oui | E64: 2024-02-16
A65: 138/6 | B65: 2024-04-01 | C65: 65000 | D65: oui | E65: 2024-02-16
A66: 138/6 | B66: 2024-05-01 | C66: 65000 | D66: oui | E66: 2024-02-16
A67: 138/6 | B67: 2024-06-01 | C67: 65000 | D67: oui | E67: 2024-02-16
A68: 138/6 | B68: 2024-07-01 | C68: 65000 | D68: oui | E68: 2024-09-19
A69: 138/6 | B69: 2024-08-01 | C69: 65000 | D69: oui | E69: 2024-09-19
A70: 138/6 | B70: 2024-09-01 | C70: 65000 | D70: oui | E70: 2024-09-19
A71: 138/6 | B71: 2024-10-01 | C71: 65000 | D71: oui | E71: 2024-09-19
A72: 138/6 | B72: 2024-11-01 | C72: 65000 | D72: oui | E72: 2024-12-16
A73: 138/6 | B73: 2024-12-01 | C73: 65000 | D73: non payé | E73: 2050-01-01
A74: 140/7 | B74: 2024-01-01 | C74: 65000 | D74: oui | E74: 2024-07-23
A75: 140/7 | B75: 2024-02-01 | C75: 65000 | D75: oui | E75: 2024-07-23
A76: 140/7 | B76: 2024-03-01 | C76: 65000 | D76: oui | E76: 2024-07-23
A77: 140/7 | B77: 2024-04-01 | C77: 65000 | D77: oui | E77: 2024-07-23
A78: 140/7 | B78: 2024-05-01 | C78: 65000 | D78: oui | E78: 2024-07-23
A79: 140/7 | B79: 2024-06-01 | C79: 65000 | D79: oui | E79: 2024-07-23
A80: 140/7 | B80: 2024-07-01 | C80: 65000 | D80: oui | E80: 2025-01-11
A81: 140/7 | B81: 2024-08-01 | C81: 65000 | D81: oui | E81: 2025-01-11
A82: 140/7 | B82: 2024-09-01 | C82: 65000 | D82: oui | E82: 2025-01-11
A83: 140/7 | B83: 2024-10-01 | C83: 65000 | D83: oui | E83: 2025-01-11
A84: 140/7 | B84: 2024-11-01 | C84: 65000 | D84: oui | E84: 2025-01-11
A85: 140/7 | B85: 2024-12-01 | C85: 65000 | D85: oui | E85: 2025-01-11
A86: 142/8 | B86: 2024-01-01 | C86: 65000 | D86: oui | E86: 2024-06-11
A87: 142/8 | B87: 2024-02-01 | C87: 65000 | D87: oui | E87: 2024-06-11
A88: 142/8 | B88: 2024-03-01 | C88: 65000 | D88: oui | E88: 2024-06-11
A89: 142/8 | B89: 2024-04-01 | C89: 65000 | D89: oui | E89: 2024-06-11
A90: 142/8 | B90: 2024-05-01 | C90: 65000 | D90: oui | E90: 2024-06-11
A91: 142/8 | B91: 2024-06-01 | C91: 65000 | D91: oui | E91: 2024-06-11
A92: 142/8 | B92: 2024-07-01 | C92: 65000 | D92: oui | E92: 2024-12-16
A93: 142/8 | B93: 2024-08-01 | C93: 65000 | D93: oui | E93: 2024-12-16
A94: 142/8 | B94: 2024-09-01 | C94: 65000 | D94: oui | E94: 2024-12-16
A95: 142/8 | B95: 2024-10-01 | C95: 65000 | D95: oui | E95: 2024-12-16
A96: 142/8 | B96: 2024-11-01 | C96: 65000 | D96: oui | E96: 2024-12-16
A97: 142/8 | B97: 2024-12-01 | C97: 65000 | D97: oui | E97: 2024-12-16
A98: 144/9 | B98: 2024-01-01 | C98: 65000 | D98: oui | E98: 2024-05-10
A99: 144/9 | B99: 2024-02-01 | C99: 65000 | D99: oui | E99: 2024-05-10
A100: 144/9 | B100: 2024-03-01 | C100: 65000 | D100: oui | E100: 2024-05-10
A101: 144/9 | B101: 2024-04-01 | C101: 65000 | D101: oui | E101: 2024-05-10
A102: 144/9 | B102: 2024-05-01 | C102: 65000 | D102: oui | E102: 2024-05-10
A103: 144/9 | B103: 2024-06-01 | C103: 65000 | D103: oui | E103: 2024-05-10
A104: 144/9 | B104: 2024-07-01 | C104: 65000 | D104: oui | E104: 2024-12-16
A105: 144/9 | B105: 2024-08-01 | C105: 65000 | D105: oui | E105: 2024-12-16
A106: 144/9 | B106: 2024-09-01 | C106: 65000 | D106: oui | E106: 2024-12-16
A107: 144/9 | B107: 2024-10-01 | C107: 65000 | D107: oui | E107: 2024-12-16
A108: 144/9 | B108: 2024-11-01 | C108: 65000 | D108: oui | E108: 2024-12-16
A109: 144/9 | B109: 2024-12-01 | C109: 65000 | D109: oui | E109: 2024-12-16
A110: 146/10 | B110: 2024-01-01 | C110: 41666.66667 | D110: oui | E110: 2024-03-28
A111: 146/10 | B111: 2024-02-01 | C111: 41666.66667 | D111: oui | E111: 2024-03-28
A112: 146/10 | B112: 2024-03-01 | C112: 41666.66667 | D112: oui | E112: 2024-03-28
A113: 146/10 | B113: 2024-04-01 | C113: 41666.66667 | D113: oui | E113: 2024-03-28
A114: 146/10 | B114: 2024-05-01 | C114: 41666.66667 | D114: oui | E114: 2024-03-28
A115: 146/10 | B115: 2024-06-01 | C115: 41666.66667 | D115: oui | E115: 2024-03-28
A116: 146/10 | B116: 2024-07-01 | C116: 41666.66667 | D116: oui | E116: 2024-03-28
A117: 146/10 | B117: 2024-08-01 | C117: 41666.66667 | D117: oui | E117: 2024-03-28
A118: 146/10 | B118: 2024-09-01 | C118: 41666.66667 | D118: oui | E118: 2024-03-28
A119: 146/10 | B119: 2024-10-01 | C119: 41666.66667 | D119: oui | E119: 2024-03-28
A120: 146/10 | B120: 2024-11-01 | C120: 41666.66667 | D120: oui | E120: 2024-03-28
A121: 146/10 | B121: 2024-12-01 | C121: 41666.66667 | D121: oui | E121: 2024-03-28
A122: 148/11 | B122: 2024-01-01 | C122: 65000 | D122: oui | E122: 2024-04-29
A123: 148/11 | B123: 2024-02-01 | C123: 65000 | D123: oui | E123: 2024-04-29
A124: 148/11 | B124: 2024-03-01 | C124: 65000 | D124: oui | E124: 2024-04-29
A125: 148/11 | B125: 2024-04-01 | C125: 65000 | D125: oui | E125: 2024-04-29
A126: 148/11 | B126: 2024-05-01 | C126: 65000 | D126: oui | E126: 2024-04-29
A127: 148/11 | B127: 2024-06-01 | C127: 65000 | D127: oui | E127: 2024-04-29
A128: 148/11 | B128: 2024-07-01 | C128: 65000 | D128: oui | E128: 2024-04-29
A129: 148/11 | B129: 2024-08-01 | C129: 65000 | D129: oui | E129: 2024-04-29
A130: 148/11 | B130: 2024-09-01 | C130: 65000 | D130: oui | E130: 2024-04-29
A131: 148/11 | B131: 2024-10-01 | C131: 65000 | D131: oui | E131: 2024-04-29
A132: 148/11 | B132: 2024-11-01 | C132: 65000 | D132: oui | E132: 2024-04-29
A133: 148/11 | B133: 2024-12-01 | C133: 65000 | D133: oui | E133: 2024-04-29
A134: 150/12 | B134: 2024-01-01 | C134: 75000 | D134: oui | E134: 2024-07-27
A135: 150/12 | B135: 2024-02-01 | C135: 75000 | D135: oui | E135: 2024-07-27
A136: 150/12 | B136: 2024-03-01 | C136: 65000 | D136: oui | E136: 2024-08-16
A137: 150/12 | B137: 2024-04-01 | C137: 65000 | D137: oui | E137: 2024-08-16
A138: 150/12 | B138: 2024-05-01 | C138: 70000 | D138: oui | E138: 2024-12-16
A139: 150/12 | B139: 2024-06-01 | C139: 70000 | D139: oui | E139: 2024-12-16
A140: 150/12 | B140: 2024-07-01 | C140: 70000 | D140: oui | E140: 2024-12-16
A141: 150/12 | B141: 2024-08-01 | C141: 70000 | D141: oui | E141: 2024-12-16
A142: 150/12 | B142: 2024-09-01 | C142: 55000 | D142: oui | E142: 2024-12-24
A143: 150/12 | B143: 2024-10-01 | C143: 55000 | D143: oui | E143: 2024-12-24
A144: 150/12 | B144: 2024-11-01 | C144: 55000 | D144: oui | E144: 2024-12-24
A145: 150/12 | B145: 2024-12-01 | C145: 55000 | D145: oui | E145: 2024-12-24
A146: G-A-01 | B146: 2024-01-01 | C146: 50000 | D146: oui | E146: 2024-05-10
A147: G-A-01 | B147: 2024-02-01 | C147: 50000 | D147: oui | E147: 2024-07-23
A148: G-A-01 | B148: 2024-03-01 | C148: 50000 | D148: oui | E148: 2024-07-23
A149: G-A-01 | B149: 2024-04-01 | C149: 50000 | D149: oui | E149: 2024-09-30
A150: G-A-01 | B150: 2024-05-01 | C150: 50000 | D150: non payé | E150: 2050-01-01
A151: G-A-01 | B151: 2024-06-01 | C151: 50000 | D151: non payé | E151: 2050-01-01
A152: G-A-01 | B152: 2024-07-01 | C152: 50000 | D152: non payé | E152: 2050-01-01
A153: G-A-01 | B153: 2024-08-01 | C153: 50000 | D153: non payé | E153: 2050-01-01
A154: G-A-01 | B154: 2024-09-01 | C154: 50000 | D154: non payé | E154: 2050-01-01
A155: G-A-01 | B155: 2024-10-01 | C155: 50000 | D155: non payé | E155: 2050-01-01
A156: G-A-01 | B156: 2024-11-01 | C156: 50000 | D156: non payé | E156: 2050-01-01
A157: G-A-01 | B157: 2024-12-01 | C157: 50000 | D157: non payé | E157: 2050-01-01
A158: G-A-02 | B158: 2024-01-01 | C158: 50000 | D158: oui | E158: 2024-02-06
A159: G-A-02 | B159: 2024-02-01 | C159: 50000 | D159: oui | E159: 2024-02-06
A160: G-A-02 | B160: 2024-03-01 | C160: 50000 | D160: oui | E160: 2024-11-13
A161: G-A-02 | B161: 2024-04-01 | C161: 50000 | D161: oui | E161: 2024-11-13
A162: G-A-02 | B162: 2024-05-01 | C162: 50000 | D162: oui | E162: 2024-11-13
A163: G-A-02 | B163: 2024-06-01 | C163: 50000 | D163: oui | E163: 2024-11-13
A164: G-A-02 | B164: 2024-07-01 | C164: 50000 | D164: oui | E164: 2024-11-13
A165: G-A-02 | B165: 2024-08-01 | C165: 50000 | D165: oui | E165: 2024-11-13
A166: G-A-02 | B166: 2024-09-01 | C166: 50000 | D166: oui | E166: 2024-11-13
A167: G-A-02 | B167: 2024-10-01 | C167: 50000 | D167: oui | E167: 2024-11-13
A168: G-A-02 | B168: 2024-11-01 | C168: 50000 | D168: non payé | E168: 2050-01-01
A169: G-A-02 | B169: 2024-12-01 | C169: 50000 | D169: non payé | E169: 2050-01-01
A170: G-A-03 | B170: 2024-01-01 | C170: 50000 | D170: oui | E170: 2024-01-10
A171: G-A-03 | B171: 2024-02-01 | C171: 50000 | D171: oui | E171: 2024-01-10
A172: G-A-03 | B172: 2024-03-01 | C172: 50000 | D172: oui | E172: 2024-01-10
A173: G-A-03 | B173: 2024-04-01 | C173: 50000 | D173: oui | E173: 2024-04-29
A174: G-A-03 | B174: 2024-05-01 | C174: 50000 | D174: oui | E174: 2024-04-29
A175: G-A-03 | B175: 2024-06-01 | C175: 50000 | D175: oui | E175: 2024-04-29
A176: G-A-03 | B176: 2024-07-01 | C176: 50000 | D176: oui | E176: 2024-07-10
A177: G-A-03 | B177: 2024-08-01 | C177: 50000 | D177: oui | E177: 2024-07-10
A178: G-A-03 | B178: 2024-09-01 | C178: 50000 | D178: oui | E178: 2024-07-10
A179: G-A-03 | B179: 2024-10-01 | C179: 50000 | D179: oui | E179: 2024-07-10
A180: G-A-03 | B180: 2024-11-01 | C180: 50000 | D180: oui | E180: 2024-07-10
A181: G-A-03 | B181: 2024-12-01 | C181: 50000 | D181: oui | E181: 2024-07-10
A182: G-A-04 | B182: 2024-01-01 | C182: 50000 | D182: oui | E182: 2024-04-08
A183: G-A-04 | B183: 2024-02-01 | C183: 50000 | D183: oui | E183: 2024-04-08
A184: G-A-04 | B184: 2024-03-01 | C184: 50000 | D184: oui | E184: 2024-04-08
A185: G-A-04 | B185: 2024-04-01 | C185: 50000 | D185: oui | E185: 2024-07-09
A186: G-A-04 | B186: 2024-05-01 | C186: 50000 | D186: oui | E186: 2024-07-09
A187: G-A-04 | B187: 2024-06-01 | C187: 50000 | D187: oui | E187: 2024-07-09
A188: G-A-04 | B188: 2024-07-01 | C188: 50000 | D188: oui | E188: 2024-11-13
A189: G-A-04 | B189: 2024-08-01 | C189: 50000 | D189: oui | E189: 2024-11-13
A190: G-A-04 | B190: 2024-09-01 | C190: 50000 | D190: oui | E190: 2024-11-13
A191: G-A-04 | B191: 2024-10-01 | C191: 50000 | D191: oui | E191: 2025-01-28
A192: G-A-04 | B192: 2024-11-01 | C192: 50000 | D192: oui | E192: 2025-01-28
A193: G-A-04 | B193: 2024-12-01 | C193: 50000 | D193: oui | E193: 2025-01-28
A194: G-A-05 | B194: 2024-01-01 | C194: 50000 | D194: oui | E194: 2024-04-08
A195: G-A-05 | B195: 2024-02-01 | C195: 50000 | D195: oui | E195: 2024-04-08
A196: G-A-05 | B196: 2024-03-01 | C196: 50000 | D196: oui | E196: 2024-04-08
A197: G-A-05 | B197: 2024-04-01 | C197: 50000 | D197: oui | E197: 2024-07-09
A198: G-A-05 | B198: 2024-05-01 | C198: 50000 | D198: oui | E198: 2024-07-09
A199: G-A-05 | B199: 2024-06-01 | C199: 50000 | D199: oui | E199: 2024-07-09
A200: G-A-05 | B200: 2024-07-01 | C200: 50000 | D200: oui | E200: 2024-09-30
... 2585 more rows

Sheet SuiviPMTLoyers2023
A1: Boutique | B1: Mois dû | C1: Montant | D1: Payé? | E1: Date PMT | F1: NumQuitt | G1: GL Caisse | H1: Payé à | I1: Emettre EDC? | J1: Code Locataire | K1: Nom Locataire | L1: Prénom Locataire | M1: Tel Locataire | N1: RemarqueMois
A2: 128/1 | B2: 2023-01-01 | C2: 65000 | D2: =IF(E2>54000,"non payé","oui") -> oui | E2: 2023-03-15
A3: 128/1 | B3: 2023-02-01 | C3: 65000 | D3: oui | E3: 2023-03-15
A4: 128/1 | B4: 2023-03-01 | C4: 65000 | D4: oui | E4: 2023-03-15
A5: 128/1 | B5: 2023-04-01 | C5: 65000 | D5: oui | E5: 2023-08-11
A6: 128/1 | B6: 2023-05-01 | C6: 65000 | D6: oui | E6: 2023-08-11
A7: 128/1 | B7: 2023-06-01 | C7: 65000 | D7: oui | E7: 2023-09-01
A8: 128/1 | B8: 2023-07-01 | C8: 65000 | D8: non payé | E8: 2050-01-01
A9: 128/1 | B9: 2023-08-01 | C9: 65000 | D9: non payé | E9: 2050-01-01
A10: 128/1 | B10: 2023-09-01 | C10: 65000 | D10: non payé | E10: 2050-01-01
A11: 128/1 | B11: 2023-10-01 | C11: 65000 | D11: non payé | E11: 2050-01-01
A12: 128/1 | B12: 2023-11-01 | C12: 65000 | D12: non payé | E12: 2050-01-01
A13: 128/1 | B13: 2023-12-01 | C13: 65000 | D13: non payé | E13: 2050-01-01
A14: 130/2 | B14: 2023-01-01 | C14: 65000 | D14: oui | E14: 2023-09-01
A15: 130/2 | B15: 2023-02-01 | C15: 65000 | D15: oui | E15: 2023-09-01
A16: 130/2 | B16: 2023-03-01 | C16: 65000 | D16: oui | E16: 2023-09-01
A17: 130/2 | B17: 2023-04-01 | C17: 65000 | D17: oui | E17: 2023-09-01
A18: 130/2 | B18: 2023-05-01 | C18: 65000 | D18: oui | E18: 2023-09-01
A19: 130/2 | B19: 2023-06-01 | C19: 65000 | D19: oui | E19: 2023-09-01
A20: 130/2 | B20: 2023-07-01 | C20: 65000 | D20: non payé | E20: 2050-01-01
A21: 130/2 | B21: 2023-08-01 | C21: 65000 | D21: non payé | E21: 2050-01-01
A22: 130/2 | B22: 2023-09-01 | C22: 65000 | D22: non payé | E22: 2050-01-01
A23: 130/2 | B23: 2023-10-01 | C23: 65000 | D23: non payé | E23: 2050-01-01
A24: 130/2 | B24: 2023-11-01 | C24: 65000 | D24: non payé | E24: 2050-01-01
A25: 130/2 | B25: 2023-12-01 | C25: 65000 | D25: non payé | E25: 2050-01-01
A26: 132/3 | B26: 2023-01-01 | C26: 65000 | D26: oui | E26: 2023-03-15
A27: 132/3 | B27: 2023-02-01 | C27: 65000 | D27: oui | E27: 2023-03-15
A28: 132/3 | B28: 2023-03-01 | C28: 65000 | D28: oui | E28: 2023-03-15
A29: 132/3 | B29: 2023-04-01 | C29: 65000 | D29: oui | E29: 2023-03-15
A30: 132/3 | B30: 2023-05-01 | C30: 65000 | D30: oui | E30: 2023-03-15
A31: 132/3 | B31: 2023-06-01 | C31: 65000 | D31: oui | E31: 2023-03-15
A32: 132/3 | B32: 2023-07-01 | C32: 65000 | D32: oui | E32: 2023-09-11
A33: 132/3 | B33: 2023-08-01 | C33: 65000 | D33: oui | E33: 2023-09-11
A34: 132/3 | B34: 2023-09-01 | C34: 65000 | D34: oui | E34: 2023-09-11
A35: 132/3 | B35: 2023-10-01 | C35: 65000 | D35: oui | E35: 2023-09-11
A36: 132/3 | B36: 2023-11-01 | C36: 65000 | D36: oui | E36: 2023-09-11
A37: 132/3 | B37: 2023-12-01 | C37: 65000 | D37: oui | E37: 2023-09-11
A38: 134/4 | B38: 2023-01-01 | C38: 65000 | D38: oui | E38: 2023-04-26
A39: 134/4 | B39: 2023-02-01 | C39: 65000 | D39: oui | E39: 2023-04-26
A40: 134/4 | B40: 2023-03-01 | C40: 65000 | D40: oui | E40: 2023-04-26
A41: 134/4 | B41: 2023-04-01 | C41: 65000 | D41: oui | E41: 2023-04-26
A42: 134/4 | B42: 2023-05-01 | C42: 65000 | D42: oui | E42: 2023-04-26
A43: 134/4 | B43: 2023-06-01 | C43: 65000 | D43: oui | E43: 2023-04-26
A44: 134/4 | B44: 2023-07-01 | C44: 65000 | D44: oui | E44: 2023-09-01
A45: 134/4 | B45: 2023-08-01 | C45: 65000 | D45: oui | E45: 2023-09-01
A46: 134/4 | B46: 2023-09-01 | C46: 65000 | D46: oui | E46: 2023-09-01
A47: 134/4 | B47: 2023-10-01 | C47: 65000 | D47: oui | E47: 2023-09-01
A48: 134/4 | B48: 2023-11-01 | C48: 65000 | D48: oui | E48: 2023-09-01
A49: 134/4 | B49: 2023-12-01 | C49: 65000 | D49: oui | E49: 2023-09-01
A50: 136/5 | B50: 2023-01-01 | C50: 65000 | D50: oui | E50: 2023-03-15
A51: 136/5 | B51: 2023-02-01 | C51: 65000 | D51: oui | E51: 2023-03-15
A52: 136/5 | B52: 2023-03-01 | C52: 65000 | D52: oui | E52: 2023-03-15
A53: 136/5 | B53: 2023-04-01 | C53: 65000 | D53: oui | E53: 2023-03-15
A54: 136/5 | B54: 2023-05-01 | C54: 65000 | D54: oui | E54: 2023-03-15
A55: 136/5 | B55: 2023-06-01 | C55: 65000 | D55: oui | E55: 2023-03-15
A56: 136/5 | B56: 2023-07-01 | C56: 65000 | D56: non payé | E56: 2050-01-01
A57: 136/5 | B57: 2023-08-01 | C57: 65000 | D57: non payé | E57: 2050-01-01
A58: 136/5 | B58: 2023-09-01 | C58: 65000 | D58: non payé | E58: 2050-01-01
A59: 136/5 | B59: 2023-10-01 | C59: 65000 | D59: non payé | E59: 2050-01-01
A60: 136/5 | B60: 2023-11-01 | C60: 65000 | D60: non payé | E60: 2050-01-01
A61: 136/5 | B61: 2023-12-01 | C61: 65000 | D61: non payé | E61: 2050-01-01
A62: 138/6 | B62: 2023-01-01 | C62: 65000 | D62: oui | E62: 2023-01-25
A63: 138/6 | B63: 2023-02-01 | C63: 65000 | D63: oui | E63: 2023-01-25
A64: 138/6 | B64: 2023-03-01 | C64: 65000 | D64: oui | E64: 2023-01-25
A65: 138/6 | B65: 2023-04-01 | C65: 65000 | D65: oui | E65: 2023-04-26
A66: 138/6 | B66: 2023-05-01 | C66: 65000 | D66: oui | E66: 2023-04-26
A67: 138/6 | B67: 2023-06-01 | C67: 65000 | D67: oui | E67: 2023-04-26
A68: 138/6 | B68: 2023-07-01 | C68: 65000 | D68: oui | E68: 2023-12-12
A69: 138/6 | B69: 2023-08-01 | C69: 65000 | D69: oui | E69: 2023-12-12
A70: 138/6 | B70: 2023-09-01 | C70: 65000 | D70: oui | E70: 2023-12-12
A71: 138/6 | B71: 2023-10-01 | C71: 65000 | D71: oui | E71: 2023-12-12
A72: 138/6 | B72: 2023-11-01 | C72: 65000 | D72: oui | E72: 2023-12-12
A73: 138/6 | B73: 2023-12-01 | C73: 65000 | D73: oui | E73: 2023-12-12
A74: 140/7 | B74: 2023-01-01 | C74: 65000 | D74: oui | E74: 2023-06-14
A75: 140/7 | B75: 2023-02-01 | C75: 65000 | D75: oui | E75: 2023-06-14
A76: 140/7 | B76: 2023-03-01 | C76: 65000 | D76: oui | E76: 2023-06-14
A77: 140/7 | B77: 2023-04-01 | C77: 65000 | D77: oui | E77: 2023-06-14
A78: 140/7 | B78: 2023-05-01 | C78: 65000 | D78: oui | E78: 2023-06-14
A79: 140/7 | B79: 2023-06-01 | C79: 65000 | D79: oui | E79: 2023-06-14
A80: 140/7 | B80: 2023-07-01 | C80: 65000 | D80: non payé | E80: 2050-01-01
A81: 140/7 | B81: 2023-08-01 | C81: 65000 | D81: non payé | E81: 2050-01-01
A82: 140/7 | B82: 2023-09-01 | C82: 65000 | D82: non payé | E82: 2050-01-01
A83: 140/7 | B83: 2023-10-01 | C83: 65000 | D83: non payé | E83: 2050-01-01
A84: 140/7 | B84: 2023-11-01 | C84: 65000 | D84: non payé | E84: 2050-01-01
A85: 140/7 | B85: 2023-12-01 | C85: 65000 | D85: non payé | E85: 2050-01-01
A86: 142/8 | B86: 2023-01-01 | C86: 65000 | D86: oui | E86: 2023-03-15
A87: 142/8 | B87: 2023-02-01 | C87: 65000 | D87: oui | E87: 2023-03-15
A88: 142/8 | B88: 2023-03-01 | C88: 65000 | D88: oui | E88: 2023-03-15
A89: 142/8 | B89: 2023-04-01 | C89: 65000 | D89: oui | E89: 2023-03-15
A90: 142/8 | B90: 2023-05-01 | C90: 65000 | D90: oui | E90: 2023-03-15
A91: 142/8 | B91: 2023-06-01 | C91: 65000 | D91: oui | E91: 2023-03-15
A92: 142/8 | B92: 2023-07-01 | C92: 65000 | D92: oui | E92: 2023-10-16
A93: 142/8 | B93: 2023-08-01 | C93: 65000 | D93: oui | E93: 2023-10-16
A94: 142/8 | B94: 2023-09-01 | C94: 65000 | D94: oui | E94: 2023-10-16
A95: 142/8 | B95: 2023-10-01 | C95: 65000 | D95: oui | E95: 2023-10-16
A96: 142/8 | B96: 2023-11-01 | C96: 65000 | D96: oui | E96: 2023-10-16
A97: 142/8 | B97: 2023-12-01 | C97: 65000 | D97: oui | E97: 2023-10-16
A98: 144/9 | B98: 2023-01-01 | C98: 65000 | D98: oui | E98: 2023-03-15
A99: 144/9 | B99: 2023-02-01 | C99: 65000 | D99: oui | E99: 2023-03-15
A100: 144/9 | B100: 2023-03-01 | C100: 65000 | D100: oui | E100: 2023-03-15
A101: 144/9 | B101: 2023-04-01 | C101: 65000 | D101: oui | E101: 2023-03-15
A102: 144/9 | B102: 2023-05-01 | C102: 65000 | D102: oui | E102: 2023-03-15
A103: 144/9 | B103: 2023-06-01 | C103: 65000 | D103: oui | E103: 2023-03-15
A104: 144/9 | B104: 2023-07-01 | C104: 65000 | D104: oui | E104: 2023-10-16
A105: 144/9 | B105: 2023-08-01 | C105: 65000 | D105: oui | E105: 2023-10-16
A106: 144/9 | B106: 2023-09-01 | C106: 65000 | D106: oui | E106: 2023-10-16
A107: 144/9 | B107: 2023-10-01 | C107: 65000 | D107: oui | E107: 2023-10-16
A108: 144/9 | B108: 2023-11-01 | C108: 65000 | D108: oui | E108: 2023-10-16
A109: 144/9 | B109: 2023-12-01 | C109: 65000 | D109: oui | E109: 2023-10-16
A110: 146/10 | B110: 2023-01-01 | C110: 41666.66667 | D110: oui | E110: 2023-02-15
A111: 146/10 | B111: 2023-02-01 | C111: 41666.66667 | D111: oui | E111: 2023-02-15
A112: 146/10 | B112: 2023-03-01 | C112: 41666.66667 | D112: oui | E112: 2023-02-15
A113: 146/10 | B113: 2023-04-01 | C113: 41666.66667 | D113: oui | E113: 2023-02-15
A114: 146/10 | B114: 2023-05-01 | C114: 41666.66667 | D114: oui | E114: 2023-02-15
A115: 146/10 | B115: 2023-06-01 | C115: 41666.66667 | D115: oui | E115: 2023-02-15
A116: 146/10 | B116: 2023-07-01 | C116: 41666.66667 | D116: oui | E116: 2023-02-15
A117: 146/10 | B117: 2023-08-01 | C117: 41666.66667 | D117: oui | E117: 2023-02-15
A118: 146/10 | B118: 2023-09-01 | C118: 41666.66667 | D118: oui | E118: 2023-02-15
A119: 146/10 | B119: 2023-10-01 | C119: 41666.66667 | D119: oui | E119: 2023-02-15
A120: 146/10 | B120: 2023-11-01 | C120: 41666.66667 | D120: oui | E120: 2023-02-15
A121: 146/10 | B121: 2023-12-01 | C121: 41666.66667 | D121: oui | E121: 2023-02-15
A122: 148/11 | B122: 2023-01-01 | C122: 65000 | D122: oui | E122: 2023-02-15
A123: 148/11 | B123: 2023-02-01 | C123: 65000 | D123: oui | E123: 2023-02-15
A124: 148/11 | B124: 2023-03-01 | C124: 65000 | D124: oui | E124: 2023-02-15
A125: 148/11 | B125: 2023-04-01 | C125: 65000 | D125: oui | E125: 2023-02-15
A126: 148/11 | B126: 2023-05-01 | C126: 65000 | D126: oui | E126: 2023-02-15
A127: 148/11 | B127: 2023-06-01 | C127: 65000 | D127: oui | E127: 2023-02-15
A128: 148/11 | B128: 2023-07-01 | C128: 65000 | D128: oui | E128: 2023-02-15
A129: 148/11 | B129: 2023-08-01 | C129: 65000 | D129: oui | E129: 2023-02-15
A130: 148/11 | B130: 2023-09-01 | C130: 65000 | D130: oui | E130: 2023-02-15
A131: 148/11 | B131: 2023-10-01 | C131: 65000 | D131: oui | E131: 2023-02-15
A132: 148/11 | B132: 2023-11-01 | C132: 65000 | D132: oui | E132: 2023-02-15
A133: 148/11 | B133: 2023-12-01 | C133: 65000 | D133: oui | E133: 2023-02-15
A134: 150/12 | B134: 2023-01-01 | C134: 60000 | D134: oui | E134: 2023-06-02
A135: 150/12 | B135: 2023-02-01 | C135: 60000 | D135: oui | E135: 2023-06-02
A136: 150/12 | B136: 2023-03-01 | C136: 60000 | D136: oui | E136: 2023-06-02
A137: 150/12 | B137: 2023-04-01 | C137: 60000 | D137: oui | E137: 2023-06-02
A138: 150/12 | B138: 2023-05-01 | C138: 60000 | D138: oui | E138: 2023-06-02
A139: 150/12 | B139: 2023-06-01 | C139: 65000 | D139: oui | E139: 2023-07-11
A140: 150/12 | B140: 2023-07-01 | C140: 65000 | D140: oui | E140: 2023-07-11
A141: 150/12 | B141: 2023-08-01 | C141: 70000 | D141: oui | E141: 2023-07-11
A142: 150/12 | B142: 2023-09-01 | C142: 80000 | D142: oui | E142: 2024-12-24
A143: 150/12 | B143: 2023-10-01 | C143: 65000 | D143: non payé | E143: 2050-01-01
A144: 150/12 | B144: 2023-11-01 | C144: 65000 | D144: non payé | E144: 2050-01-01
A145: 150/12 | B145: 2023-12-01 | C145: 70000 | D145: non payé | E145: 2050-01-01
A146: G-A-01 | B146: 2023-01-01 | C146: 50000 | D146: oui | E146: 2023-09-11
A147: G-A-01 | B147: 2023-02-01 | C147: 50000 | D147: oui | E147: 2023-09-11
A148: G-A-01 | B148: 2023-03-01 | C148: 50000 | D148: oui | E148: 2023-09-11
A149: G-A-01 | B149: 2023-04-01 | C149: 50000 | D149: oui | E149: 2023-12-12
A150: G-A-01 | B150: 2023-05-01 | C150: 50000 | D150: oui | E150: 2023-12-12
A151: G-A-01 | B151: 2023-06-01 | C151: 50000 | D151: oui | E151: 2023-12-12
A152: G-A-01 | B152: 2023-07-01 | C152: 50000 | D152: oui | E152: 2023-12-12
A153: G-A-01 | B153: 2023-08-01 | C153: 50000 | D153: oui | E153: 2023-12-29
A154: G-A-01 | B154: 2023-09-01 | C154: 50000 | D154: oui | E154: 2023-12-29
A155: G-A-01 | B155: 2023-10-01 | C155: 50000 | D155: oui | E155: 2024-03-28
A156: G-A-01 | B156: 2023-11-01 | C156: 50000 | D156: oui | E156: 2024-03-28
A157: G-A-01 | B157: 2023-12-01 | C157: 50000 | D157: oui | E157: 2024-04-08
A158: G-A-02 | B158: 2023-01-01 | C158: 50000 | D158: oui | E158: 2023-07-20
A159: G-A-02 | B159: 2023-02-01 | C159: 50000 | D159: oui | E159: 2023-07-20
A160: G-A-02 | B160: 2023-03-01 | C160: 50000 | D160: oui | E160: 2023-07-20
A161: G-A-02 | B161: 2023-04-01 | C161: 50000 | D161: oui | E161: 2023-07-20
A162: G-A-02 | B162: 2023-05-01 | C162: 50000 | D162: oui | E162: 2023-07-20
A163: G-A-02 | B163: 2023-06-01 | C163: 50000 | D163: oui | E163: 2023-07-20
A164: G-A-02 | B164: 2023-07-01 | C164: 50000 | D164: oui | E164: 2023-07-20
A165: G-A-02 | B165: 2023-08-01 | C165: 50000 | D165: oui | E165: 2023-07-20
A166: G-A-02 | B166: 2023-09-01 | C166: 50000 | D166: oui | E166: 2024-02-06
A167: G-A-02 | B167: 2023-10-01 | C167: 50000 | D167: oui | E167: 2024-02-06
A168: G-A-02 | B168: 2023-11-01 | C168: 50000 | D168: oui | E168: 2024-02-06
A169: G-A-02 | B169: 2023-12-01 | C169: 50000 | D169: oui | E169: 2024-02-06
A170: G-A-03 | B170: 2023-01-01 | C170: 50000 | D170: oui | E170: 2023-01-10
A171: G-A-03 | B171: 2023-02-01 | C171: 50000 | D171: oui | E171: 2023-01-10
A172: G-A-03 | B172: 2023-03-01 | C172: 50000 | D172: oui | E172: 2023-01-10
A173: G-A-03 | B173: 2023-04-01 | C173: 50000 | D173: oui | E173: 2023-04-11
A174: G-A-03 | B174: 2023-05-01 | C174: 50000 | D174: oui | E174: 2023-04-11
A175: G-A-03 | B175: 2023-06-01 | C175: 50000 | D175: oui | E175: 2023-04-11
A176: G-A-03 | B176: 2023-07-01 | C176: 50000 | D176: oui | E176: 2023-06-12
A177: G-A-03 | B177: 2023-08-01 | C177: 50000 | D177: oui | E177: 2023-06-12
A178: G-A-03 | B178: 2023-09-01 | C178: 50000 | D178: oui | E178: 2023-06-12
A179: G-A-03 | B179: 2023-10-01 | C179: 50000 | D179: oui | E179: 2023-10-03
A180: G-A-03 | B180: 2023-11-01 | C180: 50000 | D180: oui | E180: 2023-10-03
A181: G-A-03 | B181: 2023-12-01 | C181: 50000 | D181: oui | E181: 2023-10-03
A182: G-A-04 | B182: 2023-01-01 | C182: 50000 | D182: oui | E182: 2023-05-09
A183: G-A-04 | B183: 2023-02-01 | C183: 50000 | D183: oui | E183: 2023-05-09
A184: G-A-04 | B184: 2023-03-01 | C184: 50000 | D184: oui | E184: 2023-05-09
A185: G-A-04 | B185: 2023-04-01 | C185: 50000 | D185: oui | E185: 2023-07-11
A186: G-A-04 | B186: 2023-05-01 | C186: 50000 | D186: oui | E186: 2023-07-11
A187: G-A-04 | B187: 2023-06-01 | C187: 50000 | D187: oui | E187: 2023-07-11
A188: G-A-04 | B188: 2023-07-01 | C188: 50000 | D188: oui | E188: 2023-10-11
A189: G-A-04 | B189: 2023-08-01 | C189: 50000 | D189: oui | E189: 2023-10-11
A190: G-A-04 | B190: 2023-09-01 | C190: 50000 | D190: oui | E190: 2023-10-11
A191: G-A-04 | B191: 2023-10-01 | C191: 50000 | D191: oui | E191: 2023-12-29
A192: G-A-04 | B192: 2023-11-01 | C192: 50000 | D192: oui | E192: 2023-12-29
A193: G-A-04 | B193: 2023-12-01 | C193: 50000 | D193: oui | E193: 2023-12-29
A194: G-A-05 | B194: 2023-01-01 | C194: 50000 | D194: oui | E194: 2023-04-26
A195: G-A-05 | B195: 2023-02-01 | C195: 50000 | D195: oui | E195: 2023-04-26
A196: G-A-05 | B196: 2023-03-01 | C196: 50000 | D196: oui | E196: 2023-04-26
A197: G-A-05 | B197: 2023-04-01 | C197: 50000 | D197: oui | E197: 2023-07-11
A198: G-A-05 | B198: 2023-05-01 | C198: 50000 | D198: oui | E198: 2023-07-11
A199: G-A-05 | B199: 2023-06-01 | C199: 50000 | D199: oui | E199: 2023-07-11
A200: G-A-05 | B200: 2023-07-01 | C200: 50000 | D200: oui | E200: 2023-10-02
... 2585 more rows

Sheet SuiviPMTLoyers2022
A1: Boutique | B1: Mois dû | C1: Montant | D1: Payé? | E1: Date PMT | F1: NumQuitt | G1: GL Caisse | H1: Payé à | I1: Emettre EDC? | J1: Code Locataire | K1: Nom Locataire | L1: Prénom Locataire | M1: Tel Locataire | N1: RemarqueMois
A2: 128/1 | B2: 2022-01-01 | C2: 65000 | D2: =IF(E2>54000,"non payé","oui") -> oui | E2: 2022-02-14
A3: 128/1 | B3: 2022-02-01 | C3: 65000 | D3: oui | E3: 2022-02-14
A4: 128/1 | B4: 2022-03-01 | C4: 65000 | D4: oui | E4: 2022-02-14
A5: 128/1 | B5: 2022-04-01 | C5: 65000 | D5: oui | E5: 2022-02-14
A6: 128/1 | B6: 2022-05-01 | C6: 65000 | D6: oui | E6: 2022-02-14
A7: 128/1 | B7: 2022-06-01 | C7: 65000 | D7: oui | E7: 2022-02-14
A8: 128/1 | B8: 2022-07-01 | C8: 65000 | D8: oui | E8: 2022-10-11
A9: 128/1 | B9: 2022-08-01 | C9: 65000 | D9: oui | E9: 2022-10-11
A10: 128/1 | B10: 2022-09-01 | C10: 65000 | D10: oui | E10: 2022-10-11
A11: 128/1 | B11: 2022-10-01 | C11: 65000 | D11: oui | E11: 2022-10-11
A12: 128/1 | B12: 2022-11-01 | C12: 65000 | D12: oui | E12: 2022-12-28
A13: 128/1 | B13: 2022-12-01 | C13: 65000 | D13: oui | E13: 2022-12-28
A14: 130/2 | B14: 2022-01-01 | C14: 65000 | D14: oui | E14: 2022-02-17
A15: 130/2 | B15: 2022-02-01 | C15: 65000 | D15: oui | E15: 2022-02-17
A16: 130/2 | B16: 2022-03-01 | C16: 65000 | D16: oui | E16: 2022-09-16
A17: 130/2 | B17: 2022-04-01 | C17: 65000 | D17: oui | E17: 2022-09-16
A18: 130/2 | B18: 2022-05-01 | C18: 65000 | D18: oui | E18: 2022-09-16
A19: 130/2 | B19: 2022-06-01 | C19: 65000 | D19: oui | E19: 2022-09-16
A20: 130/2 | B20: 2022-07-01 | C20: 65000 | D20: oui | E20: 2023-01-25
A21: 130/2 | B21: 2022-08-01 | C21: 65000 | D21: oui | E21: 2023-01-25
A22: 130/2 | B22: 2022-09-01 | C22: 65000 | D22: oui | E22: 2023-01-25
A23: 130/2 | B23: 2022-10-01 | C23: 65000 | D23: oui | E23: 2023-01-25
A24: 130/2 | B24: 2022-11-01 | C24: 65000 | D24: oui | E24: 2023-01-25
A25: 130/2 | B25: 2022-12-01 | C25: 65000 | D25: oui | E25: 2023-01-25
A26: 132/3 | B26: 2022-01-01 | C26: 65000 | D26: oui | E26: 2022-02-21
A27: 132/3 | B27: 2022-02-01 | C27: 65000 | D27: oui | E27: 2022-02-21
A28: 132/3 | B28: 2022-03-01 | C28: 65000 | D28: oui | E28: 2022-02-21
A29: 132/3 | B29: 2022-04-01 | C29: 65000 | D29: oui | E29: 2022-02-21
A30: 132/3 | B30: 2022-05-01 | C30: 65000 | D30: oui | E30: 2022-02-21
A31: 132/3 | B31: 2022-06-01 | C31: 65000 | D31: oui | E31: 2022-02-21
A32: 132/3 | B32: 2022-07-01 | C32: 65000 | D32: oui | E32: 2022-10-11
A33: 132/3 | B33: 2022-08-01 | C33: 65000 | D33: oui | E33: 2022-10-11
A34: 132/3 | B34: 2022-09-01 | C34: 65000 | D34: oui | E34: 2022-10-11
A35: 132/3 | B35: 2022-10-01 | C35: 65000 | D35: oui | E35: 2022-10-11
A36: 132/3 | B36: 2022-11-01 | C36: 65000 | D36: oui | E36: 2022-10-11
A37: 132/3 | B37: 2022-12-01 | C37: 65000 | D37: oui | E37: 2022-10-11
A38: 134/4 | B38: 2022-01-01 | C38: 65000 | D38: oui | E38: 2022-04-14
A39: 134/4 | B39: 2022-02-01 | C39: 65000 | D39: oui | E39: 2022-04-14
A40: 134/4 | B40: 2022-03-01 | C40: 65000 | D40: oui | E40: 2022-04-14
A41: 134/4 | B41: 2022-04-01 | C41: 65000 | D41: oui | E41: 2022-04-14
A42: 134/4 | B42: 2022-05-01 | C42: 65000 | D42: oui | E42: 2022-04-14
A43: 134/4 | B43: 2022-06-01 | C43: 65000 | D43: oui | E43: 2022-04-14
A44: 134/4 | B44: 2022-07-01 | C44: 65000 | D44: oui | E44: 2022-09-16
A45: 134/4 | B45: 2022-08-01 | C45: 65000 | D45: oui | E45: 2022-09-16
A46: 134/4 | B46: 2022-09-01 | C46: 65000 | D46: oui | E46: 2022-09-16
A47: 134/4 | B47: 2022-10-01 | C47: 65000 | D47: oui | E47: 2022-09-16
A48: 134/4 | B48: 2022-11-01 | C48: 65000 | D48: oui | E48: 2022-09-16
A49: 134/4 | B49: 2022-12-01 | C49: 65000 | D49: oui | E49: 2022-09-16
A50: 136/5 | B50: 2022-01-01 | C50: 65000 | D50: oui | E50: 2022-03-08
A51: 136/5 | B51: 2022-02-01 | C51: 65000 | D51: oui | E51: 2022-03-08
A52: 136/5 | B52: 2022-03-01 | C52: 65000 | D52: oui | E52: 2022-03-08
A53: 136/5 | B53: 2022-04-01 | C53: 65000 | D53: oui | E53: 2022-03-08
A54: 136/5 | B54: 2022-05-01 | C54: 65000 | D54: oui | E54: 2022-03-08
A55: 136/5 | B55: 2022-06-01 | C55: 65000 | D55: oui | E55: 2022-03-08
A56: 136/5 | B56: 2022-07-01 | C56: 65000 | D56: oui | E56: 2022-11-11
A57: 136/5 | B57: 2022-08-01 | C57: 65000 | D57: oui | E57: 2022-11-11
A58: 136/5 | B58: 2022-09-01 | C58: 65000 | D58: oui | E58: 2022-11-11
A59: 136/5 | B59: 2022-10-01 | C59: 65000 | D59: oui | E59: 2022-11-11
A60: 136/5 | B60: 2022-11-01 | C60: 65000 | D60: oui | E60: 2022-11-11
A61: 136/5 | B61: 2022-12-01 | C61: 65000 | D61: oui | E61: 2022-11-11
A62: 138/6 | B62: 2022-01-01 | C62: 65000 | D62: oui | E62: 2022-01-14
A63: 138/6 | B63: 2022-02-01 | C63: 65000 | D63: oui | E63: 2022-01-14
A64: 138/6 | B64: 2022-03-01 | C64: 65000 | D64: oui | E64: 2022-01-14
A65: 138/6 | B65: 2022-04-01 | C65: 65000 | D65: oui | E65: 2022-01-14
A66: 138/6 | B66: 2022-05-01 | C66: 65000 | D66: oui | E66: 2022-05-09
A67: 138/6 | B67: 2022-06-01 | C67: 65000 | D67: oui | E67: 2022-05-09
A68: 138/6 | B68: 2022-07-01 | C68: 65000 | D68: oui | E68: 2022-05-09
A69: 138/6 | B69: 2022-08-01 | C69: 65000 | D69: oui | E69: 2022-07-28
A70: 138/6 | B70: 2022-09-01 | C70: 65000 | D70: oui | E70: 2022-07-28
A71: 138/6 | B71: 2022-10-01 | C71: 65000 | D71: oui | E71: 2022-07-28
A72: 138/6 | B72: 2022-11-01 | C72: 65000 | D72: oui | E72: 2022-12-16
A73: 138/6 | B73: 2022-12-01 | C73: 65000 | D73: oui | E73: 2022-12-16
A74: 140/7 | B74: 2022-01-01 | C74: 65000 | D74: oui | E74: 2022-01-13
A75: 140/7 | B75: 2022-02-01 | C75: 65000 | D75: oui | E75: 2022-01-13
A76: 140/7 | B76: 2022-03-01 | C76: 65000 | D76: oui | E76: 2022-01-13
A77: 140/7 | B77: 2022-04-01 | C77: 65000 | D77: oui | E77: 2022-01-13
A78: 140/7 | B78: 2022-05-01 | C78: 65000 | D78: oui | E78: 2022-01-13
A79: 140/7 | B79: 2022-06-01 | C79: 65000 | D79: oui | E79: 2022-12-16
A80: 140/7 | B80: 2022-07-01 | C80: 65000 | D80: oui | E80: 2023-01-25
A81: 140/7 | B81: 2022-08-01 | C81: 65000 | D81: oui | E81: 2023-01-25
A82: 140/7 | B82: 2022-09-01 | C82: 65000 | D82: oui | E82: 2023-01-25
A83: 140/7 | B83: 2022-10-01 | C83: 65000 | D83: oui | E83: 2023-01-25
A84: 140/7 | B84: 2022-11-01 | C84: 65000 | D84: oui | E84: 2023-01-25
A85: 140/7 | B85: 2022-12-01 | C85: 65000 | D85: oui | E85: 2023-01-25
A86: 142/8 | B86: 2022-01-01 | C86: 65000 | D86: oui | E86: 2022-03-10
A87: 142/8 | B87: 2022-02-01 | C87: 65000 | D87: oui | E87: 2022-03-10
A88: 142/8 | B88: 2022-03-01 | C88: 65000 | D88: oui | E88: 2022-03-10
A89: 142/8 | B89: 2022-04-01 | C89: 65000 | D89: oui | E89: 2022-03-10
A90: 142/8 | B90: 2022-05-01 | C90: 65000 | D90: oui | E90: 2022-03-10
A91: 142/8 | B91: 2022-06-01 | C91: 65000 | D91: oui | E91: 2022-03-10
A92: 142/8 | B92: 2022-07-01 | C92: 65000 | D92: oui | E92: 2022-11-11
A93: 142/8 | B93: 2022-08-01 | C93: 65000 | D93: oui | E93: 2022-11-11
A94: 142/8 | B94: 2022-09-01 | C94: 65000 | D94: oui | E94: 2022-11-11
A95: 142/8 | B95: 2022-10-01 | C95: 65000 | D95: oui | E95: 2022-11-11
A96: 142/8 | B96: 2022-11-01 | C96: 65000 | D96: oui | E96: 2022-11-11
A97: 142/8 | B97: 2022-12-01 | C97: 65000 | D97: oui | E97: 2022-11-11
A98: 144/9 | B98: 2022-01-01 | C98: 65000 | D98: oui | E98: 2022-05-19
A99: 144/9 | B99: 2022-02-01 | C99: 65000 | D99: oui | E99: 2022-05-19
A100: 144/9 | B100: 2022-03-01 | C100: 65000 | D100: oui | E100: 2022-05-19
A101: 144/9 | B101: 2022-04-01 | C101: 65000 | D101: oui | E101: 2022-05-19
A102: 144/9 | B102: 2022-05-01 | C102: 65000 | D102: oui | E102: 2022-05-19
A103: 144/9 | B103: 2022-06-01 | C103: 65000 | D103: oui | E103: 2022-05-19
A104: 144/9 | B104: 2022-07-01 | C104: 65000 | D104: oui | E104: 2022-11-11
A105: 144/9 | B105: 2022-08-01 | C105: 65000 | D105: oui | E105: 2022-11-11
A106: 144/9 | B106: 2022-09-01 | C106: 65000 | D106: oui | E106: 2022-11-11
A107: 144/9 | B107: 2022-10-01 | C107: 65000 | D107: oui | E107: 2023-02-15
A108: 144/9 | B108: 2022-11-01 | C108: 65000 | D108: oui | E108: 2023-02-15
A109: 144/9 | B109: 2022-12-01 | C109: 65000 | D109: oui | E109: 2023-02-15
A110: 146/10 | B110: 2022-01-01 | C110: 41666.66667 | D110: oui | E110: 2022-03-10
A111: 146/10 | B111: 2022-02-01 | C111: 41666.66667 | D111: oui | E111: 2022-03-10
A112: 146/10 | B112: 2022-03-01 | C112: 41666.66667 | D112: oui | E112: 2022-03-10
A113: 146/10 | B113: 2022-04-01 | C113: 41666.66667 | D113: oui | E113: 2022-03-10
A114: 146/10 | B114: 2022-05-01 | C114: 41666.66667 | D114: oui | E114: 2022-03-10
A115: 146/10 | B115: 2022-06-01 | C115: 41666.66667 | D115: oui | E115: 2022-03-10
A116: 146/10 | B116: 2022-07-01 | C116: 41666.66667 | D116: oui | E116: 2022-03-10
A117: 146/10 | B117: 2022-08-01 | C117: 41666.66667 | D117: oui | E117: 2022-03-10
A118: 146/10 | B118: 2022-09-01 | C118: 41666.66667 | D118: oui | E118: 2022-03-10
A119: 146/10 | B119: 2022-10-01 | C119: 41666.66667 | D119: oui | E119: 2022-03-10
A120: 146/10 | B120: 2022-11-01 | C120: 41666.66667 | D120: oui | E120: 2022-03-10
A121: 146/10 | B121: 2022-12-01 | C121: 41666.66667 | D121: oui | E121: 2022-03-10
A122: 148/11 | B122: 2022-01-01 | C122: 65000 | D122: oui | E122: 2022-02-17
A123: 148/11 | B123: 2022-02-01 | C123: 65000 | D123: oui | E123: 2022-02-17
A124: 148/11 | B124: 2022-03-01 | C124: 65000 | D124: oui | E124: 2022-02-17
A125: 148/11 | B125: 2022-04-01 | C125: 65000 | D125: oui | E125: 2022-02-17
A126: 148/11 | B126: 2022-05-01 | C126: 65000 | D126: oui | E126: 2022-02-17
A127: 148/11 | B127: 2022-06-01 | C127: 65000 | D127: oui | E127: 2022-02-17
A128: 148/11 | B128: 2022-07-01 | C128: 65000 | D128: oui | E128: 2022-09-16
A129: 148/11 | B129: 2022-08-01 | C129: 65000 | D129: oui | E129: 2022-09-16
A130: 148/11 | B130: 2022-09-01 | C130: 65000 | D130: oui | E130: 2022-09-16
A131: 148/11 | B131: 2022-10-01 | C131: 65000 | D131: oui | E131: 2022-09-16
A132: 148/11 | B132: 2022-11-01 | C132: 65000 | D132: oui | E132: 2022-09-16
A133: 148/11 | B133: 2022-12-01 | C133: 65000 | D133: oui | E133: 2022-09-16
A134: 150/12 | B134: 2022-01-01 | C134: 60000 | D134: oui | E134: 2022-03-11
A135: 150/12 | B135: 2022-02-01 | C135: 60000 | D135: oui | E135: 2022-03-11
A136: 150/12 | B136: 2022-03-01 | C136: 60000 | D136: oui | E136: 2022-03-11
A137: 150/12 | B137: 2022-04-01 | C137: 60000 | D137: oui | E137: 2022-06-13
A138: 150/12 | B138: 2022-05-01 | C138: 60000 | D138: oui | E138: 2022-06-13
A139: 150/12 | B139: 2022-06-01 | C139: 60000 | D139: oui | E139: 2022-06-13
A140: 150/12 | B140: 2022-07-01 | C140: 60000 | D140: oui | E140: 2022-06-13
A141: 150/12 | B141: 2022-08-01 | C141: 55000 | D141: oui | E141: 2022-11-11
A142: 150/12 | B142: 2022-09-01 | C142: 55000 | D142: oui | E142: 2022-11-11
A143: 150/12 | B143: 2022-10-01 | C143: 85000 | D143: oui | E143: 2023-02-14
A144: 150/12 | B144: 2022-11-01 | C144: 85000 | D144: oui | E144: 2023-02-14
A145: 150/12 | B145: 2022-12-01 | C145: 80000 | D145: oui | E145: 2023-02-14
A146: G-A-01 | B146: 2022-01-01 | C146: 50000 | D146: oui | E146: 2022-02-14
A147: G-A-01 | B147: 2022-02-01 | C147: 50000 | D147: oui | E147: 2022-05-12
A148: G-A-01 | B148: 2022-03-01 | C148: 50000 | D148: oui | E148: 2022-05-12
A149: G-A-01 | B149: 2022-04-01 | C149: 50000 | D149: oui | E149: 2022-05-12
A150: G-A-01 | B150: 2022-05-01 | C150: 50000 | D150: oui | E150: 2022-09-16
A151: G-A-01 | B151: 2022-06-01 | C151: 50000 | D151: oui | E151: 2022-09-16
A152: G-A-01 | B152: 2022-07-01 | C152: 50000 | D152: oui | E152: 2022-09-16
A153: G-A-01 | B153: 2022-08-01 | C153: 50000 | D153: oui | E153: 2022-09-16
A154: G-A-01 | B154: 2022-09-01 | C154: 50000 | D154: oui | E154: 2023-12-28
A155: G-A-01 | B155: 2022-10-01 | C155: 50000 | D155: oui | E155: 2023-12-28
A156: G-A-01 | B156: 2022-11-01 | C156: 50000 | D156: oui | E156: 2023-12-28
A157: G-A-01 | B157: 2022-12-01 | C157: 50000 | D157: oui | E157: 2023-12-28
A158: G-A-02 | B158: 2022-01-01 | C158: 50000 | D158: oui | E158: 2022-05-28
A159: G-A-02 | B159: 2022-02-01 | C159: 50000 | D159: oui | E159: 2022-05-28
A160: G-A-02 | B160: 2022-03-01 | C160: 50000 | D160: oui | E160: 2022-05-28
A161: G-A-02 | B161: 2022-04-01 | C161: 50000 | D161: oui | E161: 2022-05-28
A162: G-A-02 | B162: 2022-05-01 | C162: 50000 | D162: oui | E162: 2022-05-28
A163: G-A-02 | B163: 2022-06-01 | C163: 50000 | D163: oui | E163: 2022-05-28
A164: G-A-02 | B164: 2022-07-01 | C164: 50000 | D164: oui | E164: 2023-01-25
A165: G-A-02 | B165: 2022-08-01 | C165: 50000 | D165: oui | E165: 2023-01-25
A166: G-A-02 | B166: 2022-09-01 | C166: 50000 | D166: oui | E166: 2023-01-25
A167: G-A-02 | B167: 2022-10-01 | C167: 50000 | D167: oui | E167: 2023-01-25
A168: G-A-02 | B168: 2022-11-01 | C168: 50000 | D168: oui | E168: 2023-01-25
A169: G-A-02 | B169: 2022-12-01 | C169: 50000 | D169: oui | E169: 2023-01-25
A170: G-A-03 | B170: 2022-01-01 | C170: 50000 | D170: oui | E170: 2022-01-13
A171: G-A-03 | B171: 2022-02-01 | C171: 50000 | D171: oui | E171: 2022-01-13
A172: G-A-03 | B172: 2022-03-01 | C172: 50000 | D172: oui | E172: 2022-01-13
A173: G-A-03 | B173: 2022-04-01 | C173: 50000 | D173: oui | E173: 2022-04-13
A174: G-A-03 | B174: 2022-05-01 | C174: 50000 | D174: oui | E174: 2022-04-13
A175: G-A-03 | B175: 2022-06-01 | C175: 50000 | D175: oui | E175: 2022-04-13
A176: G-A-03 | B176: 2022-07-01 | C176: 50000 | D176: oui | E176: 2022-08-01
A177: G-A-03 | B177: 2022-08-01 | C177: 50000 | D177: oui | E177: 2022-08-01
A178: G-A-03 | B178: 2022-09-01 | C178: 50000 | D178: oui | E178: 2022-08-01
A179: G-A-03 | B179: 2022-10-01 | C179: 50000 | D179: oui | E179: 2022-10-12
A180: G-A-03 | B180: 2022-11-01 | C180: 50000 | D180: oui | E180: 2022-10-12
A181: G-A-03 | B181: 2022-12-01 | C181: 50000 | D181: oui | E181: 2022-10-12
A182: G-A-04 | B182: 2022-01-01 | C182: 50000 | D182: oui | E182: 2022-05-12
A183: G-A-04 | B183: 2022-02-01 | C183: 50000 | D183: oui | E183: 2022-05-12
A184: G-A-04 | B184: 2022-03-01 | C184: 50000 | D184: oui | E184: 2022-05-12
A185: G-A-04 | B185: 2022-04-01 | C185: 50000 | D185: oui | E185: 2022-07-20
A186: G-A-04 | B186: 2022-05-01 | C186: 50000 | D186: oui | E186: 2022-07-20
A187: G-A-04 | B187: 2022-06-01 | C187: 50000 | D187: oui | E187: 2022-07-20
A188: G-A-04 | B188: 2022-07-01 | C188: 50000 | D188: oui | E188: 2022-11-11
A189: G-A-04 | B189: 2022-08-01 | C189: 50000 | D189: oui | E189: 2022-11-11
A190: G-A-04 | B190: 2022-09-01 | C190: 50000 | D190: oui | E190: 2022-11-11
A191: G-A-04 | B191: 2022-10-01 | C191: 50000 | D191: oui | E191: 2022-12-28
A192: G-A-04 | B192: 2022-11-01 | C192: 50000 | D192: oui | E192: 2022-12-28
A193: G-A-04 | B193: 2022-12-01 | C193: 50000 | D193: oui | E193: 2022-12-28
A194: G-A-05 | B194: 2022-01-01 | C194: 50000 | D194: oui | E194: 2022-03-16
A195: G-A-05 | B195: 2022-02-01 | C195: 50000 | D195: oui | E195: 2022-03-16
A196: G-A-05 | B196: 2022-03-01 | C196: 50000 | D196: oui | E196: 2022-03-16
A197: G-A-05 | B197: 2022-04-01 | C197: 50000 | D197: oui | E197: 2022-07-20
A198: G-A-05 | B198: 2022-05-01 | C198: 50000 | D198: oui | E198: 2022-07-20
A199: G-A-05 | B199: 2022-06-01 | C199: 50000 | D199: oui | E199: 2022-07-20
A200: G-A-05 | B200: 2022-07-01 | C200: 50000 | D200: oui | E200: 2022-09-16
... 2585 more rows

Sheet 24tcd-mois

Sheet 24tcd-pmts

Sheet 23tcd-pmts

Sheet 23tcd-mois

Sheet 22tcd-pmt

Sheet 22tcd-mois
